{"text_format":"1","workbook":"xlsx","n_sheets":5,"sheets":["Bauschsatzformular_Forst_o_422","Bauschsatzformular_Forst","Landschaftsdienst","Tabelle","Tabelle1"],"not_rendered":{"charts":0,"images":5,"macros":1,"external_links":0,"defined_names":3,"comments":3,"pivot_tables":0},"unopened":[],"bounds":{"document_bytes":16777216,"sheet_cells":100000,"rows_first":2000,"rows_last":500,"rows_between":2000,"halvings":0,"cell_chars":16384,"cell_head_chars":4096},"cells_cut":0,"cells_raw":0,"read":"whole","date_system":"1900"}

{"sheet":"Bauschsatzformular_Forst_o_422","index":0,"n_rows":281,"n_cols":58,"rows_kept":281,"cut":false,"hidden":true,"merged":[[15,37,15,50],[28,36,28,43],[29,36,29,43],[37,39,37,43],[36,39,36,43],[33,35,34,38],[36,44,36,51],[37,44,37,51],[27,44,27,51],[28,44,28,51],[32,2,32,10],[38,27,38,34],[38,35,38,38],[37,25,37,26],[33,25,34,26],[37,27,37,34],[37,35,37,38],[37,1,37,8],[36,1,36,8],[36,35,36,38],[38,39,38,43],[38,44,38,51],[33,39,34,43],[35,39,35,43],[27,36,27,43],[35,44,35,51],[33,44,34,51],[35,35,35,38],[29,29,29,35],[54,25,54,51],[54,3,54,17],[29,2,29,13],[29,44,29,51],[33,9,34,20],[27,25,27,28],[27,29,27,35],[30,44,30,51],[53,3,53,17],[53,25,53,51],[37,21,37,24],[36,21,36,24],[29,21,29,24],[36,27,36,34],[33,21,34,24],[35,21,35,24],[36,25,36,26],[35,1,35,8],[33,27,34,34],[35,25,35,26],[35,27,35,34],[33,1,34,8],[43,1,43,8],[44,1,44,8],[3,2,3,52],[27,2,27,13],[28,2,28,13],[25,2,26,20],[25,21,26,24],[27,21,27,24],[25,44,26,51],[7,6,7,50],[7,2,7,5],[15,19,15,21],[9,2,9,14],[25,25,26,28],[9,15,9,24],[9,25,9,36],[25,36,26,43],[15,22,15,31],[15,2,15,5],[21,39,21,48],[9,37,9,50],[15,32,15,36],[17,38,17,42],[17,43,17,50],[28,29,28,35],[17,32,17,36],[15,6,15,18],[17,2,17,9],[17,10,17,25],[28,25,28,28],[28,21,28,24],[29,25,29,28],[17,26,17,31],[25,29,26,35],[21,26,21,35],[43,39,43,43],[43,44,43,51],[42,39,42,43],[42,44,42,51],[45,1,45,8],[38,21,38,24],[39,21,39,24],[41,21,41,24],[42,21,42,24],[38,1,38,8],[39,1,39,8],[40,1,40,8],[41,1,41,8],[42,1,42,8],[38,25,38,26],[39,25,39,26],[41,25,41,26],[42,25,42,26],[40,21,40,24],[40,25,40,26],[43,27,43,34],[43,35,43,38],[39,39,39,43],[39,44,39,51],[39,27,39,34],[39,35,39,38],[42,27,42,34],[42,35,42,38],[40,27,40,34],[40,35,40,38],[40,39,40,43],[40,44,40,51],[41,27,41,34],[41,35,41,38],[41,39,41,43],[41,44,41,51],[4,2,4,52],[48,2,51,50],[32,12,32,21],[32,22,32,25],[46,19,46,20],[46,37,46,38],[45,39,45,43],[45,44,45,51],[46,39,46,43],[46,21,46,24],[43,21,43,24],[43,25,43,26],[46,44,46,51],[45,21,45,24],[45,25,45,26],[45,27,45,34],[45,35,45,38],[46,25,47,36],[44,21,44,24],[44,25,44,26],[44,27,44,34],[44,35,44,38],[44,39,44,43],[44,44,44,51]]}
[1,1,1]
[1,1]
[1,1,null,null,null,null,null,null,null,null,null,null,null,null,null,null,null,null,null,null,null,null,null,null,null,null,null,null,null,null,null,null,null,null,null,null,null,null,null,null,null,null,null,null,null,null,null,null,null,null,null,null,null,null,null,null,"bitte Gemeinde wählen:","bitte auswählen:"]
[1,null,"Nachweisungsliste für Bauschsatzleistungen",null,null,null,null,null,null,null,null,null,null,null,null,null,null,null,null,null,null,null,null,null,null,null,null,null,null,null,null,null,null,null,null,null,null,null,null,null,null,null,null,null,null,null,null,null,null,null,null,null,null,null,null,null,"Abfaltersbach",2010]
[1,null,"-  Forst  -",null,null,null,null,null,null,null,null,null,null,null,null,null,null,null,null,null,null,null,null,null,null,null,null,null,null,null,null,null,null,null,null,null,null,null,null,null,null,null,null,null,null,null,null,null,null,null,null,null,null,null,null,null,"Absam",2011]
[1,null,null,null,null,null,null,null,null,null,null,null,null,null,null,null,null,null,null,null,null,null,null,null,null,null,null,null,null,null,null,null,null,null,null,null,null,null,null,null,null,null,null,null,null,null,null,null,null,null,null,null,null,null,null,null,"Achenkirch",2012]
[1,null,null,null,null,null,null,null,null,null,null,null,null,null,null,null,null,null,null,null,null,null,null,null,null,null,null,null,null,null,null,null,null,null,null,null,null,null,null,null,null,null,null,null,null,null,null,null,null,null,null,null,null,null,null,null,"Ainet",2013]
[1,null,"Name",null,null,null,null,null,null,null,null,null,null,null,null,null,null,null,null,null,null,null,null,null,null,null,null,null,null,null,null,null,null,null,null,null,null,null,null,null,null,null,null,null,null,null,null,null,null,null,null,null,null,null,null,null,"Aldrans",2014]
[1,0,null,null,null,null,null,null,null,null,null,null,null,null,null,null,null,null,null,null,null,null,null,null,null,null,null,null,null,null,null,null,null,null,null,null,null,null,null,null,null,null,null,null,null,null,null,null,null,null,null,null,null,null,null,null,"Alpbach",2015]
[1,null,"Antrags-/Projektnummer",null,null,null,null,null,null,null,null,null,null,null,null,null,null,null,null,null,null,null,null,null,null,"Ort der Umsetzung",null,null,null,null,null,null,null,null,null,null,null,"bitte Gemeinde wählen:",null,null,null,null,null,null,null,null,null,null,null,null,null,null,null,null,null,null,"Amlach"]
[1,null,null,null,null,null,null,null,null,null,null,null,null,null,null,null,null,null,null,null,null,null,null,null,null,null,null,null,null,null,null,null,null,null,null,null,null,null,null,null,null,null,null,null,null,null,null,null,null,null,null,null,null,null,null,null,"Ampass"]
[null,null,null,null,null,null,null,null,null,null,null,null,null,null,null,null,null,null,null,null,null,null,null,null,null,null,null,null,null,null,null,null,null,null,null,null,null,null,null,null,null,null,null,null,null,null,null,null,null,null,null,null,null,null,null,null,"Angath"]
[null,null,null,null,null,null,null,null,null,null,null,null,null,null,null,null,null,null,null,null,null,null,null,null,null,null,null,null,null,null,null,null,null,null,null,null,null,null,null,null,null,null,null,null,null,null,null,null,null,null,null,null,null,null,null,null,"Angerberg"]
[null,null,null,null,null,null,null,null,null,null,null,null,null,null,null,null,null,null,null,null,null,null,null,null,null,null,null,null,null,null,null,null,null,null,null,null,null,null,null,null,null,null,null,null,null,null,null,null,null,null,null,null,null,null,null,null,"Anras"]
[null,null,null,null,null,null,null,null,null,null,null,null,null,null,null,null,null,null,null,null,null,null,null,null,null,null,null,null,null,null,null,null,null,null,null,null,null,null,null,null,null,null,null,null,null,null,null,null,null,null,null,null,null,null,null,null,"Arzl im Pitztal"]
[null,null,"Name",null,null,null,null,null,null,null,null,null,null,null,null,null,null,null,null,"Straße HNr.",null,null,null,null,null,null,null,null,null,null,null,null,"Wohnort",null,null,null,null,"bitte Gemeinde wählen:",null,null,null,null,null,null,null,null,null,null,null,null,null,null,null,null,null,null,"Aschau im Zillertal"]
[null,null,null,null,null,null,null,null,null,null,null,null,null,null,null,null,null,null,null,null,null,null,null,null,null,null,null,null,null,null,null,null,null,null,null,null,null,null,null,null,null,null,null,null,null,null,null,null,null,null,null,null,null,null,null,null,"Assling"]
[null,null,"Name des Bankinstitutes",null,null,null,null,null,null,null,null,null,null,null,null,null,null,null,null,null,null,null,null,null,null,null,"BLZ",null,null,null,null,null,null,null,null,null,null,null,"Konto-nummer",null,null,null,null,null,null,null,null,null,null,null,null,null,null,null,null,null,"Aurach bei Kitzbühel"]
[null,null,null,null,null,null,null,null,null,null,null,null,null,null,null,null,null,null,null,null,null,null,null,null,null,null,null,null,null,null,null,null,null,null,null,null,null,null,null,null,null,null,null,null,null,null,null,null,null,null,null,null,null,null,null,null,"Außervillgraten"]
[null,null,null,null,null,null,null,null,null,null,null,null,null,null,null,null,null,null,null,null,null,null,null,null,null,null,null,null,null,null,null,null,null,null,null,null,null,null,null,null,null,null,null,null,null,null,null,null,null,null,null,null,null,null,null,null,"Axams"]
[null,null,null,null,null,null,null,null,null,null,null,null,null,null,null,null,null,null,null,null,null,null,null,null,null,null,null,null,null,null,null,null,null,null,null,null,null,null,null,null,null,null,null,null,null,null,null,null,null,null,null,null,null,null,null,null,"Bach"]
[null,null," Die Umsetzung der Maßnahme erfolgte im Zeitraum von ",null,null,null,null,null,null,null,null,null,null,null,null,null,null,null,null,null,null,null,null,null,null,null,null,null,null,null,null,null,null,null,null,null,null,"bis ",null,null,null,null,null,null,null,null,null,null,null,null,null,null,null,null,null,null,"Bad Häring"]
[null,null,null,null,null,null,null,null,null,null,null,null,null,null,null,null,null,null,null,null,null,null,null,null,null,null,null,null,null,null,null,null,null,null,null,null,null,null,null,null,null,null,null,null,null,null,null,null,null,null,null,null,null,null,null,null,"Baumkirchen"]
[null,null,null,null,null,null,null,null,null,null,null,null,null,null,null,null,null,null,null,null,null,null,null,null,null,null,null,null,null,null,null,null,null,null,null,null,null,null,null,null,null,null,null,null,null,null,null,null,null,null,null,null,null,null,null,null,"Berwang"]
[null,null,null,null,null,null,null,null,null,null,null,null,null,null,null,null,null,null,null,null,null,null,null,null,null,null,null,null,null,null,null,null,null,null,null,null,null,null,null,null,null,null,null,null,null,null,null,null,null,null,null,null,null,null,null,null,"Biberwier"]
[null,null,"Art der Maßnahme",null,null,null,null,null,null,null,null,null,null,null,null,null,null,null,null,null,null,"FAI-Code",null,null,null,"Bausch-satz",null,null,null,"Einheit",null,null,null,null,null,null,"Menge",null,null,null,null,null,null,null,"Brutto Anrechenbar Förderbetrag",null,null,null,null,null,null,null,null,null,null,null,"Bichlbach"]
[null,null,null,null,null,null,null,null,null,null,null,null,null,null,null,null,null,null,null,null,null,null,null,null,null,null,null,null,null,null,null,null,null,null,null,null,null,null,null,null,null,null,null,null,null,null,null,null,null,null,null,null,null,null,null,null,"Birgitz"]
[null,null,null,null,null,null,null,null,null,null,null,null,null,null,null,null,null,null,null,null,null,{"$f":"VLOOKUP(B1,Tabelle!B$2:F$11,3)","v":"--"},null,null,null,{"$f":"VLOOKUP(B1,Tabelle!B$2:F$11,4)","v":"--"},null,null,null,{"$f":"VLOOKUP(B1,Tabelle!B$2:F$11,5)","v":"--"},null,null,null,null,null,null,null,null,null,null,null,null,null,null,{"$f":"IF(Z28=\"--\",0,AK28*Z28)","v":0},null,null,null,null,null,null,null,null,null,null,null,"Brandberg"]
[null,null,null,null,null,null,null,null,null,null,null,null,null,null,null,null,null,null,null,null,null,{"$f":"VLOOKUP(B2,Tabelle!B$2:F$11,3)","v":"--"},null,null,null,{"$f":"VLOOKUP(B2,Tabelle!B$2:F$11,4)","v":"--"},null,null,null,{"$f":"VLOOKUP(B2,Tabelle!B$2:F$11,5)","v":"--"},null,null,null,null,null,null,null,null,null,null,null,null,null,null,{"$f":"IF(Z29=\"--\",0,AK29*Z29)","v":0},null,null,null,null,null,null,null,null,null,null,null,"Breitenbach am Inn"]
[null,null,null,null,null,null,null,null,null,null,null,null,null,null,null,null,null,null,null,null,null,{"$f":"VLOOKUP(B3,Tabelle!B$2:F$11,3)","v":"--"},null,null,null,{"$f":"VLOOKUP(B3,Tabelle!B$2:F$11,4)","v":"--"},null,null,null,{"$f":"VLOOKUP(B3,Tabelle!B$2:F$11,5)","v":"--"},null,null,null,null,null,null,null,null,null,null,null,null,null,null,{"$f":"IF(Z30=\"--\",0,AK30*Z30)","v":0},null,null,null,null,null,null,null,null,null,null,null,"Breitenwang"]
[null,null,null,null,null,null,null,null,null,null,null,null,null,null,null,null,null,null,null,null,null,null,null,null,null,null,null,null,null,null,null,null,null,null,null,null,null,null,null,null,null,null,null,null,{"$f":"SUM(AS28:AZ30)","v":0},null,null,null,null,null,null,null,null,null,null,null,"Brixen im Thale"]
[null,null,null,null,null,null,null,null,null,null,null,null,null,null,null,null,null,null,null,null,null,null,null,null,null,null,null,null,null,null,null,null,null,null,null,null,null,null,null,null,null,null,null,null,null,null,null,null,null,null,null,null,null,null,null,null,"Brixlegg"]
[null,null,"Kulturpflege ",null,null,null,null,null,null,null,null,null,null,null,null,null,null,null,null,null,null,null,null,null,null,null,null,null,null,null,null,null,null,null,null,null,null,null,null,null,null,null,null,null,null,null,null,null,null,null,null,null,null,null,null,null,"Bruck am Ziller"]
[null,"Gpz.-Nr. \njede Parzelle einzeln anführen",null,null,null,null,null,null,null,"Maßnahme",null,null,null,null,null,null,null,null,null,null,null,"bearbeitete Fläche",null,null,null,"Ein-heit",null,"Bauschsatz\npro Pflanze bzw. Pflock",null,null,null,null,null,null,null,"Stück berechn.",null,null,null,"Stück\nkorr.",null,null,null,null,"Brutto Anrechenbar Förderbetrag",null,null,null,null,null,null,null,null,null,null,null,"Buch bei Jenbach"]
[null,null,null,null,null,null,null,null,null,null,null,null,null,null,null,null,null,null,null,null,null,null,null,null,null,null,null,null,null,null,null,null,null,null,null,null,null,null,null,null,null,null,null,null,null,null,null,null,null,null,null,null,null,null,null,null,"Dölsach"]
[null,null,null,null,null,null,null,null,null,null,null,null,null,null,null,null,null,null,null,null,null,null,null,null,null,{"$f":"VLOOKUP(A1,Tabelle!B$20:F$23,4)","v":0},null,{"$f":"VLOOKUP(A1,Tabelle!B$20:F$23,3)","v":"Basis - Anzahl Pflanzen / ha"},null,null,null,null,null,null,null,{"$f":"IF(V36=\"\",\"--\",Tabelle!F$20*V36)","v":"--"},null,null,null,{"$f":"AJ36","v":"--"},null,null,null,null,{"$f":"IF(B36=\"\",\"\",AN36*AB36)","v":""},null,null,null,null,null,null,null,null,null,null,null,"Ebbs"]
[null,null,null,null,null,null,null,null,null,null,null,null,null,null,null,null,null,null,null,null,null,null,null,null,null,{"$f":"VLOOKUP(A2,Tabelle!B$20:F$23,4)","v":0},null,{"$f":"VLOOKUP(A2,Tabelle!B$20:F$23,3)","v":"Basis - Anzahl Pflanzen / ha"},null,null,null,null,null,null,null,{"$f":"IF(V37=\"\",\"--\",Tabelle!F$20*V37)","v":"--"},null,null,null,"--",null,null,null,null,"",null,null,null,null,null,null,null,null,null,null,null,"Eben am Achensee"]
[null,null,null,null,null,null,null,null,null,null,null,null,null,null,null,null,null,null,null,null,null,null,null,null,null,{"$f":"VLOOKUP(A3,Tabelle!B$20:F$23,4)","v":0},null,{"$f":"VLOOKUP(A3,Tabelle!B$20:F$23,3)","v":"Basis - Anzahl Pflanzen / ha"},null,null,null,null,null,null,null,{"$f":"IF(V38=\"\",\"--\",Tabelle!F$20*V38)","v":"--"},null,null,null,"--",null,null,null,null,"",null,null,null,null,null,null,null,null,null,null,null,"Ehenbichl"]
[null,null,null,null,null,null,null,null,null,null,null,null,null,null,null,null,null,null,null,null,null,null,null,null,null,{"$f":"VLOOKUP(A4,Tabelle!B$20:F$23,4)","v":0},null,{"$f":"VLOOKUP(A4,Tabelle!B$20:F$23,3)","v":"Basis - Anzahl Pflanzen / ha"},null,null,null,null,null,null,null,{"$f":"IF(V39=\"\",\"--\",Tabelle!F$20*V39)","v":"--"},null,null,null,"--",null,null,null,null,"",null,null,null,null,null,null,null,null,null,null,null,"Ehrwald"]
[null,null,null,null,null,null,null,null,null,null,null,null,null,null,null,null,null,null,null,null,null,null,null,null,null,{"$f":"VLOOKUP(A5,Tabelle!B$20:F$23,4)","v":0},null,{"$f":"VLOOKUP(A5,Tabelle!B$20:F$23,3)","v":"Basis - Anzahl Pflanzen / ha"},null,null,null,null,null,null,null,{"$f":"IF(V40=\"\",\"--\",Tabelle!F$20*V40)","v":"--"},null,null,null,"--",null,null,null,null,"",null,null,null,null,null,null,null,null,null,null,null,"Elbigenalp"]
[null,null,null,null,null,null,null,null,null,null,null,null,null,null,null,null,null,null,null,null,null,null,null,null,null,{"$f":"VLOOKUP(A6,Tabelle!B$20:F$23,4)","v":0},null,{"$f":"VLOOKUP(A6,Tabelle!B$20:F$23,3)","v":"Basis - Anzahl Pflanzen / ha"},null,null,null,null,null,null,null,{"$f":"IF(V41=\"\",\"--\",Tabelle!F$20*V41)","v":"--"},null,null,null,"--",null,null,null,null,"",null,null,null,null,null,null,null,null,null,null,null,"Ellbögen"]
[null,null,null,null,null,null,null,null,null,null,null,null,null,null,null,null,null,null,null,null,null,null,null,null,null,{"$f":"VLOOKUP(A7,Tabelle!B$20:F$23,4)","v":0},null,{"$f":"VLOOKUP(A7,Tabelle!B$20:F$23,3)","v":"Basis - Anzahl Pflanzen / ha"},null,null,null,null,null,null,null,{"$f":"IF(V42=\"\",\"--\",Tabelle!F$20*V42)","v":"--"},null,null,null,"--",null,null,null,null,"",null,null,null,null,null,null,null,null,null,null,null,"Ellmau"]
[null,null,null,null,null,null,null,null,null,null,null,null,null,null,null,null,null,null,null,null,null,null,null,null,null,{"$f":"VLOOKUP(A8,Tabelle!B$20:F$23,4)","v":0},null,{"$f":"VLOOKUP(A8,Tabelle!B$20:F$23,3)","v":"Basis - Anzahl Pflanzen / ha"},null,null,null,null,null,null,null,{"$f":"IF(V43=\"\",\"--\",Tabelle!F$20*V43)","v":"--"},null,null,null,"--",null,null,null,null,"",null,null,null,null,null,null,null,null,null,null,null,"Elmen"]
[null,null,null,null,null,null,null,null,null,null,null,null,null,null,null,null,null,null,null,null,null,null,null,null,null,{"$f":"VLOOKUP(A9,Tabelle!B$20:F$23,4)","v":0},null,{"$f":"VLOOKUP(A9,Tabelle!B$20:F$23,3)","v":"Basis - Anzahl Pflanzen / ha"},null,null,null,null,null,null,null,{"$f":"IF(V44=\"\",\"--\",Tabelle!F$20*V44)","v":"--"},null,null,null,"--",null,null,null,null,"",null,null,null,null,null,null,null,null,null,null,null,"Erl"]
[null,null,null,null,null,null,null,null,null,null,null,null,null,null,null,null,null,null,null,null,null,null,null,null,null,{"$f":"VLOOKUP(A10,Tabelle!B$20:F$23,4)","v":0},null,{"$f":"VLOOKUP(A10,Tabelle!B$20:F$23,3)","v":"Basis - Anzahl Pflanzen / ha"},null,null,null,null,null,null,null,{"$f":"IF(V45=\"\",\"--\",Tabelle!F$20*V45)","v":"--"},null,null,null,"--",null,null,null,null,"",null,null,null,null,null,null,null,null,null,null,null,"Faggen"]
[null,null,null,null,null,null,null,null,null,null,null,null,null,null,null,null,null,null,null,null,null,null,null,null,null,{"$f":"VLOOKUP(A11,Tabelle!B$20:F$23,4)","v":0},null,{"$f":"VLOOKUP(A11,Tabelle!B$20:F$23,3)","v":"Basis - Anzahl Pflanzen / ha"},null,null,null,null,null,null,null,{"$f":"IF(V46=\"\",\"--\",Tabelle!F$20*V46)","v":"--"},null,null,null,"--",null,null,null,null,"",null,null,null,null,null,null,null,null,null,null,null,"Fendels"]
[null,null,null,null,null,null,null,null,null,null,null,null,null,null,null,null,null,null,"FAI-Code: 422",null,null,{"$f":"SUM(V36:Y46)","v":0},null,null,null,{"$f":"IF(V47=0,\"\",(IF(V47<0.1,\"Mindestausmaß kleiner 0,1 ha\n!!  Keine Förderung  !!\",\"\")))","v":""},null,null,null,null,null,null,null,null,null,null,null,null,null,null,null,null,null,null,{"$f":"IF(V47<0.1,0,SUM(AS36:AZ46))","v":0},null,null,null,null,null,null,null,null,null,null,null,"Fieberbrunn"]
[null,null,null,null,null,null,null,null,null,null,null,null,null,null,null,null,null,null,null,null,null,null,null,null,null,null,null,null,null,null,null,null,null,null,null,null,null,null,null,null,null,null,null,null,null,null,null,null,null,null,null,null,null,null,null,null,"Finkenberg"]
[null,null,null,null,null,null,null,null,null,null,null,null,null,null,null,null,null,null,null,null,null,null,null,null,null,null,null,null,null,null,null,null,null,null,null,null,null,null,null,null,null,null,null,null,null,null,null,null,null,null,null,null,null,null,null,null,"Fiss"]
[null,null,null,null,null,null,null,null,null,null,null,null,null,null,null,null,null,null,null,null,null,null,null,null,null,null,null,null,null,null,null,null,null,null,null,null,null,null,null,null,null,null,null,null,null,null,null,null,null,null,null,null,null,null,null,null,"Flaurling"]
[null,null,null,null,null,null,null,null,null,null,null,null,null,null,null,null,null,null,null,null,null,null,null,null,null,null,null,null,null,null,null,null,null,null,null,null,null,null,null,null,null,null,null,null,null,null,null,null,null,null,null,null,null,null,null,null,"Fließ"]
[null,null,null,null,null,null,null,null,null,null,null,null,null,null,null,null,null,null,null,null,null,null,null,null,null,null,null,null,null,null,null,null,null,null,null,null,null,null,null,null,null,null,null,null,null,null,null,null,null,null,null,null,null,null,null,null,"Flirsch"]
[null,null,null,null,null,null,null,null,null,null,null,null,null,null,null,null,null,null,null,null,null,null,null,null,null,null,null,null,null,null,null,null,null,null,null,null,null,null,null,null,null,null,null,null,null,null,null,null,null,null,null,null,null,null,null,null,"Forchach"]
[null,null,null,null,null,null,null,null,null,null,null,null,null,null,null,null,null,null,null,null,null,null,null,null,null,null,null,null,null,null,null,null,null,null,null,null,null,null,null,null,null,null,null,null,null,null,null,null,null,null,null,null,null,null,null,null,"Fritzens"]
[null,null,null,"Datum",null,null,null,null,null,null,null,null,null,null,null,null,null,null,null,null,null,null,null,null,null,"Unterschrift Förderwerber(in) bzw. Begünstigte(r)",null,null,null,null,null,null,null,null,null,null,null,null,null,null,null,null,null,null,null,null,null,null,null,null,null,null,null,null,null,null,"Fügen"]
[null,null,null,null,null,null,null,null,null,null,null,null,null,null,null,null,null,null,null,null,null,null,null,null,null,null,null,null,null,null,null,null,null,null,null,null,null,null,null,null,null,null,null,null,null,null,null,null,null,null,null,null,null,null,null,null,"Fügenberg"]
[null,null,null,null,null,null,null,null,null,null,null,null,null,null,null,null,null,null,null,null,null,null,null,null,null,null,null,null,null,null,null,null,null,null,null,null,null,null,null,null,null,null,null,null,null,null,null,null,null,null,null,null,null,null,null,null,"Fulpmes"]
[null,null,null,null,null,null,null,null,null,null,null,null,null,null,null,null,null,null,null,null,null,null,null,null,null,null,null,null,null,null,null,null,null,null,null,null,null,null,null,null,null,null,null,null,null,null,null,null,null,null,null,null,null,null,null,null,"Gaimberg"]
[null,null,null,null,null,null,null,null,null,null,null,null,null,null,null,null,null,null,null,null,null,null,null,null,null,null,null,null,null,null,null,null,null,null,null,null,null,null,null,null,null,null,null,null,null,null,null,null,null,null,null,null,null,null,null,null,"Gallzein"]
[null,null,null,null,null,null,null,null,null,null,null,null,null,null,null,null,null,null,null,null,null,null,null,null,null,null,null,null,null,null,null,null,null,null,null,null,null,null,null,null,null,null,null,null,null,null,null,null,null,null,null,null,null,null,null,null,"Galtür"]
[null,null,null,null,null,null,null,null,null,null,null,null,null,null,null,null,null,null,null,null,null,null,null,null,null,null,null,null,null,null,null,null,null,null,null,null,null,null,null,null,null,null,null,null,null,null,null,null,null,null,null,null,null,null,null,null,"Gerlos"]
[null,null,null,null,null,null,null,null,null,null,null,null,null,null,null,null,null,null,null,null,null,null,null,null,null,null,null,null,null,null,null,null,null,null,null,null,null,null,null,null,null,null,null,null,null,null,null,null,null,null,null,null,null,null,null,null,"Gerlosberg"]
[null,null,null,null,null,null,null,null,null,null,null,null,null,null,null,null,null,null,null,null,null,null,null,null,null,null,null,null,null,null,null,null,null,null,null,null,null,null,null,null,null,null,null,null,null,null,null,null,null,null,null,null,null,null,null,null,"Gnadenwald"]
[null,null,null,null,null,null,null,null,null,null,null,null,null,null,null,null,null,null,null,null,null,null,null,null,null,null,null,null,null,null,null,null,null,null,null,null,null,null,null,null,null,null,null,null,null,null,null,null,null,null,null,null,null,null,null,null,"Going am Wilden Kaiser"]
[null,null,null,null,null,null,null,null,null,null,null,null,null,null,null,null,null,null,null,null,null,null,null,null,null,null,null,null,null,null,null,null,null,null,null,null,null,null,null,null,null,null,null,null,null,null,null,null,null,null,null,null,null,null,null,null,"Götzens"]
[null,null,null,null,null,null,null,null,null,null,null,null,null,null,null,null,null,null,null,null,null,null,null,null,null,null,null,null,null,null,null,null,null,null,null,null,null,null,null,null,null,null,null,null,null,null,null,null,null,null,null,null,null,null,null,null,"Gramais"]
[null,null,null,null,null,null,null,null,null,null,null,null,null,null,null,null,null,null,null,null,null,null,null,null,null,null,null,null,null,null,null,null,null,null,null,null,null,null,null,null,null,null,null,null,null,null,null,null,null,null,null,null,null,null,null,null,"Grän"]
[null,null,null,null,null,null,null,null,null,null,null,null,null,null,null,null,null,null,null,null,null,null,null,null,null,null,null,null,null,null,null,null,null,null,null,null,null,null,null,null,null,null,null,null,null,null,null,null,null,null,null,null,null,null,null,null,"Gries am Brenner"]
[null,null,null,null,null,null,null,null,null,null,null,null,null,null,null,null,null,null,null,null,null,null,null,null,null,null,null,null,null,null,null,null,null,null,null,null,null,null,null,null,null,null,null,null,null,null,null,null,null,null,null,null,null,null,null,null,"Gries im Sellrain"]
[null,null,null,null,null,null,null,null,null,null,null,null,null,null,null,null,null,null,null,null,null,null,null,null,null,null,null,null,null,null,null,null,null,null,null,null,null,null,null,null,null,null,null,null,null,null,null,null,null,null,null,null,null,null,null,null,"Grins"]
[null,null,null,null,null,null,null,null,null,null,null,null,null,null,null,null,null,null,null,null,null,null,null,null,null,null,null,null,null,null,null,null,null,null,null,null,null,null,null,null,null,null,null,null,null,null,null,null,null,null,null,null,null,null,null,null,"Grinzens"]
[null,null,null,null,null,null,null,null,null,null,null,null,null,null,null,null,null,null,null,null,null,null,null,null,null,null,null,null,null,null,null,null,null,null,null,null,null,null,null,null,null,null,null,null,null,null,null,null,null,null,null,null,null,null,null,null,"Gschnitz"]
[null,null,null,null,null,null,null,null,null,null,null,null,null,null,null,null,null,null,null,null,null,null,null,null,null,null,null,null,null,null,null,null,null,null,null,null,null,null,null,null,null,null,null,null,null,null,null,null,null,null,null,null,null,null,null,null,"Haiming"]
[null,null,null,null,null,null,null,null,null,null,null,null,null,null,null,null,null,null,null,null,null,null,null,null,null,null,null,null,null,null,null,null,null,null,null,null,null,null,null,null,null,null,null,null,null,null,null,null,null,null,null,null,null,null,null,null,"Hainzenberg"]
[null,null,null,null,null,null,null,null,null,null,null,null,null,null,null,null,null,null,null,null,null,null,null,null,null,null,null,null,null,null,null,null,null,null,null,null,null,null,null,null,null,null,null,null,null,null,null,null,null,null,null,null,null,null,null,null,"Hall in Tirol"]
[null,null,null,null,null,null,null,null,null,null,null,null,null,null,null,null,null,null,null,null,null,null,null,null,null,null,null,null,null,null,null,null,null,null,null,null,null,null,null,null,null,null,null,null,null,null,null,null,null,null,null,null,null,null,null,null,"Hart im Zillertal"]
[null,null,null,null,null,null,null,null,null,null,null,null,null,null,null,null,null,null,null,null,null,null,null,null,null,null,null,null,null,null,null,null,null,null,null,null,null,null,null,null,null,null,null,null,null,null,null,null,null,null,null,null,null,null,null,null,"Häselgehr"]
[null,null,null,null,null,null,null,null,null,null,null,null,null,null,null,null,null,null,null,null,null,null,null,null,null,null,null,null,null,null,null,null,null,null,null,null,null,null,null,null,null,null,null,null,null,null,null,null,null,null,null,null,null,null,null,null,"Hatting"]
[null,null,null,null,null,null,null,null,null,null,null,null,null,null,null,null,null,null,null,null,null,null,null,null,null,null,null,null,null,null,null,null,null,null,null,null,null,null,null,null,null,null,null,null,null,null,null,null,null,null,null,null,null,null,null,null,"Heinfels"]
[null,null,null,null,null,null,null,null,null,null,null,null,null,null,null,null,null,null,null,null,null,null,null,null,null,null,null,null,null,null,null,null,null,null,null,null,null,null,null,null,null,null,null,null,null,null,null,null,null,null,null,null,null,null,null,null,"Heiterwang"]
[null,null,null,null,null,null,null,null,null,null,null,null,null,null,null,null,null,null,null,null,null,null,null,null,null,null,null,null,null,null,null,null,null,null,null,null,null,null,null,null,null,null,null,null,null,null,null,null,null,null,null,null,null,null,null,null,"Hinterhornbach"]
[null,null,null,null,null,null,null,null,null,null,null,null,null,null,null,null,null,null,null,null,null,null,null,null,null,null,null,null,null,null,null,null,null,null,null,null,null,null,null,null,null,null,null,null,null,null,null,null,null,null,null,null,null,null,null,null,"Hippach"]
[null,null,null,null,null,null,null,null,null,null,null,null,null,null,null,null,null,null,null,null,null,null,null,null,null,null,null,null,null,null,null,null,null,null,null,null,null,null,null,null,null,null,null,null,null,null,null,null,null,null,null,null,null,null,null,null,"Hochfilzen"]
[null,null,null,null,null,null,null,null,null,null,null,null,null,null,null,null,null,null,null,null,null,null,null,null,null,null,null,null,null,null,null,null,null,null,null,null,null,null,null,null,null,null,null,null,null,null,null,null,null,null,null,null,null,null,null,null,"Höfen"]
[null,null,null,null,null,null,null,null,null,null,null,null,null,null,null,null,null,null,null,null,null,null,null,null,null,null,null,null,null,null,null,null,null,null,null,null,null,null,null,null,null,null,null,null,null,null,null,null,null,null,null,null,null,null,null,null,"Holzgau"]
[null,null,null,null,null,null,null,null,null,null,null,null,null,null,null,null,null,null,null,null,null,null,null,null,null,null,null,null,null,null,null,null,null,null,null,null,null,null,null,null,null,null,null,null,null,null,null,null,null,null,null,null,null,null,null,null,"Hopfgarten im Brixental"]
[null,null,null,null,null,null,null,null,null,null,null,null,null,null,null,null,null,null,null,null,null,null,null,null,null,null,null,null,null,null,null,null,null,null,null,null,null,null,null,null,null,null,null,null,null,null,null,null,null,null,null,null,null,null,null,null,"Hopfgarten in Defereggen"]
[null,null,null,null,null,null,null,null,null,null,null,null,null,null,null,null,null,null,null,null,null,null,null,null,null,null,null,null,null,null,null,null,null,null,null,null,null,null,null,null,null,null,null,null,null,null,null,null,null,null,null,null,null,null,null,null,"Imst"]
[null,null,null,null,null,null,null,null,null,null,null,null,null,null,null,null,null,null,null,null,null,null,null,null,null,null,null,null,null,null,null,null,null,null,null,null,null,null,null,null,null,null,null,null,null,null,null,null,null,null,null,null,null,null,null,null,"Imsterberg"]
[null,null,null,null,null,null,null,null,null,null,null,null,null,null,null,null,null,null,null,null,null,null,null,null,null,null,null,null,null,null,null,null,null,null,null,null,null,null,null,null,null,null,null,null,null,null,null,null,null,null,null,null,null,null,null,null,"Innervillgraten"]
[null,null,null,null,null,null,null,null,null,null,null,null,null,null,null,null,null,null,null,null,null,null,null,null,null,null,null,null,null,null,null,null,null,null,null,null,null,null,null,null,null,null,null,null,null,null,null,null,null,null,null,null,null,null,null,null,"Innsbruck"]
[null,null,null,null,null,null,null,null,null,null,null,null,null,null,null,null,null,null,null,null,null,null,null,null,null,null,null,null,null,null,null,null,null,null,null,null,null,null,null,null,null,null,null,null,null,null,null,null,null,null,null,null,null,null,null,null,"Inzing"]
[null,null,null,null,null,null,null,null,null,null,null,null,null,null,null,null,null,null,null,null,null,null,null,null,null,null,null,null,null,null,null,null,null,null,null,null,null,null,null,null,null,null,null,null,null,null,null,null,null,null,null,null,null,null,null,null,"Ischgl"]
[null,null,null,null,null,null,null,null,null,null,null,null,null,null,null,null,null,null,null,null,null,null,null,null,null,null,null,null,null,null,null,null,null,null,null,null,null,null,null,null,null,null,null,null,null,null,null,null,null,null,null,null,null,null,null,null,"Iselsberg-Stronach"]
[null,null,null,null,null,null,null,null,null,null,null,null,null,null,null,null,null,null,null,null,null,null,null,null,null,null,null,null,null,null,null,null,null,null,null,null,null,null,null,null,null,null,null,null,null,null,null,null,null,null,null,null,null,null,null,null,"Itter"]
[null,null,null,null,null,null,null,null,null,null,null,null,null,null,null,null,null,null,null,null,null,null,null,null,null,null,null,null,null,null,null,null,null,null,null,null,null,null,null,null,null,null,null,null,null,null,null,null,null,null,null,null,null,null,null,null,"Jenbach"]
[null,null,null,null,null,null,null,null,null,null,null,null,null,null,null,null,null,null,null,null,null,null,null,null,null,null,null,null,null,null,null,null,null,null,null,null,null,null,null,null,null,null,null,null,null,null,null,null,null,null,null,null,null,null,null,null,"Jerzens"]
[null,null,null,null,null,null,null,null,null,null,null,null,null,null,null,null,null,null,null,null,null,null,null,null,null,null,null,null,null,null,null,null,null,null,null,null,null,null,null,null,null,null,null,null,null,null,null,null,null,null,null,null,null,null,null,null,"Jochberg"]
[null,null,null,null,null,null,null,null,null,null,null,null,null,null,null,null,null,null,null,null,null,null,null,null,null,null,null,null,null,null,null,null,null,null,null,null,null,null,null,null,null,null,null,null,null,null,null,null,null,null,null,null,null,null,null,null,"Jungholz"]
[null,null,null,null,null,null,null,null,null,null,null,null,null,null,null,null,null,null,null,null,null,null,null,null,null,null,null,null,null,null,null,null,null,null,null,null,null,null,null,null,null,null,null,null,null,null,null,null,null,null,null,null,null,null,null,null,"Kaisers"]
[null,null,null,null,null,null,null,null,null,null,null,null,null,null,null,null,null,null,null,null,null,null,null,null,null,null,null,null,null,null,null,null,null,null,null,null,null,null,null,null,null,null,null,null,null,null,null,null,null,null,null,null,null,null,null,null,"Kals am Großglockner"]
[null,null,null,null,null,null,null,null,null,null,null,null,null,null,null,null,null,null,null,null,null,null,null,null,null,null,null,null,null,null,null,null,null,null,null,null,null,null,null,null,null,null,null,null,null,null,null,null,null,null,null,null,null,null,null,null,"Kaltenbach"]
[null,null,null,null,null,null,null,null,null,null,null,null,null,null,null,null,null,null,null,null,null,null,null,null,null,null,null,null,null,null,null,null,null,null,null,null,null,null,null,null,null,null,null,null,null,null,null,null,null,null,null,null,null,null,null,null,"Kappl"]
[null,null,null,null,null,null,null,null,null,null,null,null,null,null,null,null,null,null,null,null,null,null,null,null,null,null,null,null,null,null,null,null,null,null,null,null,null,null,null,null,null,null,null,null,null,null,null,null,null,null,null,null,null,null,null,null,"Karres"]
[null,null,null,null,null,null,null,null,null,null,null,null,null,null,null,null,null,null,null,null,null,null,null,null,null,null,null,null,null,null,null,null,null,null,null,null,null,null,null,null,null,null,null,null,null,null,null,null,null,null,null,null,null,null,null,null,"Karrösten"]
[null,null,null,null,null,null,null,null,null,null,null,null,null,null,null,null,null,null,null,null,null,null,null,null,null,null,null,null,null,null,null,null,null,null,null,null,null,null,null,null,null,null,null,null,null,null,null,null,null,null,null,null,null,null,null,null,"Kartitsch"]
[null,null,null,null,null,null,null,null,null,null,null,null,null,null,null,null,null,null,null,null,null,null,null,null,null,null,null,null,null,null,null,null,null,null,null,null,null,null,null,null,null,null,null,null,null,null,null,null,null,null,null,null,null,null,null,null,"Kaunerberg"]
[null,null,null,null,null,null,null,null,null,null,null,null,null,null,null,null,null,null,null,null,null,null,null,null,null,null,null,null,null,null,null,null,null,null,null,null,null,null,null,null,null,null,null,null,null,null,null,null,null,null,null,null,null,null,null,null,"Kaunertal"]
[null,null,null,null,null,null,null,null,null,null,null,null,null,null,null,null,null,null,null,null,null,null,null,null,null,null,null,null,null,null,null,null,null,null,null,null,null,null,null,null,null,null,null,null,null,null,null,null,null,null,null,null,null,null,null,null,"Kauns"]
[null,null,null,null,null,null,null,null,null,null,null,null,null,null,null,null,null,null,null,null,null,null,null,null,null,null,null,null,null,null,null,null,null,null,null,null,null,null,null,null,null,null,null,null,null,null,null,null,null,null,null,null,null,null,null,null,"Kematen in Tirol"]
[null,null,null,null,null,null,null,null,null,null,null,null,null,null,null,null,null,null,null,null,null,null,null,null,null,null,null,null,null,null,null,null,null,null,null,null,null,null,null,null,null,null,null,null,null,null,null,null,null,null,null,null,null,null,null,null,"Kirchberg in Tirol"]
[null,null,null,null,null,null,null,null,null,null,null,null,null,null,null,null,null,null,null,null,null,null,null,null,null,null,null,null,null,null,null,null,null,null,null,null,null,null,null,null,null,null,null,null,null,null,null,null,null,null,null,null,null,null,null,null,"Kirchbichl"]
[null,null,null,null,null,null,null,null,null,null,null,null,null,null,null,null,null,null,null,null,null,null,null,null,null,null,null,null,null,null,null,null,null,null,null,null,null,null,null,null,null,null,null,null,null,null,null,null,null,null,null,null,null,null,null,null,"Kirchdorf in Tirol"]
[null,null,null,null,null,null,null,null,null,null,null,null,null,null,null,null,null,null,null,null,null,null,null,null,null,null,null,null,null,null,null,null,null,null,null,null,null,null,null,null,null,null,null,null,null,null,null,null,null,null,null,null,null,null,null,null,"Kitzbühel"]
[null,null,null,null,null,null,null,null,null,null,null,null,null,null,null,null,null,null,null,null,null,null,null,null,null,null,null,null,null,null,null,null,null,null,null,null,null,null,null,null,null,null,null,null,null,null,null,null,null,null,null,null,null,null,null,null,"Kolsass"]
[null,null,null,null,null,null,null,null,null,null,null,null,null,null,null,null,null,null,null,null,null,null,null,null,null,null,null,null,null,null,null,null,null,null,null,null,null,null,null,null,null,null,null,null,null,null,null,null,null,null,null,null,null,null,null,null,"Kolsassberg"]
[null,null,null,null,null,null,null,null,null,null,null,null,null,null,null,null,null,null,null,null,null,null,null,null,null,null,null,null,null,null,null,null,null,null,null,null,null,null,null,null,null,null,null,null,null,null,null,null,null,null,null,null,null,null,null,null,"Kössen"]
[null,null,null,null,null,null,null,null,null,null,null,null,null,null,null,null,null,null,null,null,null,null,null,null,null,null,null,null,null,null,null,null,null,null,null,null,null,null,null,null,null,null,null,null,null,null,null,null,null,null,null,null,null,null,null,null,"Kramsach"]
[null,null,null,null,null,null,null,null,null,null,null,null,null,null,null,null,null,null,null,null,null,null,null,null,null,null,null,null,null,null,null,null,null,null,null,null,null,null,null,null,null,null,null,null,null,null,null,null,null,null,null,null,null,null,null,null,"Kufstein"]
[null,null,null,null,null,null,null,null,null,null,null,null,null,null,null,null,null,null,null,null,null,null,null,null,null,null,null,null,null,null,null,null,null,null,null,null,null,null,null,null,null,null,null,null,null,null,null,null,null,null,null,null,null,null,null,null,"Kundl"]
[null,null,null,null,null,null,null,null,null,null,null,null,null,null,null,null,null,null,null,null,null,null,null,null,null,null,null,null,null,null,null,null,null,null,null,null,null,null,null,null,null,null,null,null,null,null,null,null,null,null,null,null,null,null,null,null,"Ladis"]
[null,null,null,null,null,null,null,null,null,null,null,null,null,null,null,null,null,null,null,null,null,null,null,null,null,null,null,null,null,null,null,null,null,null,null,null,null,null,null,null,null,null,null,null,null,null,null,null,null,null,null,null,null,null,null,null,"Landeck"]
[null,null,null,null,null,null,null,null,null,null,null,null,null,null,null,null,null,null,null,null,null,null,null,null,null,null,null,null,null,null,null,null,null,null,null,null,null,null,null,null,null,null,null,null,null,null,null,null,null,null,null,null,null,null,null,null,"Längenfeld"]
[null,null,null,null,null,null,null,null,null,null,null,null,null,null,null,null,null,null,null,null,null,null,null,null,null,null,null,null,null,null,null,null,null,null,null,null,null,null,null,null,null,null,null,null,null,null,null,null,null,null,null,null,null,null,null,null,"Langkampfen"]
[null,null,null,null,null,null,null,null,null,null,null,null,null,null,null,null,null,null,null,null,null,null,null,null,null,null,null,null,null,null,null,null,null,null,null,null,null,null,null,null,null,null,null,null,null,null,null,null,null,null,null,null,null,null,null,null,"Lans"]
[null,null,null,null,null,null,null,null,null,null,null,null,null,null,null,null,null,null,null,null,null,null,null,null,null,null,null,null,null,null,null,null,null,null,null,null,null,null,null,null,null,null,null,null,null,null,null,null,null,null,null,null,null,null,null,null,"Lavant"]
[null,null,null,null,null,null,null,null,null,null,null,null,null,null,null,null,null,null,null,null,null,null,null,null,null,null,null,null,null,null,null,null,null,null,null,null,null,null,null,null,null,null,null,null,null,null,null,null,null,null,null,null,null,null,null,null,"Lechaschau"]
[null,null,null,null,null,null,null,null,null,null,null,null,null,null,null,null,null,null,null,null,null,null,null,null,null,null,null,null,null,null,null,null,null,null,null,null,null,null,null,null,null,null,null,null,null,null,null,null,null,null,null,null,null,null,null,null,"Leisach"]
[null,null,null,null,null,null,null,null,null,null,null,null,null,null,null,null,null,null,null,null,null,null,null,null,null,null,null,null,null,null,null,null,null,null,null,null,null,null,null,null,null,null,null,null,null,null,null,null,null,null,null,null,null,null,null,null,"Lermoos"]
[null,null,null,null,null,null,null,null,null,null,null,null,null,null,null,null,null,null,null,null,null,null,null,null,null,null,null,null,null,null,null,null,null,null,null,null,null,null,null,null,null,null,null,null,null,null,null,null,null,null,null,null,null,null,null,null,"Leutasch"]
[null,null,null,null,null,null,null,null,null,null,null,null,null,null,null,null,null,null,null,null,null,null,null,null,null,null,null,null,null,null,null,null,null,null,null,null,null,null,null,null,null,null,null,null,null,null,null,null,null,null,null,null,null,null,null,null,"Lienz"]
[null,null,null,null,null,null,null,null,null,null,null,null,null,null,null,null,null,null,null,null,null,null,null,null,null,null,null,null,null,null,null,null,null,null,null,null,null,null,null,null,null,null,null,null,null,null,null,null,null,null,null,null,null,null,null,null,"Mariastein"]
[null,null,null,null,null,null,null,null,null,null,null,null,null,null,null,null,null,null,null,null,null,null,null,null,null,null,null,null,null,null,null,null,null,null,null,null,null,null,null,null,null,null,null,null,null,null,null,null,null,null,null,null,null,null,null,null,"Matrei am Brenner"]
[null,null,null,null,null,null,null,null,null,null,null,null,null,null,null,null,null,null,null,null,null,null,null,null,null,null,null,null,null,null,null,null,null,null,null,null,null,null,null,null,null,null,null,null,null,null,null,null,null,null,null,null,null,null,null,null,"Matrei in Osttirol"]
[null,null,null,null,null,null,null,null,null,null,null,null,null,null,null,null,null,null,null,null,null,null,null,null,null,null,null,null,null,null,null,null,null,null,null,null,null,null,null,null,null,null,null,null,null,null,null,null,null,null,null,null,null,null,null,null,"Mayrhofen"]
[null,null,null,null,null,null,null,null,null,null,null,null,null,null,null,null,null,null,null,null,null,null,null,null,null,null,null,null,null,null,null,null,null,null,null,null,null,null,null,null,null,null,null,null,null,null,null,null,null,null,null,null,null,null,null,null,"Mieders"]
[null,null,null,null,null,null,null,null,null,null,null,null,null,null,null,null,null,null,null,null,null,null,null,null,null,null,null,null,null,null,null,null,null,null,null,null,null,null,null,null,null,null,null,null,null,null,null,null,null,null,null,null,null,null,null,null,"Mieming"]
[null,null,null,null,null,null,null,null,null,null,null,null,null,null,null,null,null,null,null,null,null,null,null,null,null,null,null,null,null,null,null,null,null,null,null,null,null,null,null,null,null,null,null,null,null,null,null,null,null,null,null,null,null,null,null,null,"Mils"]
[null,null,null,null,null,null,null,null,null,null,null,null,null,null,null,null,null,null,null,null,null,null,null,null,null,null,null,null,null,null,null,null,null,null,null,null,null,null,null,null,null,null,null,null,null,null,null,null,null,null,null,null,null,null,null,null,"Mils bei Imst"]
[null,null,null,null,null,null,null,null,null,null,null,null,null,null,null,null,null,null,null,null,null,null,null,null,null,null,null,null,null,null,null,null,null,null,null,null,null,null,null,null,null,null,null,null,null,null,null,null,null,null,null,null,null,null,null,null,"Mötz"]
[null,null,null,null,null,null,null,null,null,null,null,null,null,null,null,null,null,null,null,null,null,null,null,null,null,null,null,null,null,null,null,null,null,null,null,null,null,null,null,null,null,null,null,null,null,null,null,null,null,null,null,null,null,null,null,null,"Mühlbachl"]
[null,null,null,null,null,null,null,null,null,null,null,null,null,null,null,null,null,null,null,null,null,null,null,null,null,null,null,null,null,null,null,null,null,null,null,null,null,null,null,null,null,null,null,null,null,null,null,null,null,null,null,null,null,null,null,null,"Münster"]
[null,null,null,null,null,null,null,null,null,null,null,null,null,null,null,null,null,null,null,null,null,null,null,null,null,null,null,null,null,null,null,null,null,null,null,null,null,null,null,null,null,null,null,null,null,null,null,null,null,null,null,null,null,null,null,null,"Musau"]
[null,null,null,null,null,null,null,null,null,null,null,null,null,null,null,null,null,null,null,null,null,null,null,null,null,null,null,null,null,null,null,null,null,null,null,null,null,null,null,null,null,null,null,null,null,null,null,null,null,null,null,null,null,null,null,null,"Mutters"]
[null,null,null,null,null,null,null,null,null,null,null,null,null,null,null,null,null,null,null,null,null,null,null,null,null,null,null,null,null,null,null,null,null,null,null,null,null,null,null,null,null,null,null,null,null,null,null,null,null,null,null,null,null,null,null,null,"Namlos"]
[null,null,null,null,null,null,null,null,null,null,null,null,null,null,null,null,null,null,null,null,null,null,null,null,null,null,null,null,null,null,null,null,null,null,null,null,null,null,null,null,null,null,null,null,null,null,null,null,null,null,null,null,null,null,null,null,"Nassereith"]
[null,null,null,null,null,null,null,null,null,null,null,null,null,null,null,null,null,null,null,null,null,null,null,null,null,null,null,null,null,null,null,null,null,null,null,null,null,null,null,null,null,null,null,null,null,null,null,null,null,null,null,null,null,null,null,null,"Natters"]
[null,null,null,null,null,null,null,null,null,null,null,null,null,null,null,null,null,null,null,null,null,null,null,null,null,null,null,null,null,null,null,null,null,null,null,null,null,null,null,null,null,null,null,null,null,null,null,null,null,null,null,null,null,null,null,null,"Nauders"]
[null,null,null,null,null,null,null,null,null,null,null,null,null,null,null,null,null,null,null,null,null,null,null,null,null,null,null,null,null,null,null,null,null,null,null,null,null,null,null,null,null,null,null,null,null,null,null,null,null,null,null,null,null,null,null,null,"Navis"]
[null,null,null,null,null,null,null,null,null,null,null,null,null,null,null,null,null,null,null,null,null,null,null,null,null,null,null,null,null,null,null,null,null,null,null,null,null,null,null,null,null,null,null,null,null,null,null,null,null,null,null,null,null,null,null,null,"Nesselwängle"]
[null,null,null,null,null,null,null,null,null,null,null,null,null,null,null,null,null,null,null,null,null,null,null,null,null,null,null,null,null,null,null,null,null,null,null,null,null,null,null,null,null,null,null,null,null,null,null,null,null,null,null,null,null,null,null,null,"Neustift im Stubaital"]
[null,null,null,null,null,null,null,null,null,null,null,null,null,null,null,null,null,null,null,null,null,null,null,null,null,null,null,null,null,null,null,null,null,null,null,null,null,null,null,null,null,null,null,null,null,null,null,null,null,null,null,null,null,null,null,null,"Niederndorf"]
[null,null,null,null,null,null,null,null,null,null,null,null,null,null,null,null,null,null,null,null,null,null,null,null,null,null,null,null,null,null,null,null,null,null,null,null,null,null,null,null,null,null,null,null,null,null,null,null,null,null,null,null,null,null,null,null,"Niederndorferberg"]
[null,null,null,null,null,null,null,null,null,null,null,null,null,null,null,null,null,null,null,null,null,null,null,null,null,null,null,null,null,null,null,null,null,null,null,null,null,null,null,null,null,null,null,null,null,null,null,null,null,null,null,null,null,null,null,null,"Nikolsdorf"]
[null,null,null,null,null,null,null,null,null,null,null,null,null,null,null,null,null,null,null,null,null,null,null,null,null,null,null,null,null,null,null,null,null,null,null,null,null,null,null,null,null,null,null,null,null,null,null,null,null,null,null,null,null,null,null,null,"Nußdorf-Debant"]
[null,null,null,null,null,null,null,null,null,null,null,null,null,null,null,null,null,null,null,null,null,null,null,null,null,null,null,null,null,null,null,null,null,null,null,null,null,null,null,null,null,null,null,null,null,null,null,null,null,null,null,null,null,null,null,null,"Oberhofen im Inntal"]
[null,null,null,null,null,null,null,null,null,null,null,null,null,null,null,null,null,null,null,null,null,null,null,null,null,null,null,null,null,null,null,null,null,null,null,null,null,null,null,null,null,null,null,null,null,null,null,null,null,null,null,null,null,null,null,null,"Oberlienz"]
[null,null,null,null,null,null,null,null,null,null,null,null,null,null,null,null,null,null,null,null,null,null,null,null,null,null,null,null,null,null,null,null,null,null,null,null,null,null,null,null,null,null,null,null,null,null,null,null,null,null,null,null,null,null,null,null,"Obernberg am Brenner"]
[null,null,null,null,null,null,null,null,null,null,null,null,null,null,null,null,null,null,null,null,null,null,null,null,null,null,null,null,null,null,null,null,null,null,null,null,null,null,null,null,null,null,null,null,null,null,null,null,null,null,null,null,null,null,null,null,"Oberndorf in Tirol"]
[null,null,null,null,null,null,null,null,null,null,null,null,null,null,null,null,null,null,null,null,null,null,null,null,null,null,null,null,null,null,null,null,null,null,null,null,null,null,null,null,null,null,null,null,null,null,null,null,null,null,null,null,null,null,null,null,"Oberperfuss"]
[null,null,null,null,null,null,null,null,null,null,null,null,null,null,null,null,null,null,null,null,null,null,null,null,null,null,null,null,null,null,null,null,null,null,null,null,null,null,null,null,null,null,null,null,null,null,null,null,null,null,null,null,null,null,null,null,"Obertilliach"]
[null,null,null,null,null,null,null,null,null,null,null,null,null,null,null,null,null,null,null,null,null,null,null,null,null,null,null,null,null,null,null,null,null,null,null,null,null,null,null,null,null,null,null,null,null,null,null,null,null,null,null,null,null,null,null,null,"Obsteig"]
[null,null,null,null,null,null,null,null,null,null,null,null,null,null,null,null,null,null,null,null,null,null,null,null,null,null,null,null,null,null,null,null,null,null,null,null,null,null,null,null,null,null,null,null,null,null,null,null,null,null,null,null,null,null,null,null,"Oetz"]
[null,null,null,null,null,null,null,null,null,null,null,null,null,null,null,null,null,null,null,null,null,null,null,null,null,null,null,null,null,null,null,null,null,null,null,null,null,null,null,null,null,null,null,null,null,null,null,null,null,null,null,null,null,null,null,null,"Patsch"]
[null,null,null,null,null,null,null,null,null,null,null,null,null,null,null,null,null,null,null,null,null,null,null,null,null,null,null,null,null,null,null,null,null,null,null,null,null,null,null,null,null,null,null,null,null,null,null,null,null,null,null,null,null,null,null,null,"Pettnau"]
[null,null,null,null,null,null,null,null,null,null,null,null,null,null,null,null,null,null,null,null,null,null,null,null,null,null,null,null,null,null,null,null,null,null,null,null,null,null,null,null,null,null,null,null,null,null,null,null,null,null,null,null,null,null,null,null,"Pettneu am Arlberg"]
[null,null,null,null,null,null,null,null,null,null,null,null,null,null,null,null,null,null,null,null,null,null,null,null,null,null,null,null,null,null,null,null,null,null,null,null,null,null,null,null,null,null,null,null,null,null,null,null,null,null,null,null,null,null,null,null,"Pfaffenhofen"]
[null,null,null,null,null,null,null,null,null,null,null,null,null,null,null,null,null,null,null,null,null,null,null,null,null,null,null,null,null,null,null,null,null,null,null,null,null,null,null,null,null,null,null,null,null,null,null,null,null,null,null,null,null,null,null,null,"Pfafflar"]
[null,null,null,null,null,null,null,null,null,null,null,null,null,null,null,null,null,null,null,null,null,null,null,null,null,null,null,null,null,null,null,null,null,null,null,null,null,null,null,null,null,null,null,null,null,null,null,null,null,null,null,null,null,null,null,null,"Pflach"]
[null,null,null,null,null,null,null,null,null,null,null,null,null,null,null,null,null,null,null,null,null,null,null,null,null,null,null,null,null,null,null,null,null,null,null,null,null,null,null,null,null,null,null,null,null,null,null,null,null,null,null,null,null,null,null,null,"Pfons"]
[null,null,null,null,null,null,null,null,null,null,null,null,null,null,null,null,null,null,null,null,null,null,null,null,null,null,null,null,null,null,null,null,null,null,null,null,null,null,null,null,null,null,null,null,null,null,null,null,null,null,null,null,null,null,null,null,"Pfunds"]
[null,null,null,null,null,null,null,null,null,null,null,null,null,null,null,null,null,null,null,null,null,null,null,null,null,null,null,null,null,null,null,null,null,null,null,null,null,null,null,null,null,null,null,null,null,null,null,null,null,null,null,null,null,null,null,null,"Pians"]
[null,null,null,null,null,null,null,null,null,null,null,null,null,null,null,null,null,null,null,null,null,null,null,null,null,null,null,null,null,null,null,null,null,null,null,null,null,null,null,null,null,null,null,null,null,null,null,null,null,null,null,null,null,null,null,null,"Pill"]
[null,null,null,null,null,null,null,null,null,null,null,null,null,null,null,null,null,null,null,null,null,null,null,null,null,null,null,null,null,null,null,null,null,null,null,null,null,null,null,null,null,null,null,null,null,null,null,null,null,null,null,null,null,null,null,null,"Pinswang"]
[null,null,null,null,null,null,null,null,null,null,null,null,null,null,null,null,null,null,null,null,null,null,null,null,null,null,null,null,null,null,null,null,null,null,null,null,null,null,null,null,null,null,null,null,null,null,null,null,null,null,null,null,null,null,null,null,"Polling in Tirol"]
[null,null,null,null,null,null,null,null,null,null,null,null,null,null,null,null,null,null,null,null,null,null,null,null,null,null,null,null,null,null,null,null,null,null,null,null,null,null,null,null,null,null,null,null,null,null,null,null,null,null,null,null,null,null,null,null,"Prägraten am Großvenediger"]
[null,null,null,null,null,null,null,null,null,null,null,null,null,null,null,null,null,null,null,null,null,null,null,null,null,null,null,null,null,null,null,null,null,null,null,null,null,null,null,null,null,null,null,null,null,null,null,null,null,null,null,null,null,null,null,null,"Prutz"]
[null,null,null,null,null,null,null,null,null,null,null,null,null,null,null,null,null,null,null,null,null,null,null,null,null,null,null,null,null,null,null,null,null,null,null,null,null,null,null,null,null,null,null,null,null,null,null,null,null,null,null,null,null,null,null,null,"Radfeld"]
[null,null,null,null,null,null,null,null,null,null,null,null,null,null,null,null,null,null,null,null,null,null,null,null,null,null,null,null,null,null,null,null,null,null,null,null,null,null,null,null,null,null,null,null,null,null,null,null,null,null,null,null,null,null,null,null,"Ramsau im Zillertal"]
[null,null,null,null,null,null,null,null,null,null,null,null,null,null,null,null,null,null,null,null,null,null,null,null,null,null,null,null,null,null,null,null,null,null,null,null,null,null,null,null,null,null,null,null,null,null,null,null,null,null,null,null,null,null,null,null,"Ranggen"]
[null,null,null,null,null,null,null,null,null,null,null,null,null,null,null,null,null,null,null,null,null,null,null,null,null,null,null,null,null,null,null,null,null,null,null,null,null,null,null,null,null,null,null,null,null,null,null,null,null,null,null,null,null,null,null,null,"Rattenberg"]
[null,null,null,null,null,null,null,null,null,null,null,null,null,null,null,null,null,null,null,null,null,null,null,null,null,null,null,null,null,null,null,null,null,null,null,null,null,null,null,null,null,null,null,null,null,null,null,null,null,null,null,null,null,null,null,null,"Reith bei Kitzbühel"]
[null,null,null,null,null,null,null,null,null,null,null,null,null,null,null,null,null,null,null,null,null,null,null,null,null,null,null,null,null,null,null,null,null,null,null,null,null,null,null,null,null,null,null,null,null,null,null,null,null,null,null,null,null,null,null,null,"Reith bei Seefeld"]
[null,null,null,null,null,null,null,null,null,null,null,null,null,null,null,null,null,null,null,null,null,null,null,null,null,null,null,null,null,null,null,null,null,null,null,null,null,null,null,null,null,null,null,null,null,null,null,null,null,null,null,null,null,null,null,null,"Reith im Alpbachtal"]
[null,null,null,null,null,null,null,null,null,null,null,null,null,null,null,null,null,null,null,null,null,null,null,null,null,null,null,null,null,null,null,null,null,null,null,null,null,null,null,null,null,null,null,null,null,null,null,null,null,null,null,null,null,null,null,null,"Rettenschöss"]
[null,null,null,null,null,null,null,null,null,null,null,null,null,null,null,null,null,null,null,null,null,null,null,null,null,null,null,null,null,null,null,null,null,null,null,null,null,null,null,null,null,null,null,null,null,null,null,null,null,null,null,null,null,null,null,null,"Reutte"]
[null,null,null,null,null,null,null,null,null,null,null,null,null,null,null,null,null,null,null,null,null,null,null,null,null,null,null,null,null,null,null,null,null,null,null,null,null,null,null,null,null,null,null,null,null,null,null,null,null,null,null,null,null,null,null,null,"Ried im Oberinntal"]
[null,null,null,null,null,null,null,null,null,null,null,null,null,null,null,null,null,null,null,null,null,null,null,null,null,null,null,null,null,null,null,null,null,null,null,null,null,null,null,null,null,null,null,null,null,null,null,null,null,null,null,null,null,null,null,null,"Ried im Zillertal"]
[null,null,null,null,null,null,null,null,null,null,null,null,null,null,null,null,null,null,null,null,null,null,null,null,null,null,null,null,null,null,null,null,null,null,null,null,null,null,null,null,null,null,null,null,null,null,null,null,null,null,null,null,null,null,null,null,"Rietz"]
[null,null,null,null,null,null,null,null,null,null,null,null,null,null,null,null,null,null,null,null,null,null,null,null,null,null,null,null,null,null,null,null,null,null,null,null,null,null,null,null,null,null,null,null,null,null,null,null,null,null,null,null,null,null,null,null,"Rinn"]
[null,null,null,null,null,null,null,null,null,null,null,null,null,null,null,null,null,null,null,null,null,null,null,null,null,null,null,null,null,null,null,null,null,null,null,null,null,null,null,null,null,null,null,null,null,null,null,null,null,null,null,null,null,null,null,null,"Rohrberg"]
[null,null,null,null,null,null,null,null,null,null,null,null,null,null,null,null,null,null,null,null,null,null,null,null,null,null,null,null,null,null,null,null,null,null,null,null,null,null,null,null,null,null,null,null,null,null,null,null,null,null,null,null,null,null,null,null,"Roppen"]
[null,null,null,null,null,null,null,null,null,null,null,null,null,null,null,null,null,null,null,null,null,null,null,null,null,null,null,null,null,null,null,null,null,null,null,null,null,null,null,null,null,null,null,null,null,null,null,null,null,null,null,null,null,null,null,null,"Rum"]
[null,null,null,null,null,null,null,null,null,null,null,null,null,null,null,null,null,null,null,null,null,null,null,null,null,null,null,null,null,null,null,null,null,null,null,null,null,null,null,null,null,null,null,null,null,null,null,null,null,null,null,null,null,null,null,null,"Sautens"]
[null,null,null,null,null,null,null,null,null,null,null,null,null,null,null,null,null,null,null,null,null,null,null,null,null,null,null,null,null,null,null,null,null,null,null,null,null,null,null,null,null,null,null,null,null,null,null,null,null,null,null,null,null,null,null,null,"Scharnitz"]
[null,null,null,null,null,null,null,null,null,null,null,null,null,null,null,null,null,null,null,null,null,null,null,null,null,null,null,null,null,null,null,null,null,null,null,null,null,null,null,null,null,null,null,null,null,null,null,null,null,null,null,null,null,null,null,null,"Schattwald"]
[null,null,null,null,null,null,null,null,null,null,null,null,null,null,null,null,null,null,null,null,null,null,null,null,null,null,null,null,null,null,null,null,null,null,null,null,null,null,null,null,null,null,null,null,null,null,null,null,null,null,null,null,null,null,null,null,"Scheffau am Wilden Kaiser"]
[null,null,null,null,null,null,null,null,null,null,null,null,null,null,null,null,null,null,null,null,null,null,null,null,null,null,null,null,null,null,null,null,null,null,null,null,null,null,null,null,null,null,null,null,null,null,null,null,null,null,null,null,null,null,null,null,"Schlaiten"]
[null,null,null,null,null,null,null,null,null,null,null,null,null,null,null,null,null,null,null,null,null,null,null,null,null,null,null,null,null,null,null,null,null,null,null,null,null,null,null,null,null,null,null,null,null,null,null,null,null,null,null,null,null,null,null,null,"Schlitters"]
[null,null,null,null,null,null,null,null,null,null,null,null,null,null,null,null,null,null,null,null,null,null,null,null,null,null,null,null,null,null,null,null,null,null,null,null,null,null,null,null,null,null,null,null,null,null,null,null,null,null,null,null,null,null,null,null,"Schmirn"]
[null,null,null,null,null,null,null,null,null,null,null,null,null,null,null,null,null,null,null,null,null,null,null,null,null,null,null,null,null,null,null,null,null,null,null,null,null,null,null,null,null,null,null,null,null,null,null,null,null,null,null,null,null,null,null,null,"Schönberg im Stubaital"]
[null,null,null,null,null,null,null,null,null,null,null,null,null,null,null,null,null,null,null,null,null,null,null,null,null,null,null,null,null,null,null,null,null,null,null,null,null,null,null,null,null,null,null,null,null,null,null,null,null,null,null,null,null,null,null,null,"Schönwies"]
[null,null,null,null,null,null,null,null,null,null,null,null,null,null,null,null,null,null,null,null,null,null,null,null,null,null,null,null,null,null,null,null,null,null,null,null,null,null,null,null,null,null,null,null,null,null,null,null,null,null,null,null,null,null,null,null,"Schwaz"]
[null,null,null,null,null,null,null,null,null,null,null,null,null,null,null,null,null,null,null,null,null,null,null,null,null,null,null,null,null,null,null,null,null,null,null,null,null,null,null,null,null,null,null,null,null,null,null,null,null,null,null,null,null,null,null,null,"Schwendau"]
[null,null,null,null,null,null,null,null,null,null,null,null,null,null,null,null,null,null,null,null,null,null,null,null,null,null,null,null,null,null,null,null,null,null,null,null,null,null,null,null,null,null,null,null,null,null,null,null,null,null,null,null,null,null,null,null,"Schwendt"]
[null,null,null,null,null,null,null,null,null,null,null,null,null,null,null,null,null,null,null,null,null,null,null,null,null,null,null,null,null,null,null,null,null,null,null,null,null,null,null,null,null,null,null,null,null,null,null,null,null,null,null,null,null,null,null,null,"Schwoich"]
[null,null,null,null,null,null,null,null,null,null,null,null,null,null,null,null,null,null,null,null,null,null,null,null,null,null,null,null,null,null,null,null,null,null,null,null,null,null,null,null,null,null,null,null,null,null,null,null,null,null,null,null,null,null,null,null,"See"]
[null,null,null,null,null,null,null,null,null,null,null,null,null,null,null,null,null,null,null,null,null,null,null,null,null,null,null,null,null,null,null,null,null,null,null,null,null,null,null,null,null,null,null,null,null,null,null,null,null,null,null,null,null,null,null,null,"Seefeld in Tirol"]
[null,null,null,null,null,null,null,null,null,null,null,null,null,null,null,null,null,null,null,null,null,null,null,null,null,null,null,null,null,null,null,null,null,null,null,null,null,null,null,null,null,null,null,null,null,null,null,null,null,null,null,null,null,null,null,null,"Sellrain"]
[null,null,null,null,null,null,null,null,null,null,null,null,null,null,null,null,null,null,null,null,null,null,null,null,null,null,null,null,null,null,null,null,null,null,null,null,null,null,null,null,null,null,null,null,null,null,null,null,null,null,null,null,null,null,null,null,"Serfaus"]
[null,null,null,null,null,null,null,null,null,null,null,null,null,null,null,null,null,null,null,null,null,null,null,null,null,null,null,null,null,null,null,null,null,null,null,null,null,null,null,null,null,null,null,null,null,null,null,null,null,null,null,null,null,null,null,null,"Sillian"]
[null,null,null,null,null,null,null,null,null,null,null,null,null,null,null,null,null,null,null,null,null,null,null,null,null,null,null,null,null,null,null,null,null,null,null,null,null,null,null,null,null,null,null,null,null,null,null,null,null,null,null,null,null,null,null,null,"Silz"]
[null,null,null,null,null,null,null,null,null,null,null,null,null,null,null,null,null,null,null,null,null,null,null,null,null,null,null,null,null,null,null,null,null,null,null,null,null,null,null,null,null,null,null,null,null,null,null,null,null,null,null,null,null,null,null,null,"Sistrans"]
[null,null,null,null,null,null,null,null,null,null,null,null,null,null,null,null,null,null,null,null,null,null,null,null,null,null,null,null,null,null,null,null,null,null,null,null,null,null,null,null,null,null,null,null,null,null,null,null,null,null,null,null,null,null,null,null,"Sölden"]
[null,null,null,null,null,null,null,null,null,null,null,null,null,null,null,null,null,null,null,null,null,null,null,null,null,null,null,null,null,null,null,null,null,null,null,null,null,null,null,null,null,null,null,null,null,null,null,null,null,null,null,null,null,null,null,null,"Söll"]
[null,null,null,null,null,null,null,null,null,null,null,null,null,null,null,null,null,null,null,null,null,null,null,null,null,null,null,null,null,null,null,null,null,null,null,null,null,null,null,null,null,null,null,null,null,null,null,null,null,null,null,null,null,null,null,null,"Spiss"]
[null,null,null,null,null,null,null,null,null,null,null,null,null,null,null,null,null,null,null,null,null,null,null,null,null,null,null,null,null,null,null,null,null,null,null,null,null,null,null,null,null,null,null,null,null,null,null,null,null,null,null,null,null,null,null,null,"St.Anton am Arlberg"]
[null,null,null,null,null,null,null,null,null,null,null,null,null,null,null,null,null,null,null,null,null,null,null,null,null,null,null,null,null,null,null,null,null,null,null,null,null,null,null,null,null,null,null,null,null,null,null,null,null,null,null,null,null,null,null,null,"St.Jakob in Defereggen"]
[null,null,null,null,null,null,null,null,null,null,null,null,null,null,null,null,null,null,null,null,null,null,null,null,null,null,null,null,null,null,null,null,null,null,null,null,null,null,null,null,null,null,null,null,null,null,null,null,null,null,null,null,null,null,null,null,"St.Jakob in Haus"]
[null,null,null,null,null,null,null,null,null,null,null,null,null,null,null,null,null,null,null,null,null,null,null,null,null,null,null,null,null,null,null,null,null,null,null,null,null,null,null,null,null,null,null,null,null,null,null,null,null,null,null,null,null,null,null,null,"St.Johann im Walde"]
[null,null,null,null,null,null,null,null,null,null,null,null,null,null,null,null,null,null,null,null,null,null,null,null,null,null,null,null,null,null,null,null,null,null,null,null,null,null,null,null,null,null,null,null,null,null,null,null,null,null,null,null,null,null,null,null,"St.Johann in Tirol"]
[null,null,null,null,null,null,null,null,null,null,null,null,null,null,null,null,null,null,null,null,null,null,null,null,null,null,null,null,null,null,null,null,null,null,null,null,null,null,null,null,null,null,null,null,null,null,null,null,null,null,null,null,null,null,null,null,"St.Leonhard im Pitztal"]
[null,null,null,null,null,null,null,null,null,null,null,null,null,null,null,null,null,null,null,null,null,null,null,null,null,null,null,null,null,null,null,null,null,null,null,null,null,null,null,null,null,null,null,null,null,null,null,null,null,null,null,null,null,null,null,null,"St.Sigmund im Sellrain"]
[null,null,null,null,null,null,null,null,null,null,null,null,null,null,null,null,null,null,null,null,null,null,null,null,null,null,null,null,null,null,null,null,null,null,null,null,null,null,null,null,null,null,null,null,null,null,null,null,null,null,null,null,null,null,null,null,"St.Ulrich am Pillersee"]
[null,null,null,null,null,null,null,null,null,null,null,null,null,null,null,null,null,null,null,null,null,null,null,null,null,null,null,null,null,null,null,null,null,null,null,null,null,null,null,null,null,null,null,null,null,null,null,null,null,null,null,null,null,null,null,null,"St.Veit in Defereggen"]
[null,null,null,null,null,null,null,null,null,null,null,null,null,null,null,null,null,null,null,null,null,null,null,null,null,null,null,null,null,null,null,null,null,null,null,null,null,null,null,null,null,null,null,null,null,null,null,null,null,null,null,null,null,null,null,null,"Stams"]
[null,null,null,null,null,null,null,null,null,null,null,null,null,null,null,null,null,null,null,null,null,null,null,null,null,null,null,null,null,null,null,null,null,null,null,null,null,null,null,null,null,null,null,null,null,null,null,null,null,null,null,null,null,null,null,null,"Stans"]
[null,null,null,null,null,null,null,null,null,null,null,null,null,null,null,null,null,null,null,null,null,null,null,null,null,null,null,null,null,null,null,null,null,null,null,null,null,null,null,null,null,null,null,null,null,null,null,null,null,null,null,null,null,null,null,null,"Stanz bei Landeck"]
[null,null,null,null,null,null,null,null,null,null,null,null,null,null,null,null,null,null,null,null,null,null,null,null,null,null,null,null,null,null,null,null,null,null,null,null,null,null,null,null,null,null,null,null,null,null,null,null,null,null,null,null,null,null,null,null,"Stanzach"]
[null,null,null,null,null,null,null,null,null,null,null,null,null,null,null,null,null,null,null,null,null,null,null,null,null,null,null,null,null,null,null,null,null,null,null,null,null,null,null,null,null,null,null,null,null,null,null,null,null,null,null,null,null,null,null,null,"Steeg"]
[null,null,null,null,null,null,null,null,null,null,null,null,null,null,null,null,null,null,null,null,null,null,null,null,null,null,null,null,null,null,null,null,null,null,null,null,null,null,null,null,null,null,null,null,null,null,null,null,null,null,null,null,null,null,null,null,"Steinach am Brenner"]
[null,null,null,null,null,null,null,null,null,null,null,null,null,null,null,null,null,null,null,null,null,null,null,null,null,null,null,null,null,null,null,null,null,null,null,null,null,null,null,null,null,null,null,null,null,null,null,null,null,null,null,null,null,null,null,null,"Steinberg am Rofan"]
[null,null,null,null,null,null,null,null,null,null,null,null,null,null,null,null,null,null,null,null,null,null,null,null,null,null,null,null,null,null,null,null,null,null,null,null,null,null,null,null,null,null,null,null,null,null,null,null,null,null,null,null,null,null,null,null,"Strass im Zillertal"]
[null,null,null,null,null,null,null,null,null,null,null,null,null,null,null,null,null,null,null,null,null,null,null,null,null,null,null,null,null,null,null,null,null,null,null,null,null,null,null,null,null,null,null,null,null,null,null,null,null,null,null,null,null,null,null,null,"Strassen"]
[null,null,null,null,null,null,null,null,null,null,null,null,null,null,null,null,null,null,null,null,null,null,null,null,null,null,null,null,null,null,null,null,null,null,null,null,null,null,null,null,null,null,null,null,null,null,null,null,null,null,null,null,null,null,null,null,"Strengen"]
[null,null,null,null,null,null,null,null,null,null,null,null,null,null,null,null,null,null,null,null,null,null,null,null,null,null,null,null,null,null,null,null,null,null,null,null,null,null,null,null,null,null,null,null,null,null,null,null,null,null,null,null,null,null,null,null,"Stumm"]
[null,null,null,null,null,null,null,null,null,null,null,null,null,null,null,null,null,null,null,null,null,null,null,null,null,null,null,null,null,null,null,null,null,null,null,null,null,null,null,null,null,null,null,null,null,null,null,null,null,null,null,null,null,null,null,null,"Stummerberg"]
[null,null,null,null,null,null,null,null,null,null,null,null,null,null,null,null,null,null,null,null,null,null,null,null,null,null,null,null,null,null,null,null,null,null,null,null,null,null,null,null,null,null,null,null,null,null,null,null,null,null,null,null,null,null,null,null,"Tannheim"]
[null,null,null,null,null,null,null,null,null,null,null,null,null,null,null,null,null,null,null,null,null,null,null,null,null,null,null,null,null,null,null,null,null,null,null,null,null,null,null,null,null,null,null,null,null,null,null,null,null,null,null,null,null,null,null,null,"Tarrenz"]
[null,null,null,null,null,null,null,null,null,null,null,null,null,null,null,null,null,null,null,null,null,null,null,null,null,null,null,null,null,null,null,null,null,null,null,null,null,null,null,null,null,null,null,null,null,null,null,null,null,null,null,null,null,null,null,null,"Telfes im Stubai"]
[null,null,null,null,null,null,null,null,null,null,null,null,null,null,null,null,null,null,null,null,null,null,null,null,null,null,null,null,null,null,null,null,null,null,null,null,null,null,null,null,null,null,null,null,null,null,null,null,null,null,null,null,null,null,null,null,"Telfs"]
[null,null,null,null,null,null,null,null,null,null,null,null,null,null,null,null,null,null,null,null,null,null,null,null,null,null,null,null,null,null,null,null,null,null,null,null,null,null,null,null,null,null,null,null,null,null,null,null,null,null,null,null,null,null,null,null,"Terfens"]
[null,null,null,null,null,null,null,null,null,null,null,null,null,null,null,null,null,null,null,null,null,null,null,null,null,null,null,null,null,null,null,null,null,null,null,null,null,null,null,null,null,null,null,null,null,null,null,null,null,null,null,null,null,null,null,null,"Thaur"]
[null,null,null,null,null,null,null,null,null,null,null,null,null,null,null,null,null,null,null,null,null,null,null,null,null,null,null,null,null,null,null,null,null,null,null,null,null,null,null,null,null,null,null,null,null,null,null,null,null,null,null,null,null,null,null,null,"Thiersee"]
[null,null,null,null,null,null,null,null,null,null,null,null,null,null,null,null,null,null,null,null,null,null,null,null,null,null,null,null,null,null,null,null,null,null,null,null,null,null,null,null,null,null,null,null,null,null,null,null,null,null,null,null,null,null,null,null,"Thurn"]
[null,null,null,null,null,null,null,null,null,null,null,null,null,null,null,null,null,null,null,null,null,null,null,null,null,null,null,null,null,null,null,null,null,null,null,null,null,null,null,null,null,null,null,null,null,null,null,null,null,null,null,null,null,null,null,null,"Tobadill"]
[null,null,null,null,null,null,null,null,null,null,null,null,null,null,null,null,null,null,null,null,null,null,null,null,null,null,null,null,null,null,null,null,null,null,null,null,null,null,null,null,null,null,null,null,null,null,null,null,null,null,null,null,null,null,null,null,"Tösens"]
[null,null,null,null,null,null,null,null,null,null,null,null,null,null,null,null,null,null,null,null,null,null,null,null,null,null,null,null,null,null,null,null,null,null,null,null,null,null,null,null,null,null,null,null,null,null,null,null,null,null,null,null,null,null,null,null,"Trins"]
[null,null,null,null,null,null,null,null,null,null,null,null,null,null,null,null,null,null,null,null,null,null,null,null,null,null,null,null,null,null,null,null,null,null,null,null,null,null,null,null,null,null,null,null,null,null,null,null,null,null,null,null,null,null,null,null,"Tristach"]
[null,null,null,null,null,null,null,null,null,null,null,null,null,null,null,null,null,null,null,null,null,null,null,null,null,null,null,null,null,null,null,null,null,null,null,null,null,null,null,null,null,null,null,null,null,null,null,null,null,null,null,null,null,null,null,null,"Tulfes"]
[null,null,null,null,null,null,null,null,null,null,null,null,null,null,null,null,null,null,null,null,null,null,null,null,null,null,null,null,null,null,null,null,null,null,null,null,null,null,null,null,null,null,null,null,null,null,null,null,null,null,null,null,null,null,null,null,"Tux"]
[null,null,null,null,null,null,null,null,null,null,null,null,null,null,null,null,null,null,null,null,null,null,null,null,null,null,null,null,null,null,null,null,null,null,null,null,null,null,null,null,null,null,null,null,null,null,null,null,null,null,null,null,null,null,null,null,"Uderns"]
[null,null,null,null,null,null,null,null,null,null,null,null,null,null,null,null,null,null,null,null,null,null,null,null,null,null,null,null,null,null,null,null,null,null,null,null,null,null,null,null,null,null,null,null,null,null,null,null,null,null,null,null,null,null,null,null,"Umhausen"]
[null,null,null,null,null,null,null,null,null,null,null,null,null,null,null,null,null,null,null,null,null,null,null,null,null,null,null,null,null,null,null,null,null,null,null,null,null,null,null,null,null,null,null,null,null,null,null,null,null,null,null,null,null,null,null,null,"Unterperfuss"]
[null,null,null,null,null,null,null,null,null,null,null,null,null,null,null,null,null,null,null,null,null,null,null,null,null,null,null,null,null,null,null,null,null,null,null,null,null,null,null,null,null,null,null,null,null,null,null,null,null,null,null,null,null,null,null,null,"Untertilliach"]
[null,null,null,null,null,null,null,null,null,null,null,null,null,null,null,null,null,null,null,null,null,null,null,null,null,null,null,null,null,null,null,null,null,null,null,null,null,null,null,null,null,null,null,null,null,null,null,null,null,null,null,null,null,null,null,null,"Vals"]
[null,null,null,null,null,null,null,null,null,null,null,null,null,null,null,null,null,null,null,null,null,null,null,null,null,null,null,null,null,null,null,null,null,null,null,null,null,null,null,null,null,null,null,null,null,null,null,null,null,null,null,null,null,null,null,null,"Vils"]
[null,null,null,null,null,null,null,null,null,null,null,null,null,null,null,null,null,null,null,null,null,null,null,null,null,null,null,null,null,null,null,null,null,null,null,null,null,null,null,null,null,null,null,null,null,null,null,null,null,null,null,null,null,null,null,null,"Virgen"]
[null,null,null,null,null,null,null,null,null,null,null,null,null,null,null,null,null,null,null,null,null,null,null,null,null,null,null,null,null,null,null,null,null,null,null,null,null,null,null,null,null,null,null,null,null,null,null,null,null,null,null,null,null,null,null,null,"Volders"]
[null,null,null,null,null,null,null,null,null,null,null,null,null,null,null,null,null,null,null,null,null,null,null,null,null,null,null,null,null,null,null,null,null,null,null,null,null,null,null,null,null,null,null,null,null,null,null,null,null,null,null,null,null,null,null,null,"Völs"]
[null,null,null,null,null,null,null,null,null,null,null,null,null,null,null,null,null,null,null,null,null,null,null,null,null,null,null,null,null,null,null,null,null,null,null,null,null,null,null,null,null,null,null,null,null,null,null,null,null,null,null,null,null,null,null,null,"Vomp"]
[null,null,null,null,null,null,null,null,null,null,null,null,null,null,null,null,null,null,null,null,null,null,null,null,null,null,null,null,null,null,null,null,null,null,null,null,null,null,null,null,null,null,null,null,null,null,null,null,null,null,null,null,null,null,null,null,"Vorderhornbach"]
[null,null,null,null,null,null,null,null,null,null,null,null,null,null,null,null,null,null,null,null,null,null,null,null,null,null,null,null,null,null,null,null,null,null,null,null,null,null,null,null,null,null,null,null,null,null,null,null,null,null,null,null,null,null,null,null,"Waidring"]
[null,null,null,null,null,null,null,null,null,null,null,null,null,null,null,null,null,null,null,null,null,null,null,null,null,null,null,null,null,null,null,null,null,null,null,null,null,null,null,null,null,null,null,null,null,null,null,null,null,null,null,null,null,null,null,null,"Walchsee"]
[null,null,null,null,null,null,null,null,null,null,null,null,null,null,null,null,null,null,null,null,null,null,null,null,null,null,null,null,null,null,null,null,null,null,null,null,null,null,null,null,null,null,null,null,null,null,null,null,null,null,null,null,null,null,null,null,"Wängle"]
[null,null,null,null,null,null,null,null,null,null,null,null,null,null,null,null,null,null,null,null,null,null,null,null,null,null,null,null,null,null,null,null,null,null,null,null,null,null,null,null,null,null,null,null,null,null,null,null,null,null,null,null,null,null,null,null,"Wattenberg"]
[null,null,null,null,null,null,null,null,null,null,null,null,null,null,null,null,null,null,null,null,null,null,null,null,null,null,null,null,null,null,null,null,null,null,null,null,null,null,null,null,null,null,null,null,null,null,null,null,null,null,null,null,null,null,null,null,"Wattens"]
[null,null,null,null,null,null,null,null,null,null,null,null,null,null,null,null,null,null,null,null,null,null,null,null,null,null,null,null,null,null,null,null,null,null,null,null,null,null,null,null,null,null,null,null,null,null,null,null,null,null,null,null,null,null,null,null,"Weer"]
[null,null,null,null,null,null,null,null,null,null,null,null,null,null,null,null,null,null,null,null,null,null,null,null,null,null,null,null,null,null,null,null,null,null,null,null,null,null,null,null,null,null,null,null,null,null,null,null,null,null,null,null,null,null,null,null,"Weerberg"]
[null,null,null,null,null,null,null,null,null,null,null,null,null,null,null,null,null,null,null,null,null,null,null,null,null,null,null,null,null,null,null,null,null,null,null,null,null,null,null,null,null,null,null,null,null,null,null,null,null,null,null,null,null,null,null,null,"Weißenbach am Lech"]
[null,null,null,null,null,null,null,null,null,null,null,null,null,null,null,null,null,null,null,null,null,null,null,null,null,null,null,null,null,null,null,null,null,null,null,null,null,null,null,null,null,null,null,null,null,null,null,null,null,null,null,null,null,null,null,null,"Wenns"]
[null,null,null,null,null,null,null,null,null,null,null,null,null,null,null,null,null,null,null,null,null,null,null,null,null,null,null,null,null,null,null,null,null,null,null,null,null,null,null,null,null,null,null,null,null,null,null,null,null,null,null,null,null,null,null,null,"Westendorf"]
[null,null,null,null,null,null,null,null,null,null,null,null,null,null,null,null,null,null,null,null,null,null,null,null,null,null,null,null,null,null,null,null,null,null,null,null,null,null,null,null,null,null,null,null,null,null,null,null,null,null,null,null,null,null,null,null,"Wiesing"]
[null,null,null,null,null,null,null,null,null,null,null,null,null,null,null,null,null,null,null,null,null,null,null,null,null,null,null,null,null,null,null,null,null,null,null,null,null,null,null,null,null,null,null,null,null,null,null,null,null,null,null,null,null,null,null,null,"Wildermieming"]
[null,null,null,null,null,null,null,null,null,null,null,null,null,null,null,null,null,null,null,null,null,null,null,null,null,null,null,null,null,null,null,null,null,null,null,null,null,null,null,null,null,null,null,null,null,null,null,null,null,null,null,null,null,null,null,null,"Wildschönau"]
[null,null,null,null,null,null,null,null,null,null,null,null,null,null,null,null,null,null,null,null,null,null,null,null,null,null,null,null,null,null,null,null,null,null,null,null,null,null,null,null,null,null,null,null,null,null,null,null,null,null,null,null,null,null,null,null,"Wörgl"]
[null,null,null,null,null,null,null,null,null,null,null,null,null,null,null,null,null,null,null,null,null,null,null,null,null,null,null,null,null,null,null,null,null,null,null,null,null,null,null,null,null,null,null,null,null,null,null,null,null,null,null,null,null,null,null,null,"Zams"]
[null,null,null,null,null,null,null,null,null,null,null,null,null,null,null,null,null,null,null,null,null,null,null,null,null,null,null,null,null,null,null,null,null,null,null,null,null,null,null,null,null,null,null,null,null,null,null,null,null,null,null,null,null,null,null,null,"Zell am Ziller"]
[null,null,null,null,null,null,null,null,null,null,null,null,null,null,null,null,null,null,null,null,null,null,null,null,null,null,null,null,null,null,null,null,null,null,null,null,null,null,null,null,null,null,null,null,null,null,null,null,null,null,null,null,null,null,null,null,"Zellberg"]
[null,null,null,null,null,null,null,null,null,null,null,null,null,null,null,null,null,null,null,null,null,null,null,null,null,null,null,null,null,null,null,null,null,null,null,null,null,null,null,null,null,null,null,null,null,null,null,null,null,null,null,null,null,null,null,null,"Zirl"]
[null,null,null,null,null,null,null,null,null,null,null,null,null,null,null,null,null,null,null,null,null,null,null,null,null,null,null,null,null,null,null,null,null,null,null,null,null,null,null,null,null,null,null,null,null,null,null,null,null,null,null,null,null,null,null,null,"Zöblen"]

{"sheet":"Bauschsatzformular_Forst","index":1,"n_rows":56,"n_cols":58,"rows_kept":56,"cut":false,"hidden":true,"merged":[[49,31,49,34],[50,31,50,34],[51,31,51,34],[50,47,50,50],[51,47,51,50],[46,47,46,50],[47,47,47,50],[48,47,48,50],[49,47,49,50],[48,31,48,34],[46,31,46,34],[42,1,42,8],[45,22,45,50],[42,39,42,43],[42,44,42,51],[42,27,42,34],[42,35,42,38],[28,36,28,43],[29,36,29,43],[30,36,30,43],[41,25,41,26],[36,39,37,43],[29,29,29,35],[30,29,30,35],[29,44,29,51],[28,44,28,51],[33,23,33,28],[3,2,3,52],[27,2,27,13],[31,2,31,13],[25,2,26,20],[25,21,26,24],[27,21,27,24],[25,44,26,51],[7,6,7,50],[7,2,7,5],[31,44,31,51],[15,19,15,21],[9,25,9,35],[15,32,15,36],[9,37,9,50],[4,2,4,52],[30,44,30,51],[17,32,17,50],[9,2,9,14],[25,25,26,28],[9,15,9,24],[25,36,26,43],[15,22,15,31],[15,2,15,5],[17,26,17,31],[55,25,55,51],[32,2,32,13],[32,44,32,51],[36,9,37,20],[33,44,33,51],[40,21,40,24],[39,21,39,24],[38,21,38,24],[33,36,33,43],[47,31,47,34],[38,39,38,43],[38,44,38,51],[36,44,37,51],[38,35,38,38],[32,29,32,35],[42,25,42,26],[38,1,38,8],[36,27,37,34],[38,25,38,26],[38,27,38,34],[36,1,37,8],[41,21,41,24],[42,21,42,24],[41,1,41,8],[15,6,15,18],[21,39,21,48],[17,2,17,9],[17,10,17,25],[36,25,37,26],[40,27,40,34],[40,35,40,38],[40,1,40,8],[39,35,39,38],[39,27,39,34],[21,26,21,35],[28,21,28,24],[29,21,29,24],[30,21,30,24],[28,25,28,28],[29,25,29,28],[30,25,30,28],[27,36,27,43],[28,29,28,35],[27,29,27,35],[25,29,26,35],[27,25,27,28],[27,44,27,51],[33,29,33,35],[53,22,54,51],[45,2,54,20],[15,37,15,50],[31,36,31,43],[32,36,32,43],[40,39,40,43],[39,39,39,43],[36,35,37,38],[39,44,39,51],[39,1,39,8],[41,39,41,43],[41,44,41,51],[31,21,31,24],[40,44,40,51],[31,29,31,35],[32,25,32,28],[31,25,31,28],[32,21,32,24],[36,21,37,24],[39,25,39,26],[35,2,35,10],[41,27,41,34],[41,35,41,38],[40,25,40,26]]}
[1,1,3]
[1,1]
[1,1,null,null,null,null,null,null,null,null,null,null,null,null,null,null,null,null,null,null,null,null,null,null,null,null,null,null,null,null,null,null,null,null,null,null,null,null,null,null,null,null,null,null,null,null,null,null,null,null,null,null,null,null,null,null,null,"bitte auswählen:"]
[1,1,"Nachweisungsliste für Pauschalleistungen",null,null,null,null,null,null,null,null,null,null,null,null,null,null,null,null,null,null,null,null,null,null,null,null,null,null,null,null,null,null,null,null,null,null,null,null,null,null,null,null,null,null,null,null,null,null,null,null,null,null,null,null,null,null,2010]
[1,1,"<<   Forst   >>",null,null,null,null,null,null,null,null,null,null,null,null,null,null,null,null,null,null,null,null,null,null,null,null,null,null,null,null,null,null,null,null,null,null,null,null,null,null,null,null,null,null,null,null,null,null,null,null,null,null,null,null,null,null,2011]
[1,1,null,null,null,null,null,null,null,null,null,null,null,null,null,null,null,null,null,null,null,null,null,null,null,null,null,null,null,null,null,null,null,null,null,null,null,null,null,null,null,null,null,null,null,null,null,null,null,null,null,null,null,null,null,null,null,2012]
[1,null,null,null,null,null,null,null,null,null,null,null,null,null,null,null,null,null,null,null,null,null,null,null,null,null,null,null,null,null,null,null,null,null,null,null,null,null,null,null,null,null,null,null,null,null,null,null,null,null,null,null,null,null,null,null,null,2013]
[1,null,"Name",null,null,null,null,null,null,null,null,null,null,null,null,null,null,null,null,null,null,null,null,null,null,null,null,null,null,null,null,null,null,null,null,null,null,null,null,null,null,null,null,null,null,null,null,null,null,null,null,null,null,null,null,null,null,2014]
[1,0,null,null,null,null,null,null,null,null,null,null,null,null,null,null,null,null,null,null,null,null,null,null,null,null,null,null,null,null,null,null,null,null,null,null,null,null,null,null,null,null,null,null,null,null,null,null,null,null,null,null,null,null,null,null,null,2015]
[1,null,"Antrags-/Projektnummer",null,null,null,null,null,null,null,null,null,null,null,null,null,null,null,null,null,null,null,null,null,null,"Ort der Umsetzung",null,null,null,null,null,null,null,null,null,null,null,null,null,null,null,null,null,null,null,null,null,null,null,null,null,null,null,null,null,null,null,1]
[39]
[]
[]
[]
[]
[null,null,"Name",null,null,null,null,null,null,null,null,null,null,null,null,null,null,null,null,"Straße HNr.",null,null,null,null,null,null,null,null,null,null,null,null,"Wohnort",null,null,null,null,null,null,null,null,null,null,null,null,null,null,null,null,null,null,null,null,null,null,null,null,1]
[]
[null,null,"IBAN",null,null,null,null,null,null,null,null,null,null,null,null,null,null,null,null,null,null,null,null,null,null,null,"BIC"]
[]
[]
[]
[null,null,"Die Umsetzung der Maßnahme(n) erfolgte im Zeitraum von ",null,null,null,null,null,null,null,null,null,null,null,null,null,null,null,null,null,null,null,null,null,null,null,"TT.MM.JJJJ",null,null,null,null,null,null,null,null,null,null,"bis ",null,"TT.MM.JJJJ"]
[]
[]
[]
[null,null,"Art der Maßnahme",null,null,null,null,null,null,null,null,null,null,null,null,null,null,null,null,null,null,"FAI-Code",null,null,null,"StandardKosten",null,null,null,"Förderung € pro Einheit",null,null,null,null,null,null,"Menge",null,null,null,null,null,null,null,"Anrechenbar"]
[]
[null,null,null,null,null,null,null,null,null,null,null,null,null,null,null,null,null,null,null,null,null,{"$f":"VLOOKUP(B1,Tabelle!B$2:F$17,3)","v":"--"},null,null,null,{"$f":"VLOOKUP(B1,Tabelle!B$2:F$17,4)","v":"--"},null,null,null,{"$f":"VLOOKUP(B1,Tabelle!B$2:F$17,5)","v":"--"},null,null,null,null,null,null,0,null,null,null,null,null,null,null,{"$f":"IF(Z28=\"--\",0,AK28*Z28)","v":0}]
[null,null,null,null,null,null,null,null,null,null,null,null,null,null,null,null,null,null,null,null,null,{"$f":"VLOOKUP(B2,Tabelle!B$2:F$19,3)","v":"--"},null,null,null,{"$f":"VLOOKUP(B2,Tabelle!B$2:F$19,4)","v":"--"},null,null,null,{"$f":"VLOOKUP(B2,Tabelle!B$2:F$19,5)","v":"--"},null,null,null,null,null,null,0,null,null,null,null,null,null,null,0]
[null,null,null,null,null,null,null,null,null,null,null,null,null,null,null,null,null,null,null,null,null,{"$f":"VLOOKUP(B3,Tabelle!B$2:F$19,3)","v":"--"},null,null,null,{"$f":"VLOOKUP(B3,Tabelle!B$2:F$19,4)","v":"--"},null,null,null,{"$f":"VLOOKUP(B3,Tabelle!B$2:F$19,5)","v":"--"},null,null,null,null,null,null,0,null,null,null,null,null,null,null,0,null,null,null,null,null,null,null,null,null,null,null,{"$f":"SUM(AK28:AR30)","v":0}]
[null,null,null,null,null,null,null,null,null,null,null,null,null,null,null,null,null,null,null,null,null,{"$f":"VLOOKUP(B4,Tabelle!B$2:F$19,3)","v":"--"},null,null,null,{"$f":"VLOOKUP(B4,Tabelle!B$2:F$19,4)","v":"--"},null,null,null,{"$f":"VLOOKUP(B4,Tabelle!B$2:F$19,5)","v":"--"},null,null,null,null,null,null,0,null,null,null,null,null,null,null,0]
[null,null,null,null,null,null,null,null,null,null,null,null,null,null,null,null,null,null,null,null,null,{"$f":"VLOOKUP(B5,Tabelle!B$2:F$19,3)","v":"--"},null,null,null,{"$f":"VLOOKUP(B5,Tabelle!B$2:F$19,4)","v":"--"},null,null,null,{"$f":"VLOOKUP(B5,Tabelle!B$2:F$19,5)","v":"--"},null,null,null,null,null,null,0,null,null,null,null,null,null,null,0]
[null,null,null,null,null,null,null,null,null,null,null,null,null,null,null,null,null,null,null,null,null,{"$f":"VLOOKUP(B6,Tabelle!B$2:F$19,3)","v":"--"},null,null,null,{"$f":"VLOOKUP(B6,Tabelle!B$2:F$19,4)","v":"--"},null,null,null,{"$f":"VLOOKUP(B6,Tabelle!B$2:F$19,5)","v":"--"},null,null,null,null,null,null,0,null,null,null,null,null,null,null,0]
[null,null,null,null,null,null,null,null,null,null,null,null,null,null,null,null,null,null,null,null,null,null,null,"FÖRDERUNG",null,null,null,null,null,{"$f":"SUMPRODUCT((IF(AD28=\"--\",0,AD28*AK28))+((IF(AD29=\"--\",0,AD29*AK29))+((IF(AD30=\"--\",0,AD30*AK30))+((IF(AD31=\"--\",0,AD31*AK31))+((IF(AD32=\"--\",0,AD32*AK32))+((IF(AD33=\"--\",0,AD33*AK33))))))))","v":0},null,null,null,null,null,null,{"$f":"SUM(AK28:AR33)","v":0},null,null,null,null,null,null,null,{"$f":"SUM(AS28:AZ33)","v":0}]
[]
[null,null,"Kulturpflege ",null,null,null,null,null,null,null,null,null,"nur möglich nach abiotischem Schadereignis!"]
[null,"Gpz.-Nr. \njede Parzelle einzeln anführen",null,null,null,null,null,null,null,"Maßnahme",null,null,null,null,null,null,null,null,null,null,null,"bearbeitete Fläche",null,null,null,"Ein-heit",null,"Bauschsatz\npro Pflanze bzw. Pflock",null,null,null,null,null,null,null,"Stück berechn.",null,null,null,"Stück\nkorr.",null,null,null,null,"Brutto = Anrechenbar = Förderbetrag"]
[]
[null,null,null,null,null,null,null,null,null,null,null,null,null,null,null,null,null,null,null,null,null,null,null,null,null,{"$f":"VLOOKUP(A1,Tabelle!B$20:F$23,4)","v":0},null,{"$f":"VLOOKUP(A1,Tabelle!B$20:F$23,3)","v":"Basis - Anzahl Pflanzen / ha"},null,null,null,null,null,null,null,{"$f":"IF(V39=\"\",\"--\",Tabelle!F$20*V39)","v":"--"},null,null,null,{"$f":"AJ39","v":"--"},null,null,null,null,{"$f":"IF(B39=\"\",\"\",AN39*AB39)","v":""}]
[null,null,null,null,null,null,null,null,null,null,null,null,null,null,null,null,null,null,null,null,null,null,null,null,null,{"$f":"VLOOKUP(A2,Tabelle!B$20:F$23,4)","v":0},null,{"$f":"VLOOKUP(A2,Tabelle!B$20:F$23,3)","v":"Basis - Anzahl Pflanzen / ha"},null,null,null,null,null,null,null,{"$f":"IF(V40=\"\",\"--\",Tabelle!F$20*V40)","v":"--"},null,null,null,{"$f":"AJ40","v":"--"},null,null,null,null,{"$f":"IF(B40=\"\",\"\",AN40*AB40)","v":""}]
[null,null,null,null,null,null,null,null,null,null,null,null,null,null,null,null,null,null,null,null,null,null,null,null,null,{"$f":"VLOOKUP(A3,Tabelle!B$20:F$23,4)","v":0},null,{"$f":"VLOOKUP(A3,Tabelle!B$20:F$23,3)","v":"Basis - Anzahl Pflanzen / ha"},null,null,null,null,null,null,null,{"$f":"IF(V41=\"\",\"--\",Tabelle!F$20*V41)","v":"--"},null,null,null,{"$f":"AJ41","v":"--"},null,null,null,null,{"$f":"IF(B41=\"\",\"\",AN41*AB41)","v":""}]
[null,null,null,null,null,null,null,null,null,null,null,null,null,null,null,null,null,null,null,null,null,null,null,null,null,{"$f":"VLOOKUP(A4,Tabelle!B$20:F$23,4)","v":0},null,{"$f":"VLOOKUP(A4,Tabelle!B$20:F$23,3)","v":"Basis - Anzahl Pflanzen / ha"},null,null,null,null,null,null,null,{"$f":"IF(V42=\"\",\"--\",Tabelle!F$20*V42)","v":"--"},null,null,null,{"$f":"AJ42","v":"--"},null,null,null,null,{"$f":"IF(B42=\"\",\"\",AN42*AB42)","v":""}]
[null,null,null,null,null,null,null,null,null,null,null,null,null,null,null,null,null,null,null,null,null,null,null,null,null,{"$f":"VLOOKUP(A5,Tabelle!B$20:F$23,4)","v":0},null,{"$f":"VLOOKUP(A5,Tabelle!B$20:F$23,3)","v":"Basis - Anzahl Pflanzen / ha"},null,null,null,null,null,null,null,{"$f":"IF(V43=\"\",\"--\",Tabelle!F$20*V43)","v":"--"},null,null,null,{"$f":"AJ43","v":"--"},null,null,null,null,{"$f":"IF(B43=\"\",\"\",AN43*AB43)","v":""}]
[null,null,null,null,null,null,null,null,null,null,null,null,null,null,null,null,null,null,null,null,null,null,null,null,null,{"$f":"IF(V44=0,\"\",(IF(V44<0.1,\"Mindestausmaß kleiner 0,1 ha\n!!  Keine Förderung  !!\",\"\")))","v":""},null,null,null,null,null,null,null,null,null,null,null,null,null,{"$f":"SUM(AN39:AR43)","v":0},null,null,null,null,{"$f":"IF(V44<0.1,0,SUM(AS39:AZ43))","v":0}]
[]
[null,null,null,null,null,null,null,null,null,null,null,null,null,null,null,null,null,null,null,null,null,null,"Bei Aufforstung/Nachbesserung bitte Anzahl je Baumart angeben:"]
[null,null,null,null,null,null,null,null,null,null,null,null,null,null,null,null,null,null,null,null,null,null,null,null,null,null,null,null,null,null,null,null,null,null,null,null,null,null,null,null,null,null,null,null,null,null,null,null,null,null,null,null,null,null,null,null,1,1]
[null,null,null,null,null,null,null,null,null,null,null,null,null,null,null,null,null,null,null,null,null,null,null,null,null,null,null,null,null,null,null,null,null,null,null,null,null,null,null,null,null,null,null,null,null,null,null,null,null,null,null,null,null,null,null,null,1,1]
[null,null,null,null,null,null,null,null,null,null,null,null,null,null,null,null,null,null,null,null,null,null,null,null,null,null,null,null,null,null,null,null,null,null,null,null,null,null,null,null,null,null,null,null,null,null,null,null,null,null,null,null,null,null,null,null,1,1]
[null,null,null,null,null,null,null,null,null,null,null,null,null,null,null,null,null,null,null,null,null,null,null,null,null,null,null,null,null,null,null,null,null,null,null,null,null,null,null,null,null,null,null,null,null,null,null,null,null,null,null,null,null,null,null,null,1,1]
[null,null,null,null,null,null,null,null,null,null,null,null,null,null,null,null,null,null,null,null,null,null,null,null,null,null,null,null,null,null,null,null,null,null,null,null,null,null,null,null,null,null,null,null,null,null,null,null,null,null,null,null,null,null,null,null,1,1]
[null,null,null,null,null,null,null,null,null,null,null,null,null,null,null,null,null,null,null,null,null,null,null,null,null,null,null,null,null,null,null,null,null,null,null,null,null,null,null,null,null,null,null,null,null,null,null,null,null,null,null,null,null,null,{"$f":"SUM(AF47:AI52,AV47:AY52)","v":0},null,1,1]
[null,null,null,null,null,null,null,null,null,null,null,null,null,null,null,null,null,null,null,null,null,null,{"$f":"IF(BE30<BC52,\"Pflanzenaufteilung: zu viele Pflanzen\",IF(BE30>BC52,\"Pflanzenaufteilung: zu wenig Pflanzen\",\"Aufforstung/Nachbesserung: Aufteilung ok\"))","v":"Aufforstung/Nachbesserung: Aufteilung ok"}]
[]
[]
[null,null,null,null,null,null,null,null,null,null,null,null,null,null,null,null,null,null,null,null,null,null,null,"Datum",null,"Unterschrift Förderwerber(in) bzw. Begünstigte(r)"]

{"sheet":"Landschaftsdienst","index":2,"n_rows":276,"n_cols":58,"rows_kept":276,"cut":false,"hidden":false,"merged":[[34,44,34,51],[34,36,34,43],[34,29,34,35],[34,25,34,28],[34,21,34,24],[34,2,34,20],[30,2,30,20],[30,21,30,24],[30,25,30,28],[30,29,30,35],[30,36,30,43],[41,2,41,20],[42,21,42,24],[42,2,42,20],[42,25,42,28],[42,29,42,35],[41,21,41,24],[41,25,41,28],[41,29,41,35],[41,36,41,43],[3,2,3,52],[25,21,26,24],[27,21,27,24],[25,44,26,51],[7,2,7,5],[15,19,15,21],[27,44,27,51],[15,2,15,5],[25,2,25,20],[26,2,26,20],[4,2,4,52],[21,39,21,48],[21,26,21,35],[17,26,17,31],[27,36,27,43],[15,22,15,31],[9,2,9,14],[9,15,9,24],[9,25,9,36],[25,36,26,43],[27,25,27,28],[25,25,26,28],[25,29,26,35],[9,37,9,49],[53,25,53,51],[53,3,53,17],[29,44,29,51],[35,44,35,51],[52,3,52,17],[52,25,52,51],[47,25,47,36],[48,2,50,50],[29,36,29,43],[29,21,29,24],[29,25,29,28],[39,21,39,24],[40,21,40,24],[39,25,39,28],[37,2,37,20],[40,29,40,35],[32,44,32,51],[32,2,32,20],[32,21,32,24],[32,25,32,28],[32,29,32,35],[32,36,32,43],[31,21,31,24],[31,25,31,28],[28,25,28,28],[28,21,28,24],[15,37,15,49],[30,44,30,51],[31,2,31,20],[45,44,45,51],[45,29,45,43],[37,21,38,24],[37,25,38,28],[37,29,38,35],[37,36,38,43],[37,44,38,51],[43,44,43,51],[39,36,39,43],[40,36,40,43],[39,44,39,51],[40,44,40,51],[40,25,40,28],[42,36,42,43],[42,44,42,51],[41,44,41,51],[31,29,31,35],[31,36,31,43],[31,44,31,51],[33,44,33,51],[33,36,33,43],[33,29,33,35],[33,25,33,28],[33,21,33,24],[33,2,33,20],[7,6,7,49],[39,2,39,20],[40,2,40,20],[38,2,38,20],[17,32,17,49],[17,2,17,5],[17,6,17,25],[29,29,29,35],[28,29,28,35],[15,6,15,18],[27,29,27,35],[27,2,27,20],[28,2,28,20],[29,2,29,20],[39,29,39,35],[28,44,28,51],[15,32,15,36],[28,36,28,43]]}
[1,1,1]
[1,1]
[1,1,null,null,null,null,null,null,null,null,null,null,null,null,null,null,null,null,null,null,null,null,null,null,null,null,null,null,null,null,null,null,null,null,null,null,null,null,null,null,null,null,null,null,null,null,null,null,null,null,null,null,null,null,null,null,"bitte Gemeinde wählen:","bitte auswählen:"]
[1,1,"Nachweisungsliste für Pauschalleistungen",null,null,null,null,null,null,null,null,null,null,null,null,null,null,null,null,null,null,null,null,null,null,null,null,null,null,null,null,null,null,null,null,null,null,null,null,null,null,null,null,null,null,null,null,null,null,null,null,null,null,null,null,null,"Abfaltersbach",2010]
[1,1,"Landschaftsdienst",null,null,null,null,null,null,null,null,null,null,null,null,null,null,null,null,null,null,null,null,null,null,null,null,null,null,null,null,null,null,null,null,null,null,null,null,null,null,null,null,null,null,null,null,null,null,null,null,null,null,null,null,null,"Absam",2011]
[1,1,null,null,null,null,null,null,null,null,null,null,null,null,null,null,null,null,null,null,null,null,null,null,null,null,null,null,null,null,null,null,null,null,null,null,null,null,null,null,null,null,null,null,null,null,null,null,null,null,null,null,null,null,null,null,"Achenkirch",2012]
[1,1,null,null,null,null,null,null,null,null,null,null,null,null,null,null,null,null,null,null,null,null,null,null,null,null,null,null,null,null,null,null,null,null,null,null,null,null,null,null,null,null,null,null,null,null,null,null,null,null,null,null,null,null,null,null,"Ainet",2013]
[1,1,"Name",null,null,null,null,null,null,null,null,null,null,null,null,null,null,null,null,null,null,null,null,null,null,null,null,null,null,null,null,null,null,null,null,null,null,null,null,null,null,null,null,null,null,null,null,null,null,null,null,null,null,null,null,null,"Aldrans",2014]
[1,1,null,null,null,null,null,null,null,null,null,null,null,null,null,null,null,null,null,null,null,null,null,null,null,null,null,null,null,null,null,null,null,null,null,null,null,null,null,null,null,null,null,null,null,null,null,null,null,null,null,null,null,null,null,null,"Alpbach",2015]
[1,1,"Antrags-/Projektnummer",null,null,null,null,null,null,null,null,null,null,null,null,null,null,null,null,null,null,null,null,null,null,"Ort der Umsetzung",null,null,null,null,null,null,null,null,null,null,null,{"$f":"IF(INDEX(Tabelle!N3:N291,Landschaftsdienst!BB10)=\"bitte Gemeinde wählen:\",\"\",INDEX(Tabelle!N3:N291,Landschaftsdienst!BB10))","v":""},null,null,null,null,null,null,null,null,null,null,null,null,null,null,null,1,null,null,"Amlach"]
[1,1,null,null,null,null,null,null,null,null,null,null,null,null,null,null,null,null,null,null,null,null,null,null,null,null,null,null,null,null,null,null,null,null,null,null,null,null,null,null,null,null,null,null,null,null,null,null,null,null,null,null,null,null,null,null,"Ampass"]
[null,null,null,null,null,null,null,null,null,null,null,null,null,null,null,null,null,null,null,null,null,null,null,null,null,null,null,null,null,null,null,null,null,null,null,null,null,null,null,null,null,null,null,null,null,null,null,null,null,null,null,null,null,null,null,null,"Angath"]
[null,null,null,null,null,null,null,null,null,null,null,null,null,null,null,null,null,null,null,null,null,null,null,null,null,null,null,null,null,null,null,null,null,null,null,null,null,null,null,null,null,null,null,null,null,null,null,null,null,null,null,null,null,null,null,null,"Angerberg"]
[null,null,null,null,null,null,null,null,null,null,null,null,null,null,null,null,null,null,null,null,null,null,null,null,null,null,null,null,null,null,null,null,null,null,null,null,null,null,null,null,null,null,null,null,null,null,null,null,null,null,null,null,null,null,null,null,"Anras"]
[null,null,null,null,null,null,null,null,null,null,null,null,null,null,null,null,null,null,null,null,null,null,null,null,null,null,null,null,null,null,null,null,null,null,null,null,null,null,null,null,null,null,null,null,null,null,null,null,null,null,null,null,null,null,null,null,"Arzl im Pitztal"]
[null,null,"Name",null,null,null,null,null,null,null,null,null,null,null,null,null,null,null,null,"Straße HNr.",null,null,null,null,null,null,null,null,null,null,null,null,"Wohnort",null,null,null,null,{"$f":"IF(INDEX(Tabelle!N3:N291,Landschaftsdienst!BB16)=\"bitte Gemeinde wählen:\",\"\",INDEX(Tabelle!N3:N291,Landschaftsdienst!BB16))","v":""},null,null,null,null,null,null,null,null,null,null,null,null,null,null,null,1,null,null,"Aschau im Zillertal"]
[null,null,null,null,null,null,null,null,null,null,null,null,null,null,null,null,null,null,null,null,null,null,null,null,null,null,null,null,null,null,null,null,null,null,null,null,null,null,null,null,null,null,null,null,null,null,null,null,null,null,null,null,null,null,null,null,"Assling"]
[null,null,"IBAN",null,null,null,null,null,null,null,null,null,null,null,null,null,null,null,null,null,null,null,null,null,null,null,"BIC",null,null,null,null,null,null,null,null,null,null,null,null,null,null,null,null,null,null,null,null,null,null,null,null,null,null,null,null,null,"Aurach bei Kitzbühel"]
[null,null,null,null,null,null,null,null,null,null,null,null,null,null,null,null,null,null,null,null,null,null,null,null,null,null,null,null,null,null,null,null,null,null,null,null,null,null,null,null,null,null,null,null,null,null,null,null,null,null,null,null,null,null,null,null,"Außervillgraten"]
[null,null,null,null,null,null,null,null,null,null,null,null,null,null,null,null,null,null,null,null,null,null,null,null,null,null,null,null,null,null,null,null,null,null,null,null,null,null,null,null,null,null,null,null,null,null,null,null,null,null,null,null,null,null,null,null,"Axams"]
[null,null,null,null,null,null,null,null,null,null,null,null,null,null,null,null,null,null,null,null,null,null,null,null,null,null,null,null,null,null,null,null,null,null,null,null,null,null,null,null,null,null,null,null,null,null,null,null,null,null,null,null,null,null,null,null,"Bach"]
[null,null," Die Umsetzung der Maßnahme(n) erfolgte im Zeitraum von ",null,null,null,null,null,null,null,null,null,null,null,null,null,null,null,null,null,null,null,null,null,null,null,"TT:MM:JJJJ",null,null,null,null,null,null,null,null,null,null,"bis ",null,"TT:MM:JJJJ",null,null,null,null,null,null,null,null,null,null,null,null,null,null,null,null,"Bad Häring"]
[null,null,null,null,null,null,null,null,null,null,null,null,null,null,null,null,null,null,null,null,null,null,null,null,null,null,null,null,null,null,null,null,null,null,null,null,null,null,null,null,null,null,null,null,null,null,null,null,null,null,null,null,null,null,null,null,"Baumkirchen"]
[null,null,null,null,null,null,null,null,null,null,null,null,null,null,null,null,null,null,null,null,null,null,null,null,null,null,null,null,null,null,null,null,null,null,null,null,null,null,null,null,null,null,null,null,null,null,null,null,null,null,null,null,null,null,null,null,"Berwang"]
[null,null,null,null,null,null,null,null,null,null,null,null,null,null,null,null,null,null,null,null,null,null,null,null,null,null,null,null,null,null,null,null,null,null,null,null,null,null,null,null,null,null,null,null,null,null,null,null,null,null,null,null,null,null,null,null,"Biberwier"]
[null,null,"Art der Maßnahme",null,null,null,null,null,null,null,null,null,null,null,null,null,null,null,null,null,null,"FAI-Code",null,null,null,"Bausch-satz",null,null,null,"Einheit",null,null,null,null,null,null,"Menge",null,null,null,null,null,null,null,"Anrechenbar",null,null,null,null,null,null,null,null,null,null,null,"Bichlbach"]
[null,null,"Pauschalkosten",null,null,null,null,null,null,null,null,null,null,null,null,null,null,null,null,null,null,null,null,null,null,null,null,null,null,null,null,null,null,null,null,null,null,null,null,null,null,null,null,null,null,null,null,null,null,null,null,null,null,null,null,null,"Birgitz"]
[null,null,{"$f":"IF(INDEX(Tabelle!$C$38:$C$86,Landschaftsdienst!B1)=\"bitte wählen:\",\"\",INDEX(Tabelle!$C$38:$C$86,Landschaftsdienst!B1))","v":""},null,null,null,null,null,null,null,null,null,null,null,null,null,null,null,null,null,null,{"$f":"IF(C28=\"\",\"\",VLOOKUP(B1,Tabelle!B$38:F$88,3))","v":""},null,null,null,{"$f":"IF(C28=\"\",\"\",VLOOKUP(B1,Tabelle!B$38:F$88,4))","v":""},null,null,null,{"$f":"IF(C28=\"\",\"\",VLOOKUP(B1,Tabelle!B$38:F$88,5))","v":""},null,null,null,null,null,null,null,null,null,null,null,null,null,null,{"$f":"IF(Z28=\"Unterkategorie\",\"\",IF(Z28=\"\",\"\",AK28*Z28))","v":""},null,null,null,null,null,null,null,null,null,null,null,"Brandberg"]
[null,null,{"$f":"IF(INDEX(Tabelle!$C$38:$C$86,Landschaftsdienst!B2)=\"bitte wählen:\",\"\",INDEX(Tabelle!$C$38:$C$86,Landschaftsdienst!B2))","v":""},null,null,null,null,null,null,null,null,null,null,null,null,null,null,null,null,null,null,{"$f":"IF(C29=\"\",\"\",VLOOKUP(B2,Tabelle!B$38:F$88,3))","v":""},null,null,null,{"$f":"IF(C29=\"\",\"\",VLOOKUP(B2,Tabelle!B$38:F$88,4))","v":""},null,null,null,{"$f":"IF(C29=\"\",\"\",VLOOKUP(B2,Tabelle!B$38:F$88,5))","v":""},null,null,null,null,null,null,null,null,null,null,null,null,null,null,{"$f":"IF(Z29=\"Unterkategorie\",\"\",IF(Z29=\"\",\"\",AK29*Z29))","v":""},null,null,null,null,null,null,null,null,null,null,null,"Brandenberg"]
[null,null,{"$f":"IF(INDEX(Tabelle!$C$38:$C$86,Landschaftsdienst!B3)=\"bitte wählen:\",\"\",INDEX(Tabelle!$C$38:$C$86,Landschaftsdienst!B3))","v":""},null,null,null,null,null,null,null,null,null,null,null,null,null,null,null,null,null,null,{"$f":"IF(C30=\"\",\"\",VLOOKUP(B3,Tabelle!B$38:F$88,3))","v":""},null,null,null,{"$f":"IF(C30=\"\",\"\",VLOOKUP(B3,Tabelle!B$38:F$88,4))","v":""},null,null,null,{"$f":"IF(C30=\"\",\"\",VLOOKUP(B3,Tabelle!B$38:F$88,5))","v":""},null,null,null,null,null,null,null,null,null,null,null,null,null,null,"",null,null,null,null,null,null,null,null,null,null,null,"Breitenbach am Inn"]
[null,null,{"$f":"IF(INDEX(Tabelle!$C$38:$C$86,Landschaftsdienst!B7)=\"bitte wählen:\",\"\",INDEX(Tabelle!$C$38:$C$86,Landschaftsdienst!B7))","v":""},null,null,null,null,null,null,null,null,null,null,null,null,null,null,null,null,null,null,{"$f":"IF(C31=\"\",\"\",VLOOKUP(B7,Tabelle!B$38:F$88,3))","v":""},null,null,null,{"$f":"IF(C31=\"\",\"\",VLOOKUP(B7,Tabelle!B$38:F$88,4))","v":""},null,null,null,{"$f":"IF(C31=\"\",\"\",VLOOKUP(B7,Tabelle!B$38:F$88,5))","v":""},null,null,null,null,null,null,null,null,null,null,null,null,null,null,{"$f":"IF(Z31=\"Unterkategorie\",\"\",IF(Z31=\"\",\"\",AK31*Z31))","v":""}]
[null,null,{"$f":"IF(INDEX(Tabelle!$C$38:$C$86,Landschaftsdienst!B8)=\"bitte wählen:\",\"\",INDEX(Tabelle!$C$38:$C$86,Landschaftsdienst!B8))","v":""},null,null,null,null,null,null,null,null,null,null,null,null,null,null,null,null,null,null,{"$f":"IF(C32=\"\",\"\",VLOOKUP(B8,Tabelle!B$38:F$88,3))","v":""},null,null,null,{"$f":"IF(C32=\"\",\"\",VLOOKUP(B8,Tabelle!B$38:F$88,4))","v":""},null,null,null,{"$f":"IF(C32=\"\",\"\",VLOOKUP(B8,Tabelle!B$38:F$88,5))","v":""},null,null,null,null,null,null,null,null,null,null,null,null,null,null,""]
[null,null,{"$f":"IF(INDEX(Tabelle!$C$38:$C$86,Landschaftsdienst!B9)=\"bitte wählen:\",\"\",INDEX(Tabelle!$C$38:$C$86,Landschaftsdienst!B9))","v":""},null,null,null,null,null,null,null,null,null,null,null,null,null,null,null,null,null,null,{"$f":"IF(C33=\"\",\"\",VLOOKUP(B9,Tabelle!B$38:F$88,3))","v":""},null,null,null,{"$f":"IF(C33=\"\",\"\",VLOOKUP(B9,Tabelle!B$38:F$88,4))","v":""},null,null,null,{"$f":"IF(C33=\"\",\"\",VLOOKUP(B9,Tabelle!B$38:F$88,5))","v":""},null,null,null,null,null,null,null,null,null,null,null,null,null,null,""]
[null,null,{"$f":"IF(INDEX(Tabelle!$C$38:$C$86,Landschaftsdienst!B10)=\"bitte wählen:\",\"\",INDEX(Tabelle!$C$38:$C$86,Landschaftsdienst!B10))","v":""},null,null,null,null,null,null,null,null,null,null,null,null,null,null,null,null,null,null,{"$f":"IF(C34=\"\",\"\",VLOOKUP(B10,Tabelle!B$38:F$88,3))","v":""},null,null,null,{"$f":"IF(C34=\"\",\"\",VLOOKUP(B10,Tabelle!B$38:F$88,4))","v":""},null,null,null,{"$f":"IF(C34=\"\",\"\",VLOOKUP(B10,Tabelle!B$38:F$88,5))","v":""},null,null,null,null,null,null,null,null,null,null,null,null,null,null,{"$f":"IF(Z34=\"Unterkategorie\",\"\",IF(Z34=\"\",\"\",AK34*Z34))","v":""}]
[null,null,{"$f":"IF(INDEX(Tabelle!$C$38:$C$86,Landschaftsdienst!B11)=\"bitte wählen:\",\"\",INDEX(Tabelle!$C$38:$C$86,Landschaftsdienst!B11))","v":""},null,null,null,null,null,null,null,null,null,null,null,null,null,null,null,null,null,null,{"$f":"IF(C35=\"\",\"\",VLOOKUP(B11,Tabelle!B$38:F$88,3))","v":""},null,null,null,{"$f":"IF(C35=\"\",\"\",VLOOKUP(B11,Tabelle!B$38:F$88,4))","v":""},null,null,null,{"$f":"IF(C35=\"\",\"\",VLOOKUP(B11,Tabelle!B$38:F$88,5))","v":""},null,null,null,null,null,null,null,null,null,null,null,null,null,null,{"$f":"IF(Z35=\"Unterkategorie\",\"\",IF(Z35=\"\",\"\",AK35*Z35))","v":""}]
[null,null,null,null,null,null,null,null,null,null,null,null,null,null,null,null,null,null,null,null,null,null,null,null,null,null,null,null,null,null,null,null,null,null,null,null,null,null,null,null,null,null,null,null,{"$f":"SUM(AS28:AZ35)","v":0},null,null,null,null,null,null,null,null,null,null,null,"Breitenwang"]
[]
[null,null,"Art der Maßnahme",null,null,null,null,null,null,null,null,null,null,null,null,null,null,null,null,null,null,"FAI-Code",null,null,null,"Kosten",null,null,null,"Einheit",null,null,null,null,null,null,"Menge",null,null,null,null,null,null,null,"Anrechenbar"]
[null,null,"Kosten/Einheit"]
[null,null,{"$f":"IF(INDEX(Tabelle!$C$105:$C$178,Landschaftsdienst!B4)=\"bitte wählen:\",\"\",INDEX(Tabelle!$C$105:$C$178,Landschaftsdienst!B4))","v":""},null,null,null,null,null,null,null,null,null,null,null,null,null,null,null,null,null,null,{"$f":"IF(C40=\"\",\"\",VLOOKUP(B4,Tabelle!B$92:F$178,3))","v":""},null,null,null,null,null,null,null,{"$f":"IF(C40=\"\",\"\",VLOOKUP(B4,Tabelle!B$92:F$178,5))","v":""},null,null,null,null,null,null,null,null,null,null,null,null,null,null,{"$f":"IF(Z40=\"Unterkategorie\",\"\",IF(Z40=\"\",\"\",AK40*Z40))","v":""}]
[null,null,{"$f":"IF(INDEX(Tabelle!$C$105:$C$178,Landschaftsdienst!B5)=\"bitte wählen:\",\"\",INDEX(Tabelle!$C$105:$C$178,Landschaftsdienst!B5))","v":""},null,null,null,null,null,null,null,null,null,null,null,null,null,null,null,null,null,null,{"$f":"IF(C41=\"\",\"\",VLOOKUP(B5,Tabelle!B$92:F$178,3))","v":""},null,null,null,null,null,null,null,{"$f":"IF(C41=\"\",\"\",VLOOKUP(B5,Tabelle!B$92:F$178,5))","v":""},null,null,null,null,null,null,null,null,null,null,null,null,null,null,{"$f":"IF(Z41=\"Unterkategorie\",\"\",IF(Z41=\"\",\"\",AK41*Z41))","v":""}]
[null,null,{"$f":"IF(INDEX(Tabelle!$C$105:$C$178,Landschaftsdienst!B10)=\"bitte wählen:\",\"\",INDEX(Tabelle!$C$105:$C$178,Landschaftsdienst!B10))","v":""},null,null,null,null,null,null,null,null,null,null,null,null,null,null,null,null,null,null,{"$f":"IF(C42=\"\",\"\",VLOOKUP(B10,Tabelle!B$92:F$178,3))","v":""},null,null,null,null,null,null,null,{"$f":"IF(C42=\"\",\"\",VLOOKUP(B10,Tabelle!B$92:F$178,5))","v":""},null,null,null,null,null,null,null,null,null,null,null,null,null,null,{"$f":"IF(Z42=\"Unterkategorie\",\"\",IF(Z42=\"\",\"\",AK42*Z42))","v":""}]
[null,null,{"$f":"IF(INDEX(Tabelle!$C$105:$C$178,Landschaftsdienst!B11)=\"bitte wählen:\",\"\",INDEX(Tabelle!$C$105:$C$178,Landschaftsdienst!B11))","v":""},null,null,null,null,null,null,null,null,null,null,null,null,null,null,null,null,null,null,{"$f":"IF(C43=\"\",\"\",VLOOKUP(B11,Tabelle!B$92:F$178,3))","v":""},null,null,null,null,null,null,null,{"$f":"IF(C43=\"\",\"\",VLOOKUP(B11,Tabelle!B$92:F$178,5))","v":""},null,null,null,null,null,null,null,null,null,null,null,null,null,null,{"$f":"IF(Z43=\"Unterkategorie\",\"\",IF(Z43=\"\",\"\",AK43*Z43))","v":""}]
[null,null,null,null,null,null,null,null,null,null,null,null,null,null,null,null,null,null,null,null,null,null,null,null,null,null,null,null,null,null,null,null,null,null,null,null,null,null,null,null,null,null,null,null,{"$f":"SUM(AS40:BA43)","v":0},null,null,null,null,null,null,null,null,null,null,null,"Finkenberg"]
[null,null,null,null,null,null,null,null,null,null,null,null,null,null,null,null,null,null,null,null,null,null,null,null,null,null,null,null,null,null,null,null,null,null,null,null,null,null,null,null,null,null,null,null,null,null,null,null,null,null,null,null,null,null,null,null,"Fiss"]
[null,null,null,null,null,null,null,null,null,null,null,null,null,null,null,null,null,null,null,null,null,null,null,null,null,null,null,null,null,"Kosten Gesamt",null,null,null,null,null,null,null,null,null,null,null,null,null,null,{"$f":"AS44+AS36","v":0},null,null,null,null,null,null,null,null,null,null,null,"Flaurling"]
[null,null,null,null,null,null,null,null,null,null,null,null,null,null,null,null,null,null,null,null,null,null,null,null,null,null,null,null,null,null,null,null,null,null,null,null,null,null,null,null,null,null,null,null,null,null,null,null,null,null,null,null,null,null,null,null,"Fließ"]
[null,null,null,null,null,null,null,null,null,null,null,null,null,null,null,null,null,null,null,null,null,null,null,null,null,null,null,null,null,null,null,null,null,null,null,null,null,null,null,null,null,null,null,null,null,null,null,null,null,null,null,null,null,null,null,null,"Flirsch"]
[null,null,null,null,null,null,null,null,null,null,null,null,null,null,null,null,null,null,null,null,null,null,null,null,null,null,null,null,null,null,null,null,null,null,null,null,null,null,null,null,null,null,null,null,null,null,null,null,null,null,null,null,null,null,null,null,"Forchach"]
[null,null,null,null,null,null,null,null,null,null,null,null,null,null,null,null,null,null,null,null,null,null,null,null,null,null,null,null,null,null,null,null,null,null,null,null,null,null,null,null,null,null,null,null,null,null,null,null,null,null,null,null,null,null,null,null,"Fritzens"]
[null,null,null,null,null,null,null,null,null,null,null,null,null,null,null,null,null,null,null,null,null,null,null,null,null,null,null,null,null,null,null,null,null,null,null,null,null,null,null,null,null,null,null,null,null,null,null,null,null,null,null,null,null,null,null,null,"Fügenberg"]
[null,null,null,null,null,null,null,null,null,null,null,null,null,null,null,null,null,null,null,null,null,null,null,null,null,null,null,null,null,null,null,null,null,null,null,null,null,null,null,null,null,null,null,null,null,null,null,null,null,null,null,null,null,null,null,null,"Fulpmes"]
[null,null,null,null,null,null,null,null,null,null,null,null,null,null,null,null,null,null,null,null,null,null,null,null,null,null,null,null,null,null,null,null,null,null,null,null,null,null,null,null,null,null,null,null,null,null,null,null,null,null,null,null,null,null,null,null,"Gaimberg"]
[null,null,null,"Datum",null,null,null,null,null,null,null,null,null,null,null,null,null,null,null,null,null,null,null,null,null,"Unterschrift AntragstellerIn",null,null,null,null,null,null,null,null,null,null,null,null,null,null,null,null,null,null,null,null,null,null,null,null,null,null,null,null,null,null,"Gallzein"]
[null,null,null,null,null,null,null,null,null,null,null,null,null,null,null,null,null,null,null,null,null,null,null,null,null,null,null,null,null,null,null,null,null,null,null,null,null,null,null,null,null,null,null,null,null,null,null,null,null,null,null,null,null,null,null,null,"Galtür"]
[null,null,null,null,null,null,null,null,null,null,null,null,null,null,null,null,null,null,null,null,null,null,null,null,null,null,null,null,null,null,null,null,null,null,null,null,null,null,null,null,null,null,null,null,null,null,null,null,null,null,null,null,null,null,null,null,"Gerlos"]
[null,null,null,null,null,null,null,null,null,null,null,null,null,null,null,null,null,null,null,null,null,null,null,null,null,null,null,null,null,null,null,null,null,null,null,null,null,null,null,null,null,null,null,null,null,null,null,null,null,null,null,null,null,null,null,null,"Gerlosberg"]
[null,null,null,null,null,null,null,null,null,null,null,null,null,null,null,null,null,null,null,null,null,null,null,null,null,null,null,null,null,null,null,null,null,null,null,null,null,null,null,null,null,null,null,null,null,null,null,null,null,null,null,null,null,null,null,null,"Gnadenwald"]
[null,null,null,null,null,null,null,null,null,null,null,null,null,null,null,null,null,null,null,null,null,null,null,null,null,null,null,null,null,null,null,null,null,null,null,null,null,null,null,null,null,null,null,null,null,null,null,null,null,null,null,null,null,null,null,null,"Going am Wilden Kaiser"]
[null,null,null,null,null,null,null,null,null,null,null,null,null,null,null,null,null,null,null,null,null,null,null,null,null,null,null,null,null,null,null,null,null,null,null,null,null,null,null,null,null,null,null,null,null,null,null,null,null,null,null,null,null,null,null,null,"Götzens"]
[null,null,null,null,null,null,null,null,null,null,null,null,null,null,null,null,null,null,null,null,null,null,null,null,null,null,null,null,null,null,null,null,null,null,null,null,null,null,null,null,null,null,null,null,null,null,null,null,null,null,null,null,null,null,null,null,"Gramais"]
[null,null,null,null,null,null,null,null,null,null,null,null,null,null,null,null,null,null,null,null,null,null,null,null,null,null,null,null,null,null,null,null,null,null,null,null,null,null,null,null,null,null,null,null,null,null,null,null,null,null,null,null,null,null,null,null,"Grän"]
[null,null,null,null,null,null,null,null,null,null,null,null,null,null,null,null,null,null,null,null,null,null,null,null,null,null,null,null,null,null,null,null,null,null,null,null,null,null,null,null,null,null,null,null,null,null,null,null,null,null,null,null,null,null,null,null,"Gries am Brenner"]
[null,null,null,null,null,null,null,null,null,null,null,null,null,null,null,null,null,null,null,null,null,null,null,null,null,null,null,null,null,null,null,null,null,null,null,null,null,null,null,null,null,null,null,null,null,null,null,null,null,null,null,null,null,null,null,null,"Gries im Sellrain"]
[null,null,null,null,null,null,null,null,null,null,null,null,null,null,null,null,null,null,null,null,null,null,null,null,null,null,null,null,null,null,null,null,null,null,null,null,null,null,null,null,null,null,null,null,null,null,null,null,null,null,null,null,null,null,null,null,"Grins"]
[null,null,null,null,null,null,null,null,null,null,null,null,null,null,null,null,null,null,null,null,null,null,null,null,null,null,null,null,null,null,null,null,null,null,null,null,null,null,null,null,null,null,null,null,null,null,null,null,null,null,null,null,null,null,null,null,"Grinzens"]
[null,null,null,null,null,null,null,null,null,null,null,null,null,null,null,null,null,null,null,null,null,null,null,null,null,null,null,null,null,null,null,null,null,null,null,null,null,null,null,null,null,null,null,null,null,null,null,null,null,null,null,null,null,null,null,null,"Gschnitz"]
[null,null,null,null,null,null,null,null,null,null,null,null,null,null,null,null,null,null,null,null,null,null,null,null,null,null,null,null,null,null,null,null,null,null,null,null,null,null,null,null,null,null,null,null,null,null,null,null,null,null,null,null,null,null,null,null,"Haiming"]
[null,null,null,null,null,null,null,null,null,null,null,null,null,null,null,null,null,null,null,null,null,null,null,null,null,null,null,null,null,null,null,null,null,null,null,null,null,null,null,null,null,null,null,null,null,null,null,null,null,null,null,null,null,null,null,null,"Hainzenberg"]
[null,null,null,null,null,null,null,null,null,null,null,null,null,null,null,null,null,null,null,null,null,null,null,null,null,null,null,null,null,null,null,null,null,null,null,null,null,null,null,null,null,null,null,null,null,null,null,null,null,null,null,null,null,null,null,null,"Hall in Tirol"]
[null,null,null,null,null,null,null,null,null,null,null,null,null,null,null,null,null,null,null,null,null,null,null,null,null,null,null,null,null,null,null,null,null,null,null,null,null,null,null,null,null,null,null,null,null,null,null,null,null,null,null,null,null,null,null,null,"Hart im Zillertal"]
[null,null,null,null,null,null,null,null,null,null,null,null,null,null,null,null,null,null,null,null,null,null,null,null,null,null,null,null,null,null,null,null,null,null,null,null,null,null,null,null,null,null,null,null,null,null,null,null,null,null,null,null,null,null,null,null,"Häselgehr"]
[null,null,null,null,null,null,null,null,null,null,null,null,null,null,null,null,null,null,null,null,null,null,null,null,null,null,null,null,null,null,null,null,null,null,null,null,null,null,null,null,null,null,null,null,null,null,null,null,null,null,null,null,null,null,null,null,"Hatting"]
[null,null,null,null,null,null,null,null,null,null,null,null,null,null,null,null,null,null,null,null,null,null,null,null,null,null,null,null,null,null,null,null,null,null,null,null,null,null,null,null,null,null,null,null,null,null,null,null,null,null,null,null,null,null,null,null,"Heinfels"]
[null,null,null,null,null,null,null,null,null,null,null,null,null,null,null,null,null,null,null,null,null,null,null,null,null,null,null,null,null,null,null,null,null,null,null,null,null,null,null,null,null,null,null,null,null,null,null,null,null,null,null,null,null,null,null,null,"Heiterwang"]
[null,null,null,null,null,null,null,null,null,null,null,null,null,null,null,null,null,null,null,null,null,null,null,null,null,null,null,null,null,null,null,null,null,null,null,null,null,null,null,null,null,null,null,null,null,null,null,null,null,null,null,null,null,null,null,null,"Hinterhornbach"]
[null,null,null,null,null,null,null,null,null,null,null,null,null,null,null,null,null,null,null,null,null,null,null,null,null,null,null,null,null,null,null,null,null,null,null,null,null,null,null,null,null,null,null,null,null,null,null,null,null,null,null,null,null,null,null,null,"Hippach"]
[null,null,null,null,null,null,null,null,null,null,null,null,null,null,null,null,null,null,null,null,null,null,null,null,null,null,null,null,null,null,null,null,null,null,null,null,null,null,null,null,null,null,null,null,null,null,null,null,null,null,null,null,null,null,null,null,"Hochfilzen"]
[null,null,null,null,null,null,null,null,null,null,null,null,null,null,null,null,null,null,null,null,null,null,null,null,null,null,null,null,null,null,null,null,null,null,null,null,null,null,null,null,null,null,null,null,null,null,null,null,null,null,null,null,null,null,null,null,"Höfen"]
[null,null,null,null,null,null,null,null,null,null,null,null,null,null,null,null,null,null,null,null,null,null,null,null,null,null,null,null,null,null,null,null,null,null,null,null,null,null,null,null,null,null,null,null,null,null,null,null,null,null,null,null,null,null,null,null,"Holzgau"]
[null,null,null,null,null,null,null,null,null,null,null,null,null,null,null,null,null,null,null,null,null,null,null,null,null,null,null,null,null,null,null,null,null,null,null,null,null,null,null,null,null,null,null,null,null,null,null,null,null,null,null,null,null,null,null,null,"Hopfgarten im Brixental"]
[null,null,null,null,null,null,null,null,null,null,null,null,null,null,null,null,null,null,null,null,null,null,null,null,null,null,null,null,null,null,null,null,null,null,null,null,null,null,null,null,null,null,null,null,null,null,null,null,null,null,null,null,null,null,null,null,"Hopfgarten in Defereggen"]
[null,null,null,null,null,null,null,null,null,null,null,null,null,null,null,null,null,null,null,null,null,null,null,null,null,null,null,null,null,null,null,null,null,null,null,null,null,null,null,null,null,null,null,null,null,null,null,null,null,null,null,null,null,null,null,null,"Imst"]
[null,null,null,null,null,null,null,null,null,null,null,null,null,null,null,null,null,null,null,null,null,null,null,null,null,null,null,null,null,null,null,null,null,null,null,null,null,null,null,null,null,null,null,null,null,null,null,null,null,null,null,null,null,null,null,null,"Imsterberg"]
[null,null,null,null,null,null,null,null,null,null,null,null,null,null,null,null,null,null,null,null,null,null,null,null,null,null,null,null,null,null,null,null,null,null,null,null,null,null,null,null,null,null,null,null,null,null,null,null,null,null,null,null,null,null,null,null,"Innervillgraten"]
[null,null,null,null,null,null,null,null,null,null,null,null,null,null,null,null,null,null,null,null,null,null,null,null,null,null,null,null,null,null,null,null,null,null,null,null,null,null,null,null,null,null,null,null,null,null,null,null,null,null,null,null,null,null,null,null,"Innsbruck"]
[null,null,null,null,null,null,null,null,null,null,null,null,null,null,null,null,null,null,null,null,null,null,null,null,null,null,null,null,null,null,null,null,null,null,null,null,null,null,null,null,null,null,null,null,null,null,null,null,null,null,null,null,null,null,null,null,"Inzing"]
[null,null,null,null,null,null,null,null,null,null,null,null,null,null,null,null,null,null,null,null,null,null,null,null,null,null,null,null,null,null,null,null,null,null,null,null,null,null,null,null,null,null,null,null,null,null,null,null,null,null,null,null,null,null,null,null,"Ischgl"]
[null,null,null,null,null,null,null,null,null,null,null,null,null,null,null,null,null,null,null,null,null,null,null,null,null,null,null,null,null,null,null,null,null,null,null,null,null,null,null,null,null,null,null,null,null,null,null,null,null,null,null,null,null,null,null,null,"Iselsberg-Stronach"]
[null,null,null,null,null,null,null,null,null,null,null,null,null,null,null,null,null,null,null,null,null,null,null,null,null,null,null,null,null,null,null,null,null,null,null,null,null,null,null,null,null,null,null,null,null,null,null,null,null,null,null,null,null,null,null,null,"Itter"]
[null,null,null,null,null,null,null,null,null,null,null,null,null,null,null,null,null,null,null,null,null,null,null,null,null,null,null,null,null,null,null,null,null,null,null,null,null,null,null,null,null,null,null,null,null,null,null,null,null,null,null,null,null,null,null,null,"Jenbach"]
[null,null,null,null,null,null,null,null,null,null,null,null,null,null,null,null,null,null,null,null,null,null,null,null,null,null,null,null,null,null,null,null,null,null,null,null,null,null,null,null,null,null,null,null,null,null,null,null,null,null,null,null,null,null,null,null,"Jerzens"]
[null,null,null,null,null,null,null,null,null,null,null,null,null,null,null,null,null,null,null,null,null,null,null,null,null,null,null,null,null,null,null,null,null,null,null,null,null,null,null,null,null,null,null,null,null,null,null,null,null,null,null,null,null,null,null,null,"Jochberg"]
[null,null,null,null,null,null,null,null,null,null,null,null,null,null,null,null,null,null,null,null,null,null,null,null,null,null,null,null,null,null,null,null,null,null,null,null,null,null,null,null,null,null,null,null,null,null,null,null,null,null,null,null,null,null,null,null,"Jungholz"]
[null,null,null,null,null,null,null,null,null,null,null,null,null,null,null,null,null,null,null,null,null,null,null,null,null,null,null,null,null,null,null,null,null,null,null,null,null,null,null,null,null,null,null,null,null,null,null,null,null,null,null,null,null,null,null,null,"Kaisers"]
[null,null,null,null,null,null,null,null,null,null,null,null,null,null,null,null,null,null,null,null,null,null,null,null,null,null,null,null,null,null,null,null,null,null,null,null,null,null,null,null,null,null,null,null,null,null,null,null,null,null,null,null,null,null,null,null,"Kals am Großglockner"]
[null,null,null,null,null,null,null,null,null,null,null,null,null,null,null,null,null,null,null,null,null,null,null,null,null,null,null,null,null,null,null,null,null,null,null,null,null,null,null,null,null,null,null,null,null,null,null,null,null,null,null,null,null,null,null,null,"Kaltenbach"]
[null,null,null,null,null,null,null,null,null,null,null,null,null,null,null,null,null,null,null,null,null,null,null,null,null,null,null,null,null,null,null,null,null,null,null,null,null,null,null,null,null,null,null,null,null,null,null,null,null,null,null,null,null,null,null,null,"Kappl"]
[null,null,null,null,null,null,null,null,null,null,null,null,null,null,null,null,null,null,null,null,null,null,null,null,null,null,null,null,null,null,null,null,null,null,null,null,null,null,null,null,null,null,null,null,null,null,null,null,null,null,null,null,null,null,null,null,"Karres"]
[null,null,null,null,null,null,null,null,null,null,null,null,null,null,null,null,null,null,null,null,null,null,null,null,null,null,null,null,null,null,null,null,null,null,null,null,null,null,null,null,null,null,null,null,null,null,null,null,null,null,null,null,null,null,null,null,"Karrösten"]
[null,null,null,null,null,null,null,null,null,null,null,null,null,null,null,null,null,null,null,null,null,null,null,null,null,null,null,null,null,null,null,null,null,null,null,null,null,null,null,null,null,null,null,null,null,null,null,null,null,null,null,null,null,null,null,null,"Kartitsch"]
[null,null,null,null,null,null,null,null,null,null,null,null,null,null,null,null,null,null,null,null,null,null,null,null,null,null,null,null,null,null,null,null,null,null,null,null,null,null,null,null,null,null,null,null,null,null,null,null,null,null,null,null,null,null,null,null,"Kaunerberg"]
[null,null,null,null,null,null,null,null,null,null,null,null,null,null,null,null,null,null,null,null,null,null,null,null,null,null,null,null,null,null,null,null,null,null,null,null,null,null,null,null,null,null,null,null,null,null,null,null,null,null,null,null,null,null,null,null,"Kaunertal"]
[null,null,null,null,null,null,null,null,null,null,null,null,null,null,null,null,null,null,null,null,null,null,null,null,null,null,null,null,null,null,null,null,null,null,null,null,null,null,null,null,null,null,null,null,null,null,null,null,null,null,null,null,null,null,null,null,"Kauns"]
[null,null,null,null,null,null,null,null,null,null,null,null,null,null,null,null,null,null,null,null,null,null,null,null,null,null,null,null,null,null,null,null,null,null,null,null,null,null,null,null,null,null,null,null,null,null,null,null,null,null,null,null,null,null,null,null,"Kematen in Tirol"]
[null,null,null,null,null,null,null,null,null,null,null,null,null,null,null,null,null,null,null,null,null,null,null,null,null,null,null,null,null,null,null,null,null,null,null,null,null,null,null,null,null,null,null,null,null,null,null,null,null,null,null,null,null,null,null,null,"Kirchberg in Tirol"]
[null,null,null,null,null,null,null,null,null,null,null,null,null,null,null,null,null,null,null,null,null,null,null,null,null,null,null,null,null,null,null,null,null,null,null,null,null,null,null,null,null,null,null,null,null,null,null,null,null,null,null,null,null,null,null,null,"Kirchbichl"]
[null,null,null,null,null,null,null,null,null,null,null,null,null,null,null,null,null,null,null,null,null,null,null,null,null,null,null,null,null,null,null,null,null,null,null,null,null,null,null,null,null,null,null,null,null,null,null,null,null,null,null,null,null,null,null,null,"Kirchdorf in Tirol"]
[null,null,null,null,null,null,null,null,null,null,null,null,null,null,null,null,null,null,null,null,null,null,null,null,null,null,null,null,null,null,null,null,null,null,null,null,null,null,null,null,null,null,null,null,null,null,null,null,null,null,null,null,null,null,null,null,"Kitzbühel"]
[null,null,null,null,null,null,null,null,null,null,null,null,null,null,null,null,null,null,null,null,null,null,null,null,null,null,null,null,null,null,null,null,null,null,null,null,null,null,null,null,null,null,null,null,null,null,null,null,null,null,null,null,null,null,null,null,"Kolsass"]
[null,null,null,null,null,null,null,null,null,null,null,null,null,null,null,null,null,null,null,null,null,null,null,null,null,null,null,null,null,null,null,null,null,null,null,null,null,null,null,null,null,null,null,null,null,null,null,null,null,null,null,null,null,null,null,null,"Kolsassberg"]
[null,null,null,null,null,null,null,null,null,null,null,null,null,null,null,null,null,null,null,null,null,null,null,null,null,null,null,null,null,null,null,null,null,null,null,null,null,null,null,null,null,null,null,null,null,null,null,null,null,null,null,null,null,null,null,null,"Kössen"]
[null,null,null,null,null,null,null,null,null,null,null,null,null,null,null,null,null,null,null,null,null,null,null,null,null,null,null,null,null,null,null,null,null,null,null,null,null,null,null,null,null,null,null,null,null,null,null,null,null,null,null,null,null,null,null,null,"Kramsach"]
[null,null,null,null,null,null,null,null,null,null,null,null,null,null,null,null,null,null,null,null,null,null,null,null,null,null,null,null,null,null,null,null,null,null,null,null,null,null,null,null,null,null,null,null,null,null,null,null,null,null,null,null,null,null,null,null,"Kufstein"]
[null,null,null,null,null,null,null,null,null,null,null,null,null,null,null,null,null,null,null,null,null,null,null,null,null,null,null,null,null,null,null,null,null,null,null,null,null,null,null,null,null,null,null,null,null,null,null,null,null,null,null,null,null,null,null,null,"Kundl"]
[null,null,null,null,null,null,null,null,null,null,null,null,null,null,null,null,null,null,null,null,null,null,null,null,null,null,null,null,null,null,null,null,null,null,null,null,null,null,null,null,null,null,null,null,null,null,null,null,null,null,null,null,null,null,null,null,"Ladis"]
[null,null,null,null,null,null,null,null,null,null,null,null,null,null,null,null,null,null,null,null,null,null,null,null,null,null,null,null,null,null,null,null,null,null,null,null,null,null,null,null,null,null,null,null,null,null,null,null,null,null,null,null,null,null,null,null,"Landeck"]
[null,null,null,null,null,null,null,null,null,null,null,null,null,null,null,null,null,null,null,null,null,null,null,null,null,null,null,null,null,null,null,null,null,null,null,null,null,null,null,null,null,null,null,null,null,null,null,null,null,null,null,null,null,null,null,null,"Längenfeld"]
[null,null,null,null,null,null,null,null,null,null,null,null,null,null,null,null,null,null,null,null,null,null,null,null,null,null,null,null,null,null,null,null,null,null,null,null,null,null,null,null,null,null,null,null,null,null,null,null,null,null,null,null,null,null,null,null,"Langkampfen"]
[null,null,null,null,null,null,null,null,null,null,null,null,null,null,null,null,null,null,null,null,null,null,null,null,null,null,null,null,null,null,null,null,null,null,null,null,null,null,null,null,null,null,null,null,null,null,null,null,null,null,null,null,null,null,null,null,"Lans"]
[null,null,null,null,null,null,null,null,null,null,null,null,null,null,null,null,null,null,null,null,null,null,null,null,null,null,null,null,null,null,null,null,null,null,null,null,null,null,null,null,null,null,null,null,null,null,null,null,null,null,null,null,null,null,null,null,"Lavant"]
[null,null,null,null,null,null,null,null,null,null,null,null,null,null,null,null,null,null,null,null,null,null,null,null,null,null,null,null,null,null,null,null,null,null,null,null,null,null,null,null,null,null,null,null,null,null,null,null,null,null,null,null,null,null,null,null,"Lechaschau"]
[null,null,null,null,null,null,null,null,null,null,null,null,null,null,null,null,null,null,null,null,null,null,null,null,null,null,null,null,null,null,null,null,null,null,null,null,null,null,null,null,null,null,null,null,null,null,null,null,null,null,null,null,null,null,null,null,"Leisach"]
[null,null,null,null,null,null,null,null,null,null,null,null,null,null,null,null,null,null,null,null,null,null,null,null,null,null,null,null,null,null,null,null,null,null,null,null,null,null,null,null,null,null,null,null,null,null,null,null,null,null,null,null,null,null,null,null,"Lermoos"]
[null,null,null,null,null,null,null,null,null,null,null,null,null,null,null,null,null,null,null,null,null,null,null,null,null,null,null,null,null,null,null,null,null,null,null,null,null,null,null,null,null,null,null,null,null,null,null,null,null,null,null,null,null,null,null,null,"Leutasch"]
[null,null,null,null,null,null,null,null,null,null,null,null,null,null,null,null,null,null,null,null,null,null,null,null,null,null,null,null,null,null,null,null,null,null,null,null,null,null,null,null,null,null,null,null,null,null,null,null,null,null,null,null,null,null,null,null,"Lienz"]
[null,null,null,null,null,null,null,null,null,null,null,null,null,null,null,null,null,null,null,null,null,null,null,null,null,null,null,null,null,null,null,null,null,null,null,null,null,null,null,null,null,null,null,null,null,null,null,null,null,null,null,null,null,null,null,null,"Mariastein"]
[null,null,null,null,null,null,null,null,null,null,null,null,null,null,null,null,null,null,null,null,null,null,null,null,null,null,null,null,null,null,null,null,null,null,null,null,null,null,null,null,null,null,null,null,null,null,null,null,null,null,null,null,null,null,null,null,"Matrei am Brenner"]
[null,null,null,null,null,null,null,null,null,null,null,null,null,null,null,null,null,null,null,null,null,null,null,null,null,null,null,null,null,null,null,null,null,null,null,null,null,null,null,null,null,null,null,null,null,null,null,null,null,null,null,null,null,null,null,null,"Matrei in Osttirol"]
[null,null,null,null,null,null,null,null,null,null,null,null,null,null,null,null,null,null,null,null,null,null,null,null,null,null,null,null,null,null,null,null,null,null,null,null,null,null,null,null,null,null,null,null,null,null,null,null,null,null,null,null,null,null,null,null,"Mayrhofen"]
[null,null,null,null,null,null,null,null,null,null,null,null,null,null,null,null,null,null,null,null,null,null,null,null,null,null,null,null,null,null,null,null,null,null,null,null,null,null,null,null,null,null,null,null,null,null,null,null,null,null,null,null,null,null,null,null,"Mieders"]
[null,null,null,null,null,null,null,null,null,null,null,null,null,null,null,null,null,null,null,null,null,null,null,null,null,null,null,null,null,null,null,null,null,null,null,null,null,null,null,null,null,null,null,null,null,null,null,null,null,null,null,null,null,null,null,null,"Mieming"]
[null,null,null,null,null,null,null,null,null,null,null,null,null,null,null,null,null,null,null,null,null,null,null,null,null,null,null,null,null,null,null,null,null,null,null,null,null,null,null,null,null,null,null,null,null,null,null,null,null,null,null,null,null,null,null,null,"Mils"]
[null,null,null,null,null,null,null,null,null,null,null,null,null,null,null,null,null,null,null,null,null,null,null,null,null,null,null,null,null,null,null,null,null,null,null,null,null,null,null,null,null,null,null,null,null,null,null,null,null,null,null,null,null,null,null,null,"Mils bei Imst"]
[null,null,null,null,null,null,null,null,null,null,null,null,null,null,null,null,null,null,null,null,null,null,null,null,null,null,null,null,null,null,null,null,null,null,null,null,null,null,null,null,null,null,null,null,null,null,null,null,null,null,null,null,null,null,null,null,"Mötz"]
[null,null,null,null,null,null,null,null,null,null,null,null,null,null,null,null,null,null,null,null,null,null,null,null,null,null,null,null,null,null,null,null,null,null,null,null,null,null,null,null,null,null,null,null,null,null,null,null,null,null,null,null,null,null,null,null,"Mühlbachl"]
[null,null,null,null,null,null,null,null,null,null,null,null,null,null,null,null,null,null,null,null,null,null,null,null,null,null,null,null,null,null,null,null,null,null,null,null,null,null,null,null,null,null,null,null,null,null,null,null,null,null,null,null,null,null,null,null,"Münster"]
[null,null,null,null,null,null,null,null,null,null,null,null,null,null,null,null,null,null,null,null,null,null,null,null,null,null,null,null,null,null,null,null,null,null,null,null,null,null,null,null,null,null,null,null,null,null,null,null,null,null,null,null,null,null,null,null,"Musau"]
[null,null,null,null,null,null,null,null,null,null,null,null,null,null,null,null,null,null,null,null,null,null,null,null,null,null,null,null,null,null,null,null,null,null,null,null,null,null,null,null,null,null,null,null,null,null,null,null,null,null,null,null,null,null,null,null,"Mutters"]
[null,null,null,null,null,null,null,null,null,null,null,null,null,null,null,null,null,null,null,null,null,null,null,null,null,null,null,null,null,null,null,null,null,null,null,null,null,null,null,null,null,null,null,null,null,null,null,null,null,null,null,null,null,null,null,null,"Namlos"]
[null,null,null,null,null,null,null,null,null,null,null,null,null,null,null,null,null,null,null,null,null,null,null,null,null,null,null,null,null,null,null,null,null,null,null,null,null,null,null,null,null,null,null,null,null,null,null,null,null,null,null,null,null,null,null,null,"Nassereith"]
[null,null,null,null,null,null,null,null,null,null,null,null,null,null,null,null,null,null,null,null,null,null,null,null,null,null,null,null,null,null,null,null,null,null,null,null,null,null,null,null,null,null,null,null,null,null,null,null,null,null,null,null,null,null,null,null,"Natters"]
[null,null,null,null,null,null,null,null,null,null,null,null,null,null,null,null,null,null,null,null,null,null,null,null,null,null,null,null,null,null,null,null,null,null,null,null,null,null,null,null,null,null,null,null,null,null,null,null,null,null,null,null,null,null,null,null,"Nauders"]
[null,null,null,null,null,null,null,null,null,null,null,null,null,null,null,null,null,null,null,null,null,null,null,null,null,null,null,null,null,null,null,null,null,null,null,null,null,null,null,null,null,null,null,null,null,null,null,null,null,null,null,null,null,null,null,null,"Navis"]
[null,null,null,null,null,null,null,null,null,null,null,null,null,null,null,null,null,null,null,null,null,null,null,null,null,null,null,null,null,null,null,null,null,null,null,null,null,null,null,null,null,null,null,null,null,null,null,null,null,null,null,null,null,null,null,null,"Nesselwängle"]
[null,null,null,null,null,null,null,null,null,null,null,null,null,null,null,null,null,null,null,null,null,null,null,null,null,null,null,null,null,null,null,null,null,null,null,null,null,null,null,null,null,null,null,null,null,null,null,null,null,null,null,null,null,null,null,null,"Neustift im Stubaital"]
[null,null,null,null,null,null,null,null,null,null,null,null,null,null,null,null,null,null,null,null,null,null,null,null,null,null,null,null,null,null,null,null,null,null,null,null,null,null,null,null,null,null,null,null,null,null,null,null,null,null,null,null,null,null,null,null,"Niederndorf"]
[null,null,null,null,null,null,null,null,null,null,null,null,null,null,null,null,null,null,null,null,null,null,null,null,null,null,null,null,null,null,null,null,null,null,null,null,null,null,null,null,null,null,null,null,null,null,null,null,null,null,null,null,null,null,null,null,"Niederndorferberg"]
[null,null,null,null,null,null,null,null,null,null,null,null,null,null,null,null,null,null,null,null,null,null,null,null,null,null,null,null,null,null,null,null,null,null,null,null,null,null,null,null,null,null,null,null,null,null,null,null,null,null,null,null,null,null,null,null,"Nikolsdorf"]
[null,null,null,null,null,null,null,null,null,null,null,null,null,null,null,null,null,null,null,null,null,null,null,null,null,null,null,null,null,null,null,null,null,null,null,null,null,null,null,null,null,null,null,null,null,null,null,null,null,null,null,null,null,null,null,null,"Nußdorf-Debant"]
[null,null,null,null,null,null,null,null,null,null,null,null,null,null,null,null,null,null,null,null,null,null,null,null,null,null,null,null,null,null,null,null,null,null,null,null,null,null,null,null,null,null,null,null,null,null,null,null,null,null,null,null,null,null,null,null,"Oberhofen im Inntal"]
[null,null,null,null,null,null,null,null,null,null,null,null,null,null,null,null,null,null,null,null,null,null,null,null,null,null,null,null,null,null,null,null,null,null,null,null,null,null,null,null,null,null,null,null,null,null,null,null,null,null,null,null,null,null,null,null,"Oberlienz"]
[null,null,null,null,null,null,null,null,null,null,null,null,null,null,null,null,null,null,null,null,null,null,null,null,null,null,null,null,null,null,null,null,null,null,null,null,null,null,null,null,null,null,null,null,null,null,null,null,null,null,null,null,null,null,null,null,"Obernberg am Brenner"]
[null,null,null,null,null,null,null,null,null,null,null,null,null,null,null,null,null,null,null,null,null,null,null,null,null,null,null,null,null,null,null,null,null,null,null,null,null,null,null,null,null,null,null,null,null,null,null,null,null,null,null,null,null,null,null,null,"Oberndorf in Tirol"]
[null,null,null,null,null,null,null,null,null,null,null,null,null,null,null,null,null,null,null,null,null,null,null,null,null,null,null,null,null,null,null,null,null,null,null,null,null,null,null,null,null,null,null,null,null,null,null,null,null,null,null,null,null,null,null,null,"Oberperfuss"]
[null,null,null,null,null,null,null,null,null,null,null,null,null,null,null,null,null,null,null,null,null,null,null,null,null,null,null,null,null,null,null,null,null,null,null,null,null,null,null,null,null,null,null,null,null,null,null,null,null,null,null,null,null,null,null,null,"Obertilliach"]
[null,null,null,null,null,null,null,null,null,null,null,null,null,null,null,null,null,null,null,null,null,null,null,null,null,null,null,null,null,null,null,null,null,null,null,null,null,null,null,null,null,null,null,null,null,null,null,null,null,null,null,null,null,null,null,null,"Obsteig"]
[null,null,null,null,null,null,null,null,null,null,null,null,null,null,null,null,null,null,null,null,null,null,null,null,null,null,null,null,null,null,null,null,null,null,null,null,null,null,null,null,null,null,null,null,null,null,null,null,null,null,null,null,null,null,null,null,"Oetz"]
[null,null,null,null,null,null,null,null,null,null,null,null,null,null,null,null,null,null,null,null,null,null,null,null,null,null,null,null,null,null,null,null,null,null,null,null,null,null,null,null,null,null,null,null,null,null,null,null,null,null,null,null,null,null,null,null,"Patsch"]
[null,null,null,null,null,null,null,null,null,null,null,null,null,null,null,null,null,null,null,null,null,null,null,null,null,null,null,null,null,null,null,null,null,null,null,null,null,null,null,null,null,null,null,null,null,null,null,null,null,null,null,null,null,null,null,null,"Pettnau"]
[null,null,null,null,null,null,null,null,null,null,null,null,null,null,null,null,null,null,null,null,null,null,null,null,null,null,null,null,null,null,null,null,null,null,null,null,null,null,null,null,null,null,null,null,null,null,null,null,null,null,null,null,null,null,null,null,"Pettneu am Arlberg"]
[null,null,null,null,null,null,null,null,null,null,null,null,null,null,null,null,null,null,null,null,null,null,null,null,null,null,null,null,null,null,null,null,null,null,null,null,null,null,null,null,null,null,null,null,null,null,null,null,null,null,null,null,null,null,null,null,"Pfaffenhofen"]
[null,null,null,null,null,null,null,null,null,null,null,null,null,null,null,null,null,null,null,null,null,null,null,null,null,null,null,null,null,null,null,null,null,null,null,null,null,null,null,null,null,null,null,null,null,null,null,null,null,null,null,null,null,null,null,null,"Pfafflar"]
[null,null,null,null,null,null,null,null,null,null,null,null,null,null,null,null,null,null,null,null,null,null,null,null,null,null,null,null,null,null,null,null,null,null,null,null,null,null,null,null,null,null,null,null,null,null,null,null,null,null,null,null,null,null,null,null,"Pflach"]
[null,null,null,null,null,null,null,null,null,null,null,null,null,null,null,null,null,null,null,null,null,null,null,null,null,null,null,null,null,null,null,null,null,null,null,null,null,null,null,null,null,null,null,null,null,null,null,null,null,null,null,null,null,null,null,null,"Pfons"]
[null,null,null,null,null,null,null,null,null,null,null,null,null,null,null,null,null,null,null,null,null,null,null,null,null,null,null,null,null,null,null,null,null,null,null,null,null,null,null,null,null,null,null,null,null,null,null,null,null,null,null,null,null,null,null,null,"Pfunds"]
[null,null,null,null,null,null,null,null,null,null,null,null,null,null,null,null,null,null,null,null,null,null,null,null,null,null,null,null,null,null,null,null,null,null,null,null,null,null,null,null,null,null,null,null,null,null,null,null,null,null,null,null,null,null,null,null,"Pians"]
[null,null,null,null,null,null,null,null,null,null,null,null,null,null,null,null,null,null,null,null,null,null,null,null,null,null,null,null,null,null,null,null,null,null,null,null,null,null,null,null,null,null,null,null,null,null,null,null,null,null,null,null,null,null,null,null,"Pill"]
[null,null,null,null,null,null,null,null,null,null,null,null,null,null,null,null,null,null,null,null,null,null,null,null,null,null,null,null,null,null,null,null,null,null,null,null,null,null,null,null,null,null,null,null,null,null,null,null,null,null,null,null,null,null,null,null,"Pinswang"]
[null,null,null,null,null,null,null,null,null,null,null,null,null,null,null,null,null,null,null,null,null,null,null,null,null,null,null,null,null,null,null,null,null,null,null,null,null,null,null,null,null,null,null,null,null,null,null,null,null,null,null,null,null,null,null,null,"Polling in Tirol"]
[null,null,null,null,null,null,null,null,null,null,null,null,null,null,null,null,null,null,null,null,null,null,null,null,null,null,null,null,null,null,null,null,null,null,null,null,null,null,null,null,null,null,null,null,null,null,null,null,null,null,null,null,null,null,null,null,"Prägraten am Großvenediger"]
[null,null,null,null,null,null,null,null,null,null,null,null,null,null,null,null,null,null,null,null,null,null,null,null,null,null,null,null,null,null,null,null,null,null,null,null,null,null,null,null,null,null,null,null,null,null,null,null,null,null,null,null,null,null,null,null,"Prutz"]
[null,null,null,null,null,null,null,null,null,null,null,null,null,null,null,null,null,null,null,null,null,null,null,null,null,null,null,null,null,null,null,null,null,null,null,null,null,null,null,null,null,null,null,null,null,null,null,null,null,null,null,null,null,null,null,null,"Radfeld"]
[null,null,null,null,null,null,null,null,null,null,null,null,null,null,null,null,null,null,null,null,null,null,null,null,null,null,null,null,null,null,null,null,null,null,null,null,null,null,null,null,null,null,null,null,null,null,null,null,null,null,null,null,null,null,null,null,"Ramsau im Zillertal"]
[null,null,null,null,null,null,null,null,null,null,null,null,null,null,null,null,null,null,null,null,null,null,null,null,null,null,null,null,null,null,null,null,null,null,null,null,null,null,null,null,null,null,null,null,null,null,null,null,null,null,null,null,null,null,null,null,"Ranggen"]
[null,null,null,null,null,null,null,null,null,null,null,null,null,null,null,null,null,null,null,null,null,null,null,null,null,null,null,null,null,null,null,null,null,null,null,null,null,null,null,null,null,null,null,null,null,null,null,null,null,null,null,null,null,null,null,null,"Rattenberg"]
[null,null,null,null,null,null,null,null,null,null,null,null,null,null,null,null,null,null,null,null,null,null,null,null,null,null,null,null,null,null,null,null,null,null,null,null,null,null,null,null,null,null,null,null,null,null,null,null,null,null,null,null,null,null,null,null,"Reith bei Kitzbühel"]
[null,null,null,null,null,null,null,null,null,null,null,null,null,null,null,null,null,null,null,null,null,null,null,null,null,null,null,null,null,null,null,null,null,null,null,null,null,null,null,null,null,null,null,null,null,null,null,null,null,null,null,null,null,null,null,null,"Reith bei Seefeld"]
[null,null,null,null,null,null,null,null,null,null,null,null,null,null,null,null,null,null,null,null,null,null,null,null,null,null,null,null,null,null,null,null,null,null,null,null,null,null,null,null,null,null,null,null,null,null,null,null,null,null,null,null,null,null,null,null,"Reith im Alpbachtal"]
[null,null,null,null,null,null,null,null,null,null,null,null,null,null,null,null,null,null,null,null,null,null,null,null,null,null,null,null,null,null,null,null,null,null,null,null,null,null,null,null,null,null,null,null,null,null,null,null,null,null,null,null,null,null,null,null,"Rettenschöss"]
[null,null,null,null,null,null,null,null,null,null,null,null,null,null,null,null,null,null,null,null,null,null,null,null,null,null,null,null,null,null,null,null,null,null,null,null,null,null,null,null,null,null,null,null,null,null,null,null,null,null,null,null,null,null,null,null,"Reutte"]
[null,null,null,null,null,null,null,null,null,null,null,null,null,null,null,null,null,null,null,null,null,null,null,null,null,null,null,null,null,null,null,null,null,null,null,null,null,null,null,null,null,null,null,null,null,null,null,null,null,null,null,null,null,null,null,null,"Ried im Oberinntal"]
[null,null,null,null,null,null,null,null,null,null,null,null,null,null,null,null,null,null,null,null,null,null,null,null,null,null,null,null,null,null,null,null,null,null,null,null,null,null,null,null,null,null,null,null,null,null,null,null,null,null,null,null,null,null,null,null,"Ried im Zillertal"]
[null,null,null,null,null,null,null,null,null,null,null,null,null,null,null,null,null,null,null,null,null,null,null,null,null,null,null,null,null,null,null,null,null,null,null,null,null,null,null,null,null,null,null,null,null,null,null,null,null,null,null,null,null,null,null,null,"Rietz"]
[null,null,null,null,null,null,null,null,null,null,null,null,null,null,null,null,null,null,null,null,null,null,null,null,null,null,null,null,null,null,null,null,null,null,null,null,null,null,null,null,null,null,null,null,null,null,null,null,null,null,null,null,null,null,null,null,"Rinn"]
[null,null,null,null,null,null,null,null,null,null,null,null,null,null,null,null,null,null,null,null,null,null,null,null,null,null,null,null,null,null,null,null,null,null,null,null,null,null,null,null,null,null,null,null,null,null,null,null,null,null,null,null,null,null,null,null,"Rohrberg"]
[null,null,null,null,null,null,null,null,null,null,null,null,null,null,null,null,null,null,null,null,null,null,null,null,null,null,null,null,null,null,null,null,null,null,null,null,null,null,null,null,null,null,null,null,null,null,null,null,null,null,null,null,null,null,null,null,"Roppen"]
[null,null,null,null,null,null,null,null,null,null,null,null,null,null,null,null,null,null,null,null,null,null,null,null,null,null,null,null,null,null,null,null,null,null,null,null,null,null,null,null,null,null,null,null,null,null,null,null,null,null,null,null,null,null,null,null,"Rum"]
[null,null,null,null,null,null,null,null,null,null,null,null,null,null,null,null,null,null,null,null,null,null,null,null,null,null,null,null,null,null,null,null,null,null,null,null,null,null,null,null,null,null,null,null,null,null,null,null,null,null,null,null,null,null,null,null,"Sautens"]
[null,null,null,null,null,null,null,null,null,null,null,null,null,null,null,null,null,null,null,null,null,null,null,null,null,null,null,null,null,null,null,null,null,null,null,null,null,null,null,null,null,null,null,null,null,null,null,null,null,null,null,null,null,null,null,null,"Scharnitz"]
[null,null,null,null,null,null,null,null,null,null,null,null,null,null,null,null,null,null,null,null,null,null,null,null,null,null,null,null,null,null,null,null,null,null,null,null,null,null,null,null,null,null,null,null,null,null,null,null,null,null,null,null,null,null,null,null,"Schattwald"]
[null,null,null,null,null,null,null,null,null,null,null,null,null,null,null,null,null,null,null,null,null,null,null,null,null,null,null,null,null,null,null,null,null,null,null,null,null,null,null,null,null,null,null,null,null,null,null,null,null,null,null,null,null,null,null,null,"Scheffau am Wilden Kaiser"]
[null,null,null,null,null,null,null,null,null,null,null,null,null,null,null,null,null,null,null,null,null,null,null,null,null,null,null,null,null,null,null,null,null,null,null,null,null,null,null,null,null,null,null,null,null,null,null,null,null,null,null,null,null,null,null,null,"Schlaiten"]
[null,null,null,null,null,null,null,null,null,null,null,null,null,null,null,null,null,null,null,null,null,null,null,null,null,null,null,null,null,null,null,null,null,null,null,null,null,null,null,null,null,null,null,null,null,null,null,null,null,null,null,null,null,null,null,null,"Schlitters"]
[null,null,null,null,null,null,null,null,null,null,null,null,null,null,null,null,null,null,null,null,null,null,null,null,null,null,null,null,null,null,null,null,null,null,null,null,null,null,null,null,null,null,null,null,null,null,null,null,null,null,null,null,null,null,null,null,"Schmirn"]
[null,null,null,null,null,null,null,null,null,null,null,null,null,null,null,null,null,null,null,null,null,null,null,null,null,null,null,null,null,null,null,null,null,null,null,null,null,null,null,null,null,null,null,null,null,null,null,null,null,null,null,null,null,null,null,null,"Schönberg im Stubaital"]
[null,null,null,null,null,null,null,null,null,null,null,null,null,null,null,null,null,null,null,null,null,null,null,null,null,null,null,null,null,null,null,null,null,null,null,null,null,null,null,null,null,null,null,null,null,null,null,null,null,null,null,null,null,null,null,null,"Schönwies"]
[null,null,null,null,null,null,null,null,null,null,null,null,null,null,null,null,null,null,null,null,null,null,null,null,null,null,null,null,null,null,null,null,null,null,null,null,null,null,null,null,null,null,null,null,null,null,null,null,null,null,null,null,null,null,null,null,"Schwaz"]
[null,null,null,null,null,null,null,null,null,null,null,null,null,null,null,null,null,null,null,null,null,null,null,null,null,null,null,null,null,null,null,null,null,null,null,null,null,null,null,null,null,null,null,null,null,null,null,null,null,null,null,null,null,null,null,null,"Schwendau"]
[null,null,null,null,null,null,null,null,null,null,null,null,null,null,null,null,null,null,null,null,null,null,null,null,null,null,null,null,null,null,null,null,null,null,null,null,null,null,null,null,null,null,null,null,null,null,null,null,null,null,null,null,null,null,null,null,"Schwendt"]
[null,null,null,null,null,null,null,null,null,null,null,null,null,null,null,null,null,null,null,null,null,null,null,null,null,null,null,null,null,null,null,null,null,null,null,null,null,null,null,null,null,null,null,null,null,null,null,null,null,null,null,null,null,null,null,null,"Schwoich"]
[null,null,null,null,null,null,null,null,null,null,null,null,null,null,null,null,null,null,null,null,null,null,null,null,null,null,null,null,null,null,null,null,null,null,null,null,null,null,null,null,null,null,null,null,null,null,null,null,null,null,null,null,null,null,null,null,"See"]
[null,null,null,null,null,null,null,null,null,null,null,null,null,null,null,null,null,null,null,null,null,null,null,null,null,null,null,null,null,null,null,null,null,null,null,null,null,null,null,null,null,null,null,null,null,null,null,null,null,null,null,null,null,null,null,null,"Seefeld in Tirol"]
[null,null,null,null,null,null,null,null,null,null,null,null,null,null,null,null,null,null,null,null,null,null,null,null,null,null,null,null,null,null,null,null,null,null,null,null,null,null,null,null,null,null,null,null,null,null,null,null,null,null,null,null,null,null,null,null,"Sellrain"]
[null,null,null,null,null,null,null,null,null,null,null,null,null,null,null,null,null,null,null,null,null,null,null,null,null,null,null,null,null,null,null,null,null,null,null,null,null,null,null,null,null,null,null,null,null,null,null,null,null,null,null,null,null,null,null,null,"Serfaus"]
[null,null,null,null,null,null,null,null,null,null,null,null,null,null,null,null,null,null,null,null,null,null,null,null,null,null,null,null,null,null,null,null,null,null,null,null,null,null,null,null,null,null,null,null,null,null,null,null,null,null,null,null,null,null,null,null,"Sillian"]
[null,null,null,null,null,null,null,null,null,null,null,null,null,null,null,null,null,null,null,null,null,null,null,null,null,null,null,null,null,null,null,null,null,null,null,null,null,null,null,null,null,null,null,null,null,null,null,null,null,null,null,null,null,null,null,null,"Silz"]
[null,null,null,null,null,null,null,null,null,null,null,null,null,null,null,null,null,null,null,null,null,null,null,null,null,null,null,null,null,null,null,null,null,null,null,null,null,null,null,null,null,null,null,null,null,null,null,null,null,null,null,null,null,null,null,null,"Sistrans"]
[null,null,null,null,null,null,null,null,null,null,null,null,null,null,null,null,null,null,null,null,null,null,null,null,null,null,null,null,null,null,null,null,null,null,null,null,null,null,null,null,null,null,null,null,null,null,null,null,null,null,null,null,null,null,null,null,"Sölden"]
[null,null,null,null,null,null,null,null,null,null,null,null,null,null,null,null,null,null,null,null,null,null,null,null,null,null,null,null,null,null,null,null,null,null,null,null,null,null,null,null,null,null,null,null,null,null,null,null,null,null,null,null,null,null,null,null,"Söll"]
[null,null,null,null,null,null,null,null,null,null,null,null,null,null,null,null,null,null,null,null,null,null,null,null,null,null,null,null,null,null,null,null,null,null,null,null,null,null,null,null,null,null,null,null,null,null,null,null,null,null,null,null,null,null,null,null,"Spiss"]
[null,null,null,null,null,null,null,null,null,null,null,null,null,null,null,null,null,null,null,null,null,null,null,null,null,null,null,null,null,null,null,null,null,null,null,null,null,null,null,null,null,null,null,null,null,null,null,null,null,null,null,null,null,null,null,null,"St.Anton am Arlberg"]
[null,null,null,null,null,null,null,null,null,null,null,null,null,null,null,null,null,null,null,null,null,null,null,null,null,null,null,null,null,null,null,null,null,null,null,null,null,null,null,null,null,null,null,null,null,null,null,null,null,null,null,null,null,null,null,null,"St.Jakob in Defereggen"]
[null,null,null,null,null,null,null,null,null,null,null,null,null,null,null,null,null,null,null,null,null,null,null,null,null,null,null,null,null,null,null,null,null,null,null,null,null,null,null,null,null,null,null,null,null,null,null,null,null,null,null,null,null,null,null,null,"St.Jakob in Haus"]
[null,null,null,null,null,null,null,null,null,null,null,null,null,null,null,null,null,null,null,null,null,null,null,null,null,null,null,null,null,null,null,null,null,null,null,null,null,null,null,null,null,null,null,null,null,null,null,null,null,null,null,null,null,null,null,null,"St.Johann im Walde"]
[null,null,null,null,null,null,null,null,null,null,null,null,null,null,null,null,null,null,null,null,null,null,null,null,null,null,null,null,null,null,null,null,null,null,null,null,null,null,null,null,null,null,null,null,null,null,null,null,null,null,null,null,null,null,null,null,"St.Johann in Tirol"]
[null,null,null,null,null,null,null,null,null,null,null,null,null,null,null,null,null,null,null,null,null,null,null,null,null,null,null,null,null,null,null,null,null,null,null,null,null,null,null,null,null,null,null,null,null,null,null,null,null,null,null,null,null,null,null,null,"St.Leonhard im Pitztal"]
[null,null,null,null,null,null,null,null,null,null,null,null,null,null,null,null,null,null,null,null,null,null,null,null,null,null,null,null,null,null,null,null,null,null,null,null,null,null,null,null,null,null,null,null,null,null,null,null,null,null,null,null,null,null,null,null,"St.Sigmund im Sellrain"]
[null,null,null,null,null,null,null,null,null,null,null,null,null,null,null,null,null,null,null,null,null,null,null,null,null,null,null,null,null,null,null,null,null,null,null,null,null,null,null,null,null,null,null,null,null,null,null,null,null,null,null,null,null,null,null,null,"St.Ulrich am Pillersee"]
[null,null,null,null,null,null,null,null,null,null,null,null,null,null,null,null,null,null,null,null,null,null,null,null,null,null,null,null,null,null,null,null,null,null,null,null,null,null,null,null,null,null,null,null,null,null,null,null,null,null,null,null,null,null,null,null,"St.Veit in Defereggen"]
[null,null,null,null,null,null,null,null,null,null,null,null,null,null,null,null,null,null,null,null,null,null,null,null,null,null,null,null,null,null,null,null,null,null,null,null,null,null,null,null,null,null,null,null,null,null,null,null,null,null,null,null,null,null,null,null,"Stams"]
[null,null,null,null,null,null,null,null,null,null,null,null,null,null,null,null,null,null,null,null,null,null,null,null,null,null,null,null,null,null,null,null,null,null,null,null,null,null,null,null,null,null,null,null,null,null,null,null,null,null,null,null,null,null,null,null,"Stans"]
[null,null,null,null,null,null,null,null,null,null,null,null,null,null,null,null,null,null,null,null,null,null,null,null,null,null,null,null,null,null,null,null,null,null,null,null,null,null,null,null,null,null,null,null,null,null,null,null,null,null,null,null,null,null,null,null,"Stanz bei Landeck"]
[null,null,null,null,null,null,null,null,null,null,null,null,null,null,null,null,null,null,null,null,null,null,null,null,null,null,null,null,null,null,null,null,null,null,null,null,null,null,null,null,null,null,null,null,null,null,null,null,null,null,null,null,null,null,null,null,"Stanzach"]
[null,null,null,null,null,null,null,null,null,null,null,null,null,null,null,null,null,null,null,null,null,null,null,null,null,null,null,null,null,null,null,null,null,null,null,null,null,null,null,null,null,null,null,null,null,null,null,null,null,null,null,null,null,null,null,null,"Steeg"]
[null,null,null,null,null,null,null,null,null,null,null,null,null,null,null,null,null,null,null,null,null,null,null,null,null,null,null,null,null,null,null,null,null,null,null,null,null,null,null,null,null,null,null,null,null,null,null,null,null,null,null,null,null,null,null,null,"Steinach am Brenner"]
[null,null,null,null,null,null,null,null,null,null,null,null,null,null,null,null,null,null,null,null,null,null,null,null,null,null,null,null,null,null,null,null,null,null,null,null,null,null,null,null,null,null,null,null,null,null,null,null,null,null,null,null,null,null,null,null,"Steinberg am Rofan"]
[null,null,null,null,null,null,null,null,null,null,null,null,null,null,null,null,null,null,null,null,null,null,null,null,null,null,null,null,null,null,null,null,null,null,null,null,null,null,null,null,null,null,null,null,null,null,null,null,null,null,null,null,null,null,null,null,"Strass im Zillertal"]
[null,null,null,null,null,null,null,null,null,null,null,null,null,null,null,null,null,null,null,null,null,null,null,null,null,null,null,null,null,null,null,null,null,null,null,null,null,null,null,null,null,null,null,null,null,null,null,null,null,null,null,null,null,null,null,null,"Strassen"]
[null,null,null,null,null,null,null,null,null,null,null,null,null,null,null,null,null,null,null,null,null,null,null,null,null,null,null,null,null,null,null,null,null,null,null,null,null,null,null,null,null,null,null,null,null,null,null,null,null,null,null,null,null,null,null,null,"Strengen"]
[null,null,null,null,null,null,null,null,null,null,null,null,null,null,null,null,null,null,null,null,null,null,null,null,null,null,null,null,null,null,null,null,null,null,null,null,null,null,null,null,null,null,null,null,null,null,null,null,null,null,null,null,null,null,null,null,"Stumm"]
[null,null,null,null,null,null,null,null,null,null,null,null,null,null,null,null,null,null,null,null,null,null,null,null,null,null,null,null,null,null,null,null,null,null,null,null,null,null,null,null,null,null,null,null,null,null,null,null,null,null,null,null,null,null,null,null,"Stummerberg"]
[null,null,null,null,null,null,null,null,null,null,null,null,null,null,null,null,null,null,null,null,null,null,null,null,null,null,null,null,null,null,null,null,null,null,null,null,null,null,null,null,null,null,null,null,null,null,null,null,null,null,null,null,null,null,null,null,"Tannheim"]
[null,null,null,null,null,null,null,null,null,null,null,null,null,null,null,null,null,null,null,null,null,null,null,null,null,null,null,null,null,null,null,null,null,null,null,null,null,null,null,null,null,null,null,null,null,null,null,null,null,null,null,null,null,null,null,null,"Tarrenz"]
[null,null,null,null,null,null,null,null,null,null,null,null,null,null,null,null,null,null,null,null,null,null,null,null,null,null,null,null,null,null,null,null,null,null,null,null,null,null,null,null,null,null,null,null,null,null,null,null,null,null,null,null,null,null,null,null,"Telfes im Stubai"]
[null,null,null,null,null,null,null,null,null,null,null,null,null,null,null,null,null,null,null,null,null,null,null,null,null,null,null,null,null,null,null,null,null,null,null,null,null,null,null,null,null,null,null,null,null,null,null,null,null,null,null,null,null,null,null,null,"Telfs"]
[null,null,null,null,null,null,null,null,null,null,null,null,null,null,null,null,null,null,null,null,null,null,null,null,null,null,null,null,null,null,null,null,null,null,null,null,null,null,null,null,null,null,null,null,null,null,null,null,null,null,null,null,null,null,null,null,"Terfens"]
[null,null,null,null,null,null,null,null,null,null,null,null,null,null,null,null,null,null,null,null,null,null,null,null,null,null,null,null,null,null,null,null,null,null,null,null,null,null,null,null,null,null,null,null,null,null,null,null,null,null,null,null,null,null,null,null,"Thaur"]
[null,null,null,null,null,null,null,null,null,null,null,null,null,null,null,null,null,null,null,null,null,null,null,null,null,null,null,null,null,null,null,null,null,null,null,null,null,null,null,null,null,null,null,null,null,null,null,null,null,null,null,null,null,null,null,null,"Thiersee"]
[null,null,null,null,null,null,null,null,null,null,null,null,null,null,null,null,null,null,null,null,null,null,null,null,null,null,null,null,null,null,null,null,null,null,null,null,null,null,null,null,null,null,null,null,null,null,null,null,null,null,null,null,null,null,null,null,"Thurn"]
[null,null,null,null,null,null,null,null,null,null,null,null,null,null,null,null,null,null,null,null,null,null,null,null,null,null,null,null,null,null,null,null,null,null,null,null,null,null,null,null,null,null,null,null,null,null,null,null,null,null,null,null,null,null,null,null,"Tobadill"]
[null,null,null,null,null,null,null,null,null,null,null,null,null,null,null,null,null,null,null,null,null,null,null,null,null,null,null,null,null,null,null,null,null,null,null,null,null,null,null,null,null,null,null,null,null,null,null,null,null,null,null,null,null,null,null,null,"Tösens"]
[null,null,null,null,null,null,null,null,null,null,null,null,null,null,null,null,null,null,null,null,null,null,null,null,null,null,null,null,null,null,null,null,null,null,null,null,null,null,null,null,null,null,null,null,null,null,null,null,null,null,null,null,null,null,null,null,"Trins"]
[null,null,null,null,null,null,null,null,null,null,null,null,null,null,null,null,null,null,null,null,null,null,null,null,null,null,null,null,null,null,null,null,null,null,null,null,null,null,null,null,null,null,null,null,null,null,null,null,null,null,null,null,null,null,null,null,"Tristach"]
[null,null,null,null,null,null,null,null,null,null,null,null,null,null,null,null,null,null,null,null,null,null,null,null,null,null,null,null,null,null,null,null,null,null,null,null,null,null,null,null,null,null,null,null,null,null,null,null,null,null,null,null,null,null,null,null,"Tulfes"]
[null,null,null,null,null,null,null,null,null,null,null,null,null,null,null,null,null,null,null,null,null,null,null,null,null,null,null,null,null,null,null,null,null,null,null,null,null,null,null,null,null,null,null,null,null,null,null,null,null,null,null,null,null,null,null,null,"Tux"]
[null,null,null,null,null,null,null,null,null,null,null,null,null,null,null,null,null,null,null,null,null,null,null,null,null,null,null,null,null,null,null,null,null,null,null,null,null,null,null,null,null,null,null,null,null,null,null,null,null,null,null,null,null,null,null,null,"Uderns"]
[null,null,null,null,null,null,null,null,null,null,null,null,null,null,null,null,null,null,null,null,null,null,null,null,null,null,null,null,null,null,null,null,null,null,null,null,null,null,null,null,null,null,null,null,null,null,null,null,null,null,null,null,null,null,null,null,"Umhausen"]
[null,null,null,null,null,null,null,null,null,null,null,null,null,null,null,null,null,null,null,null,null,null,null,null,null,null,null,null,null,null,null,null,null,null,null,null,null,null,null,null,null,null,null,null,null,null,null,null,null,null,null,null,null,null,null,null,"Unterperfuss"]
[null,null,null,null,null,null,null,null,null,null,null,null,null,null,null,null,null,null,null,null,null,null,null,null,null,null,null,null,null,null,null,null,null,null,null,null,null,null,null,null,null,null,null,null,null,null,null,null,null,null,null,null,null,null,null,null,"Untertilliach"]
[null,null,null,null,null,null,null,null,null,null,null,null,null,null,null,null,null,null,null,null,null,null,null,null,null,null,null,null,null,null,null,null,null,null,null,null,null,null,null,null,null,null,null,null,null,null,null,null,null,null,null,null,null,null,null,null,"Vals"]
[null,null,null,null,null,null,null,null,null,null,null,null,null,null,null,null,null,null,null,null,null,null,null,null,null,null,null,null,null,null,null,null,null,null,null,null,null,null,null,null,null,null,null,null,null,null,null,null,null,null,null,null,null,null,null,null,"Vils"]
[null,null,null,null,null,null,null,null,null,null,null,null,null,null,null,null,null,null,null,null,null,null,null,null,null,null,null,null,null,null,null,null,null,null,null,null,null,null,null,null,null,null,null,null,null,null,null,null,null,null,null,null,null,null,null,null,"Virgen"]
[null,null,null,null,null,null,null,null,null,null,null,null,null,null,null,null,null,null,null,null,null,null,null,null,null,null,null,null,null,null,null,null,null,null,null,null,null,null,null,null,null,null,null,null,null,null,null,null,null,null,null,null,null,null,null,null,"Volders"]
[null,null,null,null,null,null,null,null,null,null,null,null,null,null,null,null,null,null,null,null,null,null,null,null,null,null,null,null,null,null,null,null,null,null,null,null,null,null,null,null,null,null,null,null,null,null,null,null,null,null,null,null,null,null,null,null,"Völs"]
[null,null,null,null,null,null,null,null,null,null,null,null,null,null,null,null,null,null,null,null,null,null,null,null,null,null,null,null,null,null,null,null,null,null,null,null,null,null,null,null,null,null,null,null,null,null,null,null,null,null,null,null,null,null,null,null,"Vomp"]
[null,null,null,null,null,null,null,null,null,null,null,null,null,null,null,null,null,null,null,null,null,null,null,null,null,null,null,null,null,null,null,null,null,null,null,null,null,null,null,null,null,null,null,null,null,null,null,null,null,null,null,null,null,null,null,null,"Vorderhornbach"]
[null,null,null,null,null,null,null,null,null,null,null,null,null,null,null,null,null,null,null,null,null,null,null,null,null,null,null,null,null,null,null,null,null,null,null,null,null,null,null,null,null,null,null,null,null,null,null,null,null,null,null,null,null,null,null,null,"Waidring"]
[null,null,null,null,null,null,null,null,null,null,null,null,null,null,null,null,null,null,null,null,null,null,null,null,null,null,null,null,null,null,null,null,null,null,null,null,null,null,null,null,null,null,null,null,null,null,null,null,null,null,null,null,null,null,null,null,"Walchsee"]
[null,null,null,null,null,null,null,null,null,null,null,null,null,null,null,null,null,null,null,null,null,null,null,null,null,null,null,null,null,null,null,null,null,null,null,null,null,null,null,null,null,null,null,null,null,null,null,null,null,null,null,null,null,null,null,null,"Wängle"]
[null,null,null,null,null,null,null,null,null,null,null,null,null,null,null,null,null,null,null,null,null,null,null,null,null,null,null,null,null,null,null,null,null,null,null,null,null,null,null,null,null,null,null,null,null,null,null,null,null,null,null,null,null,null,null,null,"Wattenberg"]
[null,null,null,null,null,null,null,null,null,null,null,null,null,null,null,null,null,null,null,null,null,null,null,null,null,null,null,null,null,null,null,null,null,null,null,null,null,null,null,null,null,null,null,null,null,null,null,null,null,null,null,null,null,null,null,null,"Wattens"]
[null,null,null,null,null,null,null,null,null,null,null,null,null,null,null,null,null,null,null,null,null,null,null,null,null,null,null,null,null,null,null,null,null,null,null,null,null,null,null,null,null,null,null,null,null,null,null,null,null,null,null,null,null,null,null,null,"Weer"]
[null,null,null,null,null,null,null,null,null,null,null,null,null,null,null,null,null,null,null,null,null,null,null,null,null,null,null,null,null,null,null,null,null,null,null,null,null,null,null,null,null,null,null,null,null,null,null,null,null,null,null,null,null,null,null,null,"Weerberg"]
[null,null,null,null,null,null,null,null,null,null,null,null,null,null,null,null,null,null,null,null,null,null,null,null,null,null,null,null,null,null,null,null,null,null,null,null,null,null,null,null,null,null,null,null,null,null,null,null,null,null,null,null,null,null,null,null,"Weißenbach am Lech"]
[null,null,null,null,null,null,null,null,null,null,null,null,null,null,null,null,null,null,null,null,null,null,null,null,null,null,null,null,null,null,null,null,null,null,null,null,null,null,null,null,null,null,null,null,null,null,null,null,null,null,null,null,null,null,null,null,"Wenns"]
[null,null,null,null,null,null,null,null,null,null,null,null,null,null,null,null,null,null,null,null,null,null,null,null,null,null,null,null,null,null,null,null,null,null,null,null,null,null,null,null,null,null,null,null,null,null,null,null,null,null,null,null,null,null,null,null,"Westendorf"]
[null,null,null,null,null,null,null,null,null,null,null,null,null,null,null,null,null,null,null,null,null,null,null,null,null,null,null,null,null,null,null,null,null,null,null,null,null,null,null,null,null,null,null,null,null,null,null,null,null,null,null,null,null,null,null,null,"Wiesing"]
[null,null,null,null,null,null,null,null,null,null,null,null,null,null,null,null,null,null,null,null,null,null,null,null,null,null,null,null,null,null,null,null,null,null,null,null,null,null,null,null,null,null,null,null,null,null,null,null,null,null,null,null,null,null,null,null,"Wildermieming"]
[null,null,null,null,null,null,null,null,null,null,null,null,null,null,null,null,null,null,null,null,null,null,null,null,null,null,null,null,null,null,null,null,null,null,null,null,null,null,null,null,null,null,null,null,null,null,null,null,null,null,null,null,null,null,null,null,"Wildschönau"]
[null,null,null,null,null,null,null,null,null,null,null,null,null,null,null,null,null,null,null,null,null,null,null,null,null,null,null,null,null,null,null,null,null,null,null,null,null,null,null,null,null,null,null,null,null,null,null,null,null,null,null,null,null,null,null,null,"Wörgl"]
[null,null,null,null,null,null,null,null,null,null,null,null,null,null,null,null,null,null,null,null,null,null,null,null,null,null,null,null,null,null,null,null,null,null,null,null,null,null,null,null,null,null,null,null,null,null,null,null,null,null,null,null,null,null,null,null,"Zams"]
[null,null,null,null,null,null,null,null,null,null,null,null,null,null,null,null,null,null,null,null,null,null,null,null,null,null,null,null,null,null,null,null,null,null,null,null,null,null,null,null,null,null,null,null,null,null,null,null,null,null,null,null,null,null,null,null,"Zell am Ziller"]
[null,null,null,null,null,null,null,null,null,null,null,null,null,null,null,null,null,null,null,null,null,null,null,null,null,null,null,null,null,null,null,null,null,null,null,null,null,null,null,null,null,null,null,null,null,null,null,null,null,null,null,null,null,null,null,null,"Zellberg"]
[null,null,null,null,null,null,null,null,null,null,null,null,null,null,null,null,null,null,null,null,null,null,null,null,null,null,null,null,null,null,null,null,null,null,null,null,null,null,null,null,null,null,null,null,null,null,null,null,null,null,null,null,null,null,null,null,"Zirl"]
[null,null,null,null,null,null,null,null,null,null,null,null,null,null,null,null,null,null,null,null,null,null,null,null,null,null,null,null,null,null,null,null,null,null,null,null,null,null,null,null,null,null,null,null,null,null,null,null,null,null,null,null,null,null,null,null,"Zöblen"]

{"sheet":"Tabelle","index":3,"n_rows":291,"n_cols":15,"rows_kept":291,"cut":false,"hidden":true,"merged":[]}
[null,null,"FORST","FAI-Code","Satz","Einheit"]
["bitte wählen:",1,"bitte wählen:","--","--","--",null,null,null,null,null,"bitte wählen:"]
["Waldpflegeverein Tirol, Obm. Günter Strasser, Postfach184, 6010 Innsbruck, Klientennummer: 10602402",2,"Aufforstung/Nachbesserung - Fichte","P311,P411",0.75,0.6,null,null,null,null,null,"Aspe",null,"bitte Gemeinde wählen:","bitte Gemeinde wählen:"]
["Waldpflegeverein Lienz, Obm. Philipp Gstinig, Postfach 12, 9900 Lienz, Klientennummer: 10604058",3,"Aufforstung/Nachbesserung - Mischbaum","P311,P411",1.375,1.1000000000000001,null,null,null,null,null,"Berg-, Feldulme",null,"Abfaltersbach","Abfaltersbach"]
["Waldpflegeverein Imst, Obm. Thurner Karl, Eichenweg 40, 6460 Imst, Klientennummer: 10602498",4,"Aufforstung/Nachbesserung - LH / TA / ZI","P311,P411",2.25,1.8,null,null,null,null,null,"Bergahorn",null,"Absam","Absam"]
[null,5,"Kulturpflege","P422, P322",750,600,null,null,null,null,null,"Birke",null,"Achenkirch","Achenkirch"]
[null,6,"Durchforstung Boden","P406, P306",26.667000000000002,12,null,null,null,null,null,"Buche",null,"Ainet","Ainet"]
[null,7,"Durchforstung Seil","P406, P306",46.667000000000002,21,null,null,null,null,null,"Douglasie",null,"Aldrans","Aldrans"]
[null,8,"Verpflockung (Schneeschub)","P403,P303",6,4.8,null,null,null,null,null,"Edelkastanie",null,"Alpbach","Alpbach"]
[null,9,"Verjüngungseinleit. (Zwangsn.; Hangentlast.)","P358,P458",20,11,null,null,null,null,null,"Eberesche (= Vogelbeere)",null,"Amlach","Amlach"]
[null,10,"Kontrollzaun","P409",366.67,330,null,null,null,null,null,"Eibe",null,"Ampass","Ampass"]
[null,11,"Querfällung","P402, P302",142.86000000000001,100,null,null,null,null,null,"Eiche",null,"Angath","Angath"]
[null,12,"Hochabstockung","P402, P302",14.286,10,null,null,null,null,null,"Feld-, Spitzahorn",null,"Anras","Anras"]
[null,13,"Fangbaum/Prügelfalle","P017",30,27,null,null,null,null,null,"Fichte",null,"Arzl im Pitztal","Arzl im Pitztal"]
[null,14,"Holz \"Vor Ort belassen\"","P457, P357",37.5,30,null,null,null,null,null,"Hainbuche",null,"Aschau im Zillertal","Aschau im Zillertal"]
[null,15,"Aufarbeitung Einzelschäden","P014",25,10,null,null,null,null,null,"Kirsche",null,"Assling","Assling"]
[null,16,"Verjüngungseinleitung VOLE 14-20","P355, P455",19.8,15.84,null,null,null,null,null,"Lärche",null,"Aurach bei Kitzbühel","Aurach bei Kitzbühel"]
[null,null,null,null,null,null,null,null,null,null,null,"Latsche",null,"Außervillgraten","Außervillgraten"]
[null,null,null,null,null,null,null,null,null,null,null,"Pappel",null,"Axams","Axams"]
[null,1,null,"Basis - Anzahl Pflanzen / ha",null,2500,null,null,null,null,null,"Roßkastanie",null,"Bach","Bach"]
[null,2,"bitte wählen:","--","--","--",null,null,"Fö (FAI-Daten)",null,null,"Schwarzkiefer",null,"Bad Häring","Bad Häring"]
[null,3,"Aussicheln, Freischneiden",0.13,"ha","2010: 0,136","ab 2011 nicht angeboten",null,340,"€ / ha",null,"Sonstiges Laubholz-Hart",null,"Baumkirchen","Baumkirchen"]
[null,4,"Rüsselkäferbekämpfung",0.05,"ha","2010: 0,08","ab 2011 nicht angeboten",null,200,"€ / ha",null,"Sonstiges Laubholz-Weich",null,"Berwang","Berwang"]
[null,null,"Verpflockung (Pflege)",0.65,"ha",null,"ab 2011 nicht angeboten",null,0.65,"€ / Stk",null,"Spirke",null,"Biberwier","Biberwier"]
[null,null,null,null,null,null,null,null,null,null,null,"Sträucher",null,"Bichlbach","Bichlbach"]
[null,null,null,null,null,null,null,null,null,null,null,"Tanne",null,"Birgitz","Birgitz"]
[null,null,"JUWELEN","FAI-Code","Satz","Einheit",null,null,null,null,null,"Vogelbeere (= Eberesche)",null,"Brandberg","Brandberg"]
[null,1,"bitte wählen:","--","--","--",null,null,null,null,null,"Walnuß",null,"Brandenberg","Brandenberg"]
[null,2,"Aufforstung/Nachbesserung - Fichte","1FI, 3FI, 4FI",0.6,"Stk. Pflanze",null,null,null,null,null,"Weide",null,"Breitenbach am Inn","Breitenbach am Inn"]
[null,3,"Aufforstung/Nachbesserung - Mischbaum","1MH, 3MH, 4MH",1.2,"Stk. Pflanze",null,null,null,null,null,"Weißkiefer",null,"Breitenwang","Breitenwang"]
[null,4,"Aufforstung/Nachbesserung - Laubholz+Ta","1LH, 3LH, 4LH",2,"Stk. Pflanze",null,null,null,null,null,"Winter-, Sommerlinde",null,"Brixen im Thale","Brixen im Thale"]
[null,5,"Freischneiden",422,0.13,"Stk. Pflanze",null,null,null,null,null,"Zirbe",null,"Brixlegg","Brixlegg"]
[null,6,"Verpflockung (Pflege)",422,0.65,"Stk. Pflock",null,null,null,null,null,null,null,"Bruck am Ziller","Bruck am Ziller"]
[null,null,null,null,null,null,null,null,null,null,null,null,null,"Buch bei Jenbach","Buch bei Jenbach"]
[null,null,null,null,null,null,null,null,null,null,null,null,null,"Dölsach","Dölsach"]
[null,null,null,null,null,null,null,null,null,null,null,null,null,"Ebbs","Ebbs"]
[null,null,"Landschaftsdienst","FAI-Code","Satz","Einheit",null,null,null,null,null,null,null,"Eben am Achensee","Eben am Achensee"]
[null,1,"bitte wählen:","--","--","--",null,null,null,null,null,null,null,"Ehenbichl","Ehenbichl"]
[null,2,"Wanderwege Leitsysteme/Beschilderung","bitte","Unterkategorie","wählen",null,null,null,null,null,null,null,"Ehrwald","Ehrwald"]
[null,3,"1-zeilige Schild 80x600x3","756",25,"Stk.",null,null,null,null,null,null,null,"Elbigenalp","Elbigenalp"]
[null,4,"2-zeiliges Schild 150x600x3","756",32,"Stk.",null,null,null,null,null,null,null,"Ellbögen","Ellbögen"]
[null,5,"3-zeiliges Schild 200x600x3","756",37,"Stk.",null,null,null,null,null,null,null,"Ellmau","Ellmau"]
[null,6,"Standortschild 100x200x3","756",22,"Stk.",null,null,null,null,null,null,null,"Elmen","Elmen"]
[null,7,null,null,null,null,null,null,null,null,null,null,null,"Erl","Erl"]
[null,8,"MTB/ST Leitsysteme/Beschilderung","bitte","Unterkategorie","wählen",null,null,null,null,null,null,null,"Faggen","Faggen"]
[null,9,"200 x 420 x 3 incl. Lasche","756",27,"Stk.",null,null,null,null,null,null,null,"Fendels","Fendels"]
[null,10,"200 x 260 x 3 incl. Lasche","756",21,"Stk.",null,null,null,null,null,null,null,"Fieberbrunn","Fieberbrunn"]
[null,11,"200 x 200 x 3 incl. Lasche","756",19,"Stk.",null,null,null,null,null,null,null,"Finkenberg","Finkenberg"]
[null,12,"120 x 120 x 3 inkl. Lasche","756",15,"Stk.",null,null,null,null,null,null,null,"Fiss","Fiss"]
[null,13,"200 x 50 x 3 inkl. Lasche","756",14,"Stk.",null,null,null,null,null,null,null,"Flaurling","Flaurling"]
[null,14,"470 x 230 x 3 inkl. Lasche","756",34,"Stk.",null,null,null,null,null,null,null,"Fließ","Fließ"]
[null,15,"Pfeil klein/groß","756",1,"Stk.",null,null,null,null,null,null,null,"Flirsch","Flirsch"]
[null,16,null,null,null,null,null,null,null,null,null,null,null,"Forchach","Forchach"]
[null,17,"Freeride Leitsysteme/Beschilderung","bitte","Unterkategorie","wählen",null,null,null,null,null,null,null,"Fritzens","Fritzens"]
[null,18,"300 x 300 x 3 ohne Lasche","756",17,"Stk.",null,null,null,null,null,null,null,"Fügen","Fügen"]
[null,19,null,null,null,null,null,null,null,null,null,null,null,"Fügenberg","Fügenberg"]
[null,20,"Schitourenprojekte Leitsysteme/Beschilderung","bitte","Unterkategorie","wählen",null,null,null,null,null,null,null,"Fulpmes","Fulpmes"]
[null,21,"200 x 200 x 3 ohne Lasche","756",8,"Stk.",null,null,null,null,null,null,null,"Gaimberg","Gaimberg"]
[null,22]
[null,23,"Pistentouren Leitsysteme/Beschilderung","bitte","Unterkategorie","wählen"]
[null,24,"800 x 1200 x 3","756",109,"Stk."]
[null,25,"600 x 1200 x 3","756",84,"Stk."]
[null,26,"400 x 900 x 3","756",61,"Stk."]
[null,27,"400 x 800 x 3","756",54,"Stk."]
[null,28,"530 x 200 x 3","756",19,"Stk."]
[null,29,"400 x 200 x 3","756",16,"Stk."]
[null,30,"120 x 120 x 3","756",7,"Stk."]
[null,31,"200 x 60 x 3","756",5,"Stk.",null,null,null,null,null,null,null,"Gallzein","Gallzein"]
[null,32]
[null,33,"Winterwanderwege-Leitsysteme/Beschilderung","bitte","Unterkategorie","wählen",null,null,null,null,null,null,null,"Galtür","Galtür"]
[null,34,"1-zeilige Schild 80x600x3","756",25,"Stk.",null,null,null,null,null,null,null,"Gerlos","Gerlos"]
[null,35,"2-zeiliges Schild 150x600x3","756",32,"Stk.",null,null,null,null,null,null,null,"Gerlosberg","Gerlosberg"]
[null,36,"3-zeiliges Schild 200x600x3","756",37,"Stk.",null,null,null,null,null,null,null,"Gnadenwald","Gnadenwald"]
[null,37,"Standortschild 100x200x3","756",22,"Stk.",null,null,null,null,null,null,null,"Going am Wilden Kaiser","Going am Wilden Kaiser"]
[null,38,null,null,null,null,null,null,null,null,null,null,null,"Götzens","Götzens"]
[null,39,"Loipen Leitsysteme/Beschilderung ","bitte","Unterkategorie","wählen",null,null,null,null,null,null,null,"Gramais","Gramais"]
[null,40,"ab 200 x 400 x 3 incl.Lasche","764",27,"Stk.",null,null,null,null,null,null,null,"Grän","Grän"]
[null,41,"350 x 500 x 3 incl. Lasche","764",27,"Stk.",null,null,null,null,null,null,null,"Gries am Brenner","Gries am Brenner"]
[null,42,"200 x 200 x 3 incl. Lasche","764",19,"Stk.",null,null,null,null,null,null,null,"Gries im Sellrain","Gries im Sellrain"]
[null,43,null,null,null,null,null,null,null,null,null,null,null,"Grins","Grins"]
[null,44,"Trailrunning Leitsysteme/Beschilderung ",null,null,null,null,null,null,null,null,null,null,"Grinzens","Grinzens"]
[null,45,"150 x 260 x 3 incl. Lasche","767",21,"Stk.",null,null,null,null,null,null,null,"Gschnitz","Gschnitz"]
[null,46,"150 x 200 x 3 incl. Lasche","767",18,"Stk.",null,null,null,null,null,null,null,"Haiming","Haiming"]
[null,47,"150 x 150 x 3 incl. Lasche","767",16,"Stk.",null,null,null,null,null,null,null,"Hainzenberg","Hainzenberg"]
[null,48,"120 x 120 x 3 incl. Lasche","767",15,"Stk.",null,null,null,null,null,null,null,"Hall in Tirol","Hall in Tirol"]
[null,49,null,null,null,null,null,null,null,null,null,null,null,"Hart im Zillertal","Hart im Zillertal"]
[null,50,null,null,null,null,null,null,null,null,null,null,null,"Häselgehr","Häselgehr"]
[null,51,null,null,null,null,null,null,null,null,null,null,null,"Hatting","Hatting"]
[null,52,null,null,null,null,null,null,null,null,null,null,null,"Heinfels","Heinfels"]
[null,53,null,null,null,null,null,null,null,null,null,null,null,"Heiterwang","Heiterwang"]
[null,54,null,null,null,null,null,null,null,null,null,null,null,"Hinterhornbach","Hinterhornbach"]
[null,55,null,null,null,null,null,null,null,null,null,null,null,"Hippach","Hippach"]
[null,56,null,null,null,null,null,null,null,null,null,null,null,"Hochfilzen","Hochfilzen"]
[null,57,null,null,null,null,null,null,null,null,null,null,null,"Höfen","Höfen"]
[null,null,null,null,null,null,null,null,null,null,null,null,null,"Holzgau","Holzgau"]
[null,null,null,null,null,null,null,null,null,null,null,null,null,"Hopfgarten im Brixental","Hopfgarten im Brixental"]
[null,null,null,null,null,null,null,null,null,null,null,null,null,"Hopfgarten in Defereggen","Hopfgarten in Defereggen"]
[null,null,null,null,null,null,null,null,null,null,null,null,null,"Imst","Imst"]
[null,null,null,null,null,null,null,null,null,null,null,null,null,"Imsterberg","Imsterberg"]
[null,null,null,null,null,null,null,null,null,null,null,null,null,"Innervillgraten","Innervillgraten"]
[null,null,null,null,null,null,null,null,null,null,null,null,null,"Innsbruck","Innsbruck"]
[null,null,null,null,null,null,null,null,null,null,null,null,null,"Inzing","Inzing"]
[null,null,null,null,null,null,null,null,null,null,null,null,null,"Ischgl","Ischgl"]
[null,null,null,null,null,null,null,null,null,null,null,null,null,"Iselsberg-Stronach","Iselsberg-Stronach"]
[null,1,"bitte wählen:","--","--","--",null,null,null,null,null,null,null,"Itter","Itter"]
[null,2,"Wanderwege",null,null,null,null,null,null,null,null,null,null,"Jenbach","Jenbach"]
[null,3,"Neu-und Ausbau","731",0,"lfm",null,null,null,null,null,null,null,"Jerzens","Jerzens"]
[null,4,"Generalinstandsetzung","711",0,"lfm",null,null,null,null,null,null,null,"Jochberg","Jochberg"]
[null,5,null,null,null,null,null,null,null,null,null,null,null,"Jungholz","Jungholz"]
[null,6,"MTB-Routen und Singletrails",null,null,null,null,null,null,null,null,null,null,"Kaisers","Kaisers"]
[null,7,"Neu- und Ausbau","731",0,"lfm",null,null,null,null,null,null,null,"Kals am Großglockner","Kals am Großglockner"]
[null,8,null,null,null,null,null,null,null,null,null,null,null,"Kaltenbach","Kaltenbach"]
[null,9,"Klettergärten",null,null,null,null,null,null,null,null,null,null,"Kappl","Kappl"]
[null,10,"Zustiegsweg","709",0,"lfm",null,null,null,null,null,null,null,"Karres","Karres"]
[null,11,"KG-Neubau-u.Ausbau <15m","731",153,"Anzahl Routen",null,null,null,null,null,null,null,"Karrösten","Karrösten"]
[null,12,"KG-Neubau-u.Ausbau 15-25m","731",210,"Anzahl Routen",null,null,null,null,null,null,null,"Kartitsch","Kartitsch"]
[null,13,"KG-Neubau-u.Ausbau >25m","731",278,"Anzahl Routen",null,null,null,null,null,null,null,"Kaunerberg","Kaunerberg"]
[null,14,"KG-Generalinstandsetzung <15m","711",126,"Anzahl Routen",null,null,null,null,null,null,null,"Kaunertal","Kaunertal"]
[null,15,"KG-Generalinstandsetzung 15-25m","711",178,"Anzahl Routen",null,null,null,null,null,null,null,"Kauns","Kauns"]
[null,16,"KG-Generalinstandsetzung >25m","711",236,"Anzahl Routen",null,null,null,null,null,null,null,"Kematen in Tirol","Kematen in Tirol"]
[null,17,null,null,null,null,null,null,null,null,null,null,null,"Kirchberg in Tirol","Kirchberg in Tirol"]
[null,18,"Klettersteige",null,null,null,null,null,null,null,null,null,null,"Kirchbichl","Kirchbichl"]
[null,19,"Neu- und Ausbau","731",0,"lfm",null,null,null,null,null,null,null,"Kirchdorf in Tirol","Kirchdorf in Tirol"]
[null,20,"Generalinstandsetzung","711",0,"lfm",null,null,null,null,null,null,null,"Kitzbühel","Kitzbühel"]
[null,21,"Zustiegsweg","709",0,"lfm",null,null,null,null,null,null,null,"Kolsass","Kolsass"]
[null,22,null,null,null,null,null,null,null,null,null,null,null,"Kolsassberg","Kolsassberg"]
[null,23,"Bouldergebiete",null,null,null,null,null,null,null,null,null,null,"Kössen","Kössen"]
[null,24,"Zustiegsweg","709",0,"lfm",null,null,null,null,null,null,null,"Kramsach","Kramsach"]
[null,25,null,null,null,null,null,null,null,null,null,null,null,"Kufstein","Kufstein"]
[null,26,null,null,null,null,null,null,null,null,null,null,null,"Kundl","Kundl"]
[null,27,null,null,null,null,null,null,null,null,null,null,null,"Ladis","Ladis"]
[null,28,null,null,null,null,null,null,null,null,null,null,null,"Landeck","Landeck"]
[null,29,null,null,null,null,null,null,null,null,null,null,null,"Längenfeld","Längenfeld"]
[null,null,null,null,null,null,null,null,null,null,null,null,null,"Langkampfen","Langkampfen"]
[null,null,null,null,null,null,null,null,null,null,null,null,null,"Lans","Lans"]
[null,null,null,null,null,null,null,null,null,null,null,null,null,"Lavant","Lavant"]
[null,null,null,null,null,null,null,null,null,null,null,null,null,"Lechaschau","Lechaschau"]
[null,null,null,null,null,null,null,null,null,null,null,null,null,"Leisach","Leisach"]
[null,null,null,null,null,null,null,null,null,null,null,null,null,"Lermoos","Lermoos"]
[null,null,null,null,null,null,null,null,null,null,null,null,null,"Leutasch","Leutasch"]
[null,null,null,null,null,null,null,null,null,null,null,null,null,"Lienz","Lienz"]
[null,null,null,null,null,null,null,null,null,null,null,null,null,"Mariastein","Mariastein"]
[null,null,null,null,null,null,null,null,null,null,null,null,null,"Matrei am Brenner","Matrei am Brenner"]
[null,null,null,null,null,null,null,null,null,null,null,null,null,"Matrei in Osttirol","Matrei in Osttirol"]
[null,null,null,null,null,null,null,null,null,null,null,null,null,"Mayrhofen","Mayrhofen"]
[null,null,null,null,null,null,null,null,null,null,null,null,null,"Mieders","Mieders"]
[null,null,null,null,null,null,null,null,null,null,null,null,null,"Mieming","Mieming"]
[null,null,null,null,null,null,null,null,null,null,null,null,null,"Mils","Mils"]
[null,null,null,null,null,null,null,null,null,null,null,null,null,"Mils bei Imst","Mils bei Imst"]
[null,null,null,null,null,null,null,null,null,null,null,null,null,"Mötz","Mötz"]
[null,null,null,null,null,null,null,null,null,null,null,null,null,"Mühlbachl","Mühlbachl"]
[null,null,null,null,null,null,null,null,null,null,null,null,null,"Münster","Münster"]
[null,null,null,null,null,null,null,null,null,null,null,null,null,"Musau","Musau"]
[null,null,null,null,null,null,null,null,null,null,null,null,null,"Mutters","Mutters"]
[null,null,null,null,null,null,null,null,null,null,null,null,null,"Namlos","Namlos"]
[null,null,null,null,null,null,null,null,null,null,null,null,null,"Nassereith","Nassereith"]
[null,null,null,null,null,null,null,null,null,null,null,null,null,"Natters","Natters"]
[null,null,null,null,null,null,null,null,null,null,null,null,null,"Nauders","Nauders"]
[null,null,null,null,null,null,null,null,null,null,null,null,null,"Navis","Navis"]
[null,null,null,null,null,null,null,null,null,null,null,null,null,"Nesselwängle","Nesselwängle"]
[null,null,null,null,null,null,null,null,null,null,null,null,null,"Neustift im Stubaital","Neustift im Stubaital"]
[null,null,null,null,null,null,null,null,null,null,null,null,null,"Niederndorf","Niederndorf"]
[null,null,null,null,null,null,null,null,null,null,null,null,null,"Niederndorferberg","Niederndorferberg"]
[null,null,null,null,null,null,null,null,null,null,null,null,null,"Nikolsdorf","Nikolsdorf"]
[null,null,null,null,null,null,null,null,null,null,null,null,null,"Nußdorf-Debant","Nußdorf-Debant"]
[null,null,null,null,null,null,null,null,null,null,null,null,null,"Oberhofen im Inntal","Oberhofen im Inntal"]
[null,null,null,null,null,null,null,null,null,null,null,null,null,"Oberlienz","Oberlienz"]
[null,null,null,null,null,null,null,null,null,null,null,null,null,"Obernberg am Brenner","Obernberg am Brenner"]
[null,null,null,null,null,null,null,null,null,null,null,null,null,"Oberndorf in Tirol","Oberndorf in Tirol"]
[null,null,null,null,null,null,null,null,null,null,null,null,null,"Oberperfuss","Oberperfuss"]
[null,null,null,null,null,null,null,null,null,null,null,null,null,"Obertilliach","Obertilliach"]
[null,null,null,null,null,null,null,null,null,null,null,null,null,"Obsteig","Obsteig"]
[null,null,null,null,null,null,null,null,null,null,null,null,null,"Oetz","Oetz"]
[null,null,null,null,null,null,null,null,null,null,null,null,null,"Patsch","Patsch"]
[null,null,null,null,null,null,null,null,null,null,null,null,null,"Pettnau","Pettnau"]
[null,null,null,null,null,null,null,null,null,null,null,null,null,"Pettneu am Arlberg","Pettneu am Arlberg"]
[null,null,null,null,null,null,null,null,null,null,null,null,null,"Pfaffenhofen","Pfaffenhofen"]
[null,null,null,null,null,null,null,null,null,null,null,null,null,"Pfafflar","Pfafflar"]
[null,null,null,null,null,null,null,null,null,null,null,null,null,"Pflach","Pflach"]
[null,null,null,null,null,null,null,null,null,null,null,null,null,"Pfons","Pfons"]
[null,null,null,null,null,null,null,null,null,null,null,null,null,"Pfunds","Pfunds"]
[null,null,null,null,null,null,null,null,null,null,null,null,null,"Pians","Pians"]
[null,null,null,null,null,null,null,null,null,null,null,null,null,"Pill","Pill"]
[null,null,null,null,null,null,null,null,null,null,null,null,null,"Pinswang","Pinswang"]
[null,null,null,null,null,null,null,null,null,null,null,null,null,"Polling in Tirol","Polling in Tirol"]
[null,null,null,null,null,null,null,null,null,null,null,null,null,"Prägraten am Großvenediger","Prägraten am Großvenediger"]
[null,null,null,null,null,null,null,null,null,null,null,null,null,"Prutz","Prutz"]
[null,null,null,null,null,null,null,null,null,null,null,null,null,"Radfeld","Radfeld"]
[null,null,null,null,null,null,null,null,null,null,null,null,null,"Ramsau im Zillertal","Ramsau im Zillertal"]
[null,null,null,null,null,null,null,null,null,null,null,null,null,"Ranggen","Ranggen"]
[null,null,null,null,null,null,null,null,null,null,null,null,null,"Rattenberg","Rattenberg"]
[null,null,null,null,null,null,null,null,null,null,null,null,null,"Reith bei Kitzbühel","Reith bei Kitzbühel"]
[null,null,null,null,null,null,null,null,null,null,null,null,null,"Reith bei Seefeld","Reith bei Seefeld"]
[null,null,null,null,null,null,null,null,null,null,null,null,null,"Reith im Alpbachtal","Reith im Alpbachtal"]
[null,null,null,null,null,null,null,null,null,null,null,null,null,"Rettenschöss","Rettenschöss"]
[null,null,null,null,null,null,null,null,null,null,null,null,null,"Reutte","Reutte"]
[null,null,null,null,null,null,null,null,null,null,null,null,null,"Ried im Oberinntal","Ried im Oberinntal"]
[null,null,null,null,null,null,null,null,null,null,null,null,null,"Ried im Zillertal","Ried im Zillertal"]
[null,null,null,null,null,null,null,null,null,null,null,null,null,"Rietz","Rietz"]
[null,null,null,null,null,null,null,null,null,null,null,null,null,"Rinn","Rinn"]
[null,null,null,null,null,null,null,null,null,null,null,null,null,"Rohrberg","Rohrberg"]
[null,null,null,null,null,null,null,null,null,null,null,null,null,"Roppen","Roppen"]
[null,null,null,null,null,null,null,null,null,null,null,null,null,"Rum","Rum"]
[null,null,null,null,null,null,null,null,null,null,null,null,null,"Sautens","Sautens"]
[null,null,null,null,null,null,null,null,null,null,null,null,null,"Scharnitz","Scharnitz"]
[null,null,null,null,null,null,null,null,null,null,null,null,null,"Schattwald","Schattwald"]
[null,null,null,null,null,null,null,null,null,null,null,null,null,"Scheffau am Wilden Kaiser","Scheffau am Wilden Kaiser"]
[null,null,null,null,null,null,null,null,null,null,null,null,null,"Schlaiten","Schlaiten"]
[null,null,null,null,null,null,null,null,null,null,null,null,null,"Schlitters","Schlitters"]
[null,null,null,null,null,null,null,null,null,null,null,null,null,"Schmirn","Schmirn"]
[null,null,null,null,null,null,null,null,null,null,null,null,null,"Schönberg im Stubaital","Schönberg im Stubaital"]
[null,null,null,null,null,null,null,null,null,null,null,null,null,"Schönwies","Schönwies"]
[null,null,null,null,null,null,null,null,null,null,null,null,null,"Schwaz","Schwaz"]
[null,null,null,null,null,null,null,null,null,null,null,null,null,"Schwendau","Schwendau"]
[null,null,null,null,null,null,null,null,null,null,null,null,null,"Schwendt","Schwendt"]
[null,null,null,null,null,null,null,null,null,null,null,null,null,"Schwoich","Schwoich"]
[null,null,null,null,null,null,null,null,null,null,null,null,null,"See","See"]
[null,null,null,null,null,null,null,null,null,null,null,null,null,"Seefeld in Tirol","Seefeld in Tirol"]
[null,null,null,null,null,null,null,null,null,null,null,null,null,"Sellrain","Sellrain"]
[null,null,null,null,null,null,null,null,null,null,null,null,null,"Serfaus","Serfaus"]
[null,null,null,null,null,null,null,null,null,null,null,null,null,"Sillian","Sillian"]
[null,null,null,null,null,null,null,null,null,null,null,null,null,"Silz","Silz"]
[null,null,null,null,null,null,null,null,null,null,null,null,null,"Sistrans","Sistrans"]
[null,null,null,null,null,null,null,null,null,null,null,null,null,"Sölden","Sölden"]
[null,null,null,null,null,null,null,null,null,null,null,null,null,"Söll","Söll"]
[null,null,null,null,null,null,null,null,null,null,null,null,null,"Spiss","Spiss"]
[null,null,null,null,null,null,null,null,null,null,null,null,null,"St.Anton am Arlberg","St.Anton am Arlberg"]
[null,null,null,null,null,null,null,null,null,null,null,null,null,"St.Jakob in Defereggen","St.Jakob in Defereggen"]
[null,null,null,null,null,null,null,null,null,null,null,null,null,"St.Jakob in Haus","St.Jakob in Haus"]
[null,null,null,null,null,null,null,null,null,null,null,null,null,"St.Johann im Walde","St.Johann im Walde"]
[null,null,null,null,null,null,null,null,null,null,null,null,null,"St.Johann in Tirol","St.Johann in Tirol"]
[null,null,null,null,null,null,null,null,null,null,null,null,null,"St.Leonhard im Pitztal","St.Leonhard im Pitztal"]
[null,null,null,null,null,null,null,null,null,null,null,null,null,"St.Sigmund im Sellrain","St.Sigmund im Sellrain"]
[null,null,null,null,null,null,null,null,null,null,null,null,null,"St.Ulrich am Pillersee","St.Ulrich am Pillersee"]
[null,null,null,null,null,null,null,null,null,null,null,null,null,"St.Veit in Defereggen","St.Veit in Defereggen"]
[null,null,null,null,null,null,null,null,null,null,null,null,null,"Stams","Stams"]
[null,null,null,null,null,null,null,null,null,null,null,null,null,"Stans","Stans"]
[null,null,null,null,null,null,null,null,null,null,null,null,null,"Stanz bei Landeck","Stanz bei Landeck"]
[null,null,null,null,null,null,null,null,null,null,null,null,null,"Stanzach","Stanzach"]
[null,null,null,null,null,null,null,null,null,null,null,null,null,"Steeg","Steeg"]
[null,null,null,null,null,null,null,null,null,null,null,null,null,"Steinach am Brenner","Steinach am Brenner"]
[null,null,null,null,null,null,null,null,null,null,null,null,null,"Steinberg am Rofan","Steinberg am Rofan"]
[null,null,null,null,null,null,null,null,null,null,null,null,null,"Strass im Zillertal","Strass im Zillertal"]
[null,null,null,null,null,null,null,null,null,null,null,null,null,"Strassen","Strassen"]
[null,null,null,null,null,null,null,null,null,null,null,null,null,"Strengen","Strengen"]
[null,null,null,null,null,null,null,null,null,null,null,null,null,"Stumm","Stumm"]
[null,null,null,null,null,null,null,null,null,null,null,null,null,"Stummerberg","Stummerberg"]
[null,null,null,null,null,null,null,null,null,null,null,null,null,"Tannheim","Tannheim"]
[null,null,null,null,null,null,null,null,null,null,null,null,null,"Tarrenz","Tarrenz"]
[null,null,null,null,null,null,null,null,null,null,null,null,null,"Telfes im Stubai","Telfes im Stubai"]
[null,null,null,null,null,null,null,null,null,null,null,null,null,"Telfs","Telfs"]
[null,null,null,null,null,null,null,null,null,null,null,null,null,"Terfens","Terfens"]
[null,null,null,null,null,null,null,null,null,null,null,null,null,"Thaur","Thaur"]
[null,null,null,null,null,null,null,null,null,null,null,null,null,"Thiersee","Thiersee"]
[null,null,null,null,null,null,null,null,null,null,null,null,null,"Thurn","Thurn"]
[null,null,null,null,null,null,null,null,null,null,null,null,null,"Tobadill","Tobadill"]
[null,null,null,null,null,null,null,null,null,null,null,null,null,"Tösens","Tösens"]
[null,null,null,null,null,null,null,null,null,null,null,null,null,"Trins","Trins"]
[null,null,null,null,null,null,null,null,null,null,null,null,null,"Tristach","Tristach"]
[null,null,null,null,null,null,null,null,null,null,null,null,null,"Tulfes","Tulfes"]
[null,null,null,null,null,null,null,null,null,null,null,null,null,"Tux","Tux"]
[null,null,null,null,null,null,null,null,null,null,null,null,null,"Uderns","Uderns"]
[null,null,null,null,null,null,null,null,null,null,null,null,null,"Umhausen","Umhausen"]
[null,null,null,null,null,null,null,null,null,null,null,null,null,"Unterperfuss","Unterperfuss"]
[null,null,null,null,null,null,null,null,null,null,null,null,null,"Untertilliach","Untertilliach"]
[null,null,null,null,null,null,null,null,null,null,null,null,null,"Vals","Vals"]
[null,null,null,null,null,null,null,null,null,null,null,null,null,"Vils","Vils"]
[null,null,null,null,null,null,null,null,null,null,null,null,null,"Virgen","Virgen"]
[null,null,null,null,null,null,null,null,null,null,null,null,null,"Volders","Volders"]
[null,null,null,null,null,null,null,null,null,null,null,null,null,"Völs","Völs"]
[null,null,null,null,null,null,null,null,null,null,null,null,null,"Vomp","Vomp"]
[null,null,null,null,null,null,null,null,null,null,null,null,null,"Vorderhornbach","Vorderhornbach"]
[null,null,null,null,null,null,null,null,null,null,null,null,null,"Waidring","Waidring"]
[null,null,null,null,null,null,null,null,null,null,null,null,null,"Walchsee","Walchsee"]
[null,null,null,null,null,null,null,null,null,null,null,null,null,"Wängle","Wängle"]
[null,null,null,null,null,null,null,null,null,null,null,null,null,"Wattenberg","Wattenberg"]
[null,null,null,null,null,null,null,null,null,null,null,null,null,"Wattens","Wattens"]
[null,null,null,null,null,null,null,null,null,null,null,null,null,"Weer","Weer"]
[null,null,null,null,null,null,null,null,null,null,null,null,null,"Weerberg","Weerberg"]
[null,null,null,null,null,null,null,null,null,null,null,null,null,"Weißenbach am Lech","Weißenbach am Lech"]
[null,null,null,null,null,null,null,null,null,null,null,null,null,"Wenns","Wenns"]
[null,null,null,null,null,null,null,null,null,null,null,null,null,"Westendorf","Westendorf"]
[null,null,null,null,null,null,null,null,null,null,null,null,null,"Wiesing","Wiesing"]
[null,null,null,null,null,null,null,null,null,null,null,null,null,"Wildermieming","Wildermieming"]
[null,null,null,null,null,null,null,null,null,null,null,null,null,"Wildschönau","Wildschönau"]
[null,null,null,null,null,null,null,null,null,null,null,null,null,"Wörgl","Wörgl"]
[null,null,null,null,null,null,null,null,null,null,null,null,null,"Zams","Zams"]
[null,null,null,null,null,null,null,null,null,null,null,null,null,"Zell am Ziller","Zell am Ziller"]
[null,null,null,null,null,null,null,null,null,null,null,null,null,"Zellberg","Zellberg"]
[null,null,null,null,null,null,null,null,null,null,null,null,null,"Zirl","Zirl"]
[null,null,null,null,null,null,null,null,null,null,null,null,null,"Zöblen","Zöblen"]

{"sheet":"Tabelle1","index":4,"n_rows":0,"n_cols":0,"rows_kept":0,"cut":false,"hidden":true,"merged":[]}